Workbook

Sheet Pre and post summary
D1: Pre retro per house | I1: Pre retro village | N1: Post retro house | S1: Post retro village | AF1: pre percentages
A2: House types | B2: Number of houses | D2: Total demand (kWh) | E2: Heating (kWh) | F2: Water (kWh) | G2: Electrical (kWh) | I2: Total demand (MWh) | J2: Heating (MWh) | K2: Water (MWh) | L2: Electrical (MWh) | N2: Total demand per (kWh) | O2: Heating (kWh) | P2: Water (kWh) | Q2: Electrical (kWh) | S2: Total demand (MWh) | T2: Heating (MWh) | U2: Water (MWh) | V2: Electrical (MWh) | Y2: Pre Retro | Z2: 25% Retrofit | AA2: 50% Retrofit | AB2: 75% Retrofit | AC2: Demand all houses retro (MWh) | AF2: Heating (kWh) | AG2: Water (kWh) | AH2: Electrical (kWh)
A3: Semidetached | B3: =48%*475 -> 228 | D3: 37150 | E3: 18500 | F3: 3500 | G3: =D3-E3-F3 -> 15150 | I3: =D3*$B3/1000 -> 8470.2 | J3: =E3*$B3/1000 -> 4218 | K3: =F3*$B3/1000 -> 798 | L3: 3454.2 | N3: =O3+P3+Q3 -> 10423.48485 | O3: =E3/11 -> 1681.818182 | P3: =F3/3 -> 1166.666667 | Q3: =G3/2 -> 7575 | S3: =N3*$B3/1000 -> 2376.554545 | T3: =O3*$B3/1000 -> 383.4545455 | U3: =P3*$B3/1000 -> 266 | V3: =Q3*$B3/1000 -> 1727.1 | Y3: =B3*D3/1000 -> 8470.2 | Z3: =$AC3*25%+75%*$B3*$D3/1000 -> 6946.788636 | AA3: =$AC3*50%+50%*$B3*$D3/1000 -> 5423.377273 | AB3: =$AC3*75%+25%*$B3*$D3/1000 -> 3899.965909 | AC3: =N3*B3/1000 -> 2376.554545 | AF3: =E3*100/$D3 -> 49.79811575 | AG3: =F3*100/$D3 -> 9.421265141 | AH3: =G3*100/$D3 -> 40.78061911
A4: Detached | B4: =33 -> 33 | D4: 62500 | E4: =AF$4*$D4 -> 31250 | F4: 6250 | G4: 25000 | I4: =D4*$B4/1000 -> 2062.5 | J4: =E4*$B4/1000 -> 1031.25 | K4: =F4*$B4/1000 -> 206.25 | L4: =G4*$B4/1000 -> 825 | N4: =O4+P4+Q4 -> 17424.24242 | O4: =E4/11 -> 2840.909091 | P4: =F4/3 -> 2083.333333 | Q4: =G4/2 -> 12500 | S4: =N4*$B4/1000 -> 575 | T4: =O4*$B4/1000 -> 93.75 | U4: 68.75 | V4: 412.5 | Y4: =B4*D4/1000 -> 2062.5 | Z4: =$AC4*25%+75%*$B4*$D4/1000 -> 1690.625 | AA4: =$AC4*50%+50%*$B4*$D4/1000 -> 1318.75 | AB4: =$AC4*75%+25%*$B4*$D4/1000 -> 946.875 | AC4: =N4*B4/1000 -> 575 | AF4: 0.5 | AG4: 0.1 | AH4: 0.4
A5: Mid-terrace | B5: 75 | D5: 36000 | E5: 18000 | F5: 3600 | G5: 14400 | I5: 2700 | J5: 1350 | K5: 270 | L5: 1080 | N5: 10036.36364 | O5: =E5/11 -> 1636.363636 | P5: 1200 | Q5: 7200 | S5: 752.7272727 | T5: 122.7272727 | U5: 90 | V5: 540 | Y5: =B5*D5/1000 -> 2700 | Z5: =$AC5*25%+75%*$B5*$D5/1000 -> 2213.181818 | AA5: =$AC5*50%+50%*$B5*$D5/1000 -> 1726.363636 | AB5: =$AC5*75%+25%*$B5*$D5/1000 -> 1239.545455 | AC5: =N5*B5/1000 -> 752.7272727
A6: Ground/mid-floor flat | B6: 82 | D6: 30240 | E6: 15120 | F6: 3024 | G6: 12096 | I6: 2479.68 | J6: 1239.84 | K6: 247.968 | L6: 991.872 | N6: 8430.545455 | O6: =E6/11 -> 1374.545455 | P6: 1008 | Q6: 6048 | S6: 691.3047273 | T6: 112.7127273 | U6: 82.656 | V6: 495.936 | Y6: =B6*D6/1000 -> 2479.68 | Z6: =$AC6*25%+75%*$B6*$D6/1000 -> 2032.586182 | AA6: =$AC6*50%+50%*$B6*$D6/1000 -> 1585.492364 | AB6: =$AC6*75%+25%*$B6*$D6/1000 -> 1138.398545 | AC6: =N6*B6/1000 -> 691.3047273
A7: Top-floor flat | B7: 57 | D7: 30500 | E7: 15250 | F7: 3050 | G7: 12200 | I7: 1738.5 | J7: 869.25 | K7: 173.85 | L7: 695.4 | N7: 8503.030303 | O7: =E7/11 -> 1386.363636 | P7: 1016.666667 | Q7: 6100 | S7: 484.6727273 | T7: 79.02272727 | U7: 57.95 | V7: 347.7 | Y7: =B7*D7/1000 -> 1738.5 | Z7: =$AC7*25%+75%*$B7*$D7/1000 -> 1425.043182 | AA7: =$AC7*50%+50%*$B7*$D7/1000 -> 1111.586364 | AB7: =$AC7*75%+25%*$B7*$D7/1000 -> 798.1295455 | AC7: =N7*B7/1000 -> 484.6727273
H8: Total (MWh/year) | I8: =SUM(I3:I7) -> 17450.88 | J8: =SUM(J3:J7) -> 8708.34 | K8: 1696.068 | L8: 7046.472 | R8: Total | S8: =SUM(S3:S7) -> 4880.259273 | T8: =SUM(T3:T7) -> 791.6672727 | U8: =SUM(U3:U7) -> 565.356 | V8: =SUM(V3:V7) -> 3523.236 | X8: Total | Y8: =SUM(Y3:Y7) -> 17450.88 | Z8: 14308.22482 | AA8: 11165.56964 | AB8: 8022.914455 | AC8: =SUM(AC3:AC7) -> 4880.259273
H9: Average | I9: =I8/475 -> 36.73869474 | J9: =J8/475 -> 18.33334737 | K9: =K8/475 -> 3.570669474 | L9: =L8/475 -> 14.83467789 | R9: Average | S9: =S8/475 -> 10.27423005 | T9: =T8/475 -> 1.666667943 | U9: =U8/475 -> 1.190223158 | V9: =V8/475 -> 7.417338947
S11: =S8/475 -> 10.27423005

Sheet EVERY EPC
A1: Postcode | B1: House No. | C1: Assessment Year | D1: Dwelling Type | E1: Floor Area (m^2) | F1: Energy Efficiency Rating - Current | G1: Energy Efficiency Rating - Potential | H1: Environmental Impact Rating - Current | I1: Environmental Impact Rating - Potential | J1: Energy Usuage (kWh/m^2 per year) | K1: Emissions (kg/m^2 per year) | L1: Energy usage (kWh/year) | M1: Emmissions (kgCO2/year) | N1: Main Heating Type | O1: Windows | P1: Hot Water | Q1: Wall Insulation | R1: Pitch Roof Insulation | AK1: Post retrofit values
A2: PH50 4QT | B2: GREYMARES | C2: 2018 | D2: Detached | E2: 102 | F2: 78 | G2: 80 | H2: 87 | I2: 89 | J2: 86 | K2: 19 | L2: =J2*E2 -> 8772 | M2: =K2*E2 -> 1938 | N2: Boilers + Radiators + Oil | O2: HP Glazing | P2: Boiler | Q2: 0.19 | R2: 0.08 | V2: No. | W2: % | Y2: Energy | Z2: Area | AB2: Ave energy | AC2: Ave floor area | AD2: Ave energy dem house kWh/year | AE2: Yearly demand of all houses | AF2: Average housing demand kW | AK2: Heating demand kWh/m2 | AL2: Ave heating demand per house kWh/year | AM2: Average Electrical heating demand house kWh/year | AN2: Electrical demand per house appliances kWh/year | AO2: Hot water | AP2: Ave housing elec demand kWh/year | AQ2: Total housing demand (kWh) | AR2: Average power for housing (kW) | AX2: ave mpg | AY2: ave gallons per year | AZ2: Ave kWh of petrol per year
A3: PH50 4RA | B3: TIGH NA SITH | C3: 2013 | D3: Detached | E3: 196 | F3: 76 | G3: 88 | H3: 68 | I3: 82 | J3: 122 | K3: 30 | L3: =J3*E3 -> 23912 | M3: =K3*E3 -> 5880 | N3: Boilers + Radiators + Oil | O3: Double Glazed | P3: Boiler | Q3: Timber Insulated | R3: 300mm Loft Insulation | T3: 1 | U3: End-Terrace/Semi-Detached | V3: =COUNTIF(D:D,"Semi-Detached")+COUNTIF(D:D,"End-Terrace") -> 162 | W3: =(V3/V8)*100 -> 48.21428571 | X3: =W3*475/100 -> 229.0178571 | AB3: =AVERAGE(J2:J337) -> 471.2202381 | AC3: =AVERAGE(E2:E337) -> 81.18154762 | AD3: =AVERAGE(L2:L337) -> 36735.29762 | AE3: =SUM(L2:L337)*475/COUNT(L2:L337) -> 17449266.37 | AF3: =AE3/(365*24) -> 1991.925385 | AK3: 40 | AL3: =AK3*AC3 -> 3247.261905 | AM3: =AL3/3 -> 1082.420635 | AN3: 3000 | AO3: =4*365 -> 1460 | AP3: =AM3+AN3+AO3 -> 5542.420635 | AQ3: =AP3*475 -> 2632649.802 | AR3: =AQ3/(365*24) -> 300.5307993 | AT3: 10000 | AU3: =AT3/365 -> 27.39726027 | AV3: =140/AU3 -> 5.11 | AX3: 40 | AY3: =AT3/AX3 -> 250 | AZ3: =45.5*10^6*4.5*0.71/1000 -> 145372.5
A4: PH50 4RT | B4: 4 | C4: 2017 | D4: Detached | E4: 133 | F4: 79 | G4: 89 | H4: 91 | I4: 99 | J4: 149 | K4: 11 | L4: 19817 | M4: 1463 | N4: Boilers + Radiators + Wood | O4: HP Glazing | P4: Boiler | Q4: 0.15 | R4: 0.14 | T4: 2 | U4: Top Flat | V4: =COUNTIF(D:D,"Top-Floor Flat") -> 40 | W4: =(V4/V8)*100 -> 11.9047619 | X4: =W4*475/100 -> 56.54761905 | AP4: Ev yearly
A5: PH50 4RT | B5: 1 | C5: 2018 | D5: Detached | E5: 138 | F5: 76 | G5: 103 | H5: 79 | I5: 103 | J5: 153 | K5: 25 | L5: 21114 | M5: 3450 | N5: ASHP + Electric | O5: HP Glazing | P5: Electric Immersion | Q5: 0.14 | R5: 0.14 | T5: 3 | U5: Ground/Mid Flat | V5: =COUNTIF(D:D,"Ground-Floor Flat")+COUNTIF(D:D,"Mid-Floor Flat") -> 58 | W5: =(V5/V8)*100 -> 17.26190476 | X5: 81.99404762
A6: PH50 4QU | B6: 3 | C6: 2012 | D6: Semi-Detached | E6: 136 | F6: 70 | G6: 72 | H6: 60 | I6: 62 | J6: 159 | K6: 40 | L6: 21624 | M6: 5440 | N6: Boilers + Radiators + Oil | O6: Double Glazed | P6: Boiler | Q6: Cavity Fill | R6: 300mm Loft Insulation | T6: 4 | U6: Mid-terrace | V6: =COUNTIF(D:D,"Mid-Terrrace") -> 53 | W6: =(V6/V8)*100 -> 15.77380952 | X6: 74.92559524 | AQ6: 930000 | AR6: =(AQ3+AQ6)/(8760) -> 406.6951828
A7: PH50 4SE | B7: Levenside | C7: 2013 | D7: Semi-Detached | E7: 170 | F7: 67 | G7: 82 | H7: 56 | I7: 73 | J7: 175 | K7: 43 | L7: 29750 | M7: 7310 | N7: Boilers + Radiators + Oil | O7: Double Glazed | P7: Boiler | Q7: Cavity Fill | R7: 200mm Loft Insulation | T7: 5 | U7: Detached | V7: =COUNTIF(D:D,"Detached") -> 23 | W7: =(V7/V8)*100 -> 6.845238095 | X7: 32.51488095
A8: PH50 4RT | B8: 8 | C8: 2017 | D8: Semi-Detached | E8: 91 | F8: 74 | G8: 89 | H8: 77 | I8: 90 | J8: 181 | K8: 31 | L8: 16471 | M8: 2821 | N8: ASHP + Electric | O8: HP Glazing | P8: Electric Immersion | Q8: 0.17 | R8: 0.14 | V8: =SUM(V3:V7) -> 336 | AR8: =AR6*8760 -> 3562649.802
A9: PH50 4RT | B9: 7 | C9: 2017 | D9: Semi-Detached | E9: 92 | F9: 74 | G9: 89 | H9: 77 | I9: 90 | J9: 181 | K9: 31 | L9: 16652 | M9: 2852 | N9: ASHP + Electric | O9: HP Glazing | P9: Electric Immersion | Q9: 0.17 | R9: 0.14 | U9: NO WALL INSULATION | V9: =COUNTIF(Q:Q,"Cavity wall no insulation")+COUNTIF(Q:Q,"solid Brick no insulation") +COUNTIF(Q:Q,"Timber frame, no insulation")+COUNTIF(Q:Q,"Granite, no insulation")+COUNT(Q:Q,"Sandstone, no insulation") -> 86 | W9: =(V9/V8)*100 -> 25.5952381
A10: PH50 4QL | B10: LOCHSIDE COTTAGE | C10: 2014 | D10: Detached | E10: 127 | F10: 68 | G10: 86 | H10: 59 | I10: 78 | J10: 183 | K10: 43 | L10: 23241 | M10: 5461 | N10: Boilers + Radiators + Oil | O10: Double Glazed | P10: Boiler | Q10: Timber Insulated | R10: 300mm Loft Insulation | U10: NO ROOF INSULATION | V10: =COUNTIF(R:R,"no insulation") -> 31 | W10: =(V10/V8)*100 -> 9.226190476
A11: PH50 4RA | B11: 19 | C11: 2010 | D11: Semi-Detached | E11: 97 | F11: 68 | G11: 71 | H11: 56 | I11: 60 | J11: 201 | K11: 44 | L11: 19497 | M11: 4268 | N11: Boilers + Radiators + Oil | O11: Double Glazed | P11: Boiler | Q11: Cavity Fill | R11: 300mm Loft Insulation | U11: SINGLE GLAZING | V11: =COUNTIF(O:O, "Single Glazing") -> 5 | W11: =(V11/V8)*100 -> 1.488095238
A12: PH50 4RA | B12: THE STEADINGS | C12: 2009 | D12: Semi-Detached | E12: 149 | F12: 61 | G12: 63 | H12: 56 | I12: 57 | J12: 209 | K12: 42 | L12: 31141 | M12: 6258 | N12: Boilers + Radiators + Oil | O12: Double Glazed | P12: Boiler | Q12: Cavity Fill | R12: 200mm Loft Insulation | U12: HP GLAZING | V12: =COUNTIF(O:O,"HP Glazing") -> 5 | W12: =(V12/V8)*100 -> 1.488095238
A13: PH50 4RA | B13: TIGH AN T SAOIR | C13: 2013 | D13: Detached | E13: 118 | F13: 64 | G13: 84 | H13: 63 | I13: 76 | J13: 210 | K13: 52 | L13: 24780 | M13: 6136 | N13: Boilers + Radiators + Oil | O13: Double Glazed | P13: Boiler | Q13: Timber Insulated | R13: 100mm Loft insulation | U13: HEAT PUMP | V13: =COUNTIF(N:N,"ASHP + Electric") -> 30 | W13: =(V13/V8)*100 -> 8.928571429
A14: PH50 4QX | B14: 19 | C14: 2018 | D14: Mid-terrrace | E14: 92 | F14: 69 | G14: 83 | H14: 63 | I14: 77 | J14: 210 | K14: 54 | L14: 19320 | M14: 4968 | N14: Boilers + Radiators + Oil | O14: Double Glazed | P14: Boiler | Q14: Cavity Fill | R14: 270mm Loft Insulation
A15: PH50 4QX | B15: 23 | C15: 2014 | D15: Semi-Detached | E15: 116 | F15: 64 | G15: 79 | H15: 53 | I15: 70 | J15: 210 | K15: 51 | L15: 24360 | M15: 5916 | N15: Boilers + Radiators + Oil | O15: Double Glazed | P15: Boiler | Q15: Cavity Fill | R15: No insulation
A16: PH50 4QX | B16: Eakie House | C16: 2017 | D16: Detached | E16: 85 | F16: 58 | G16: 72 | H16: 70 | I16: 82 | J16: 217 | K16: 47 | L16: 18445 | M16: 3995 | N16: Boilers + Radiators + Oil | O16: Double Glazed | P16: Boiler | Q16: Cavity Fill | R16: 400mm loft Insulation
A17: PH50 4QP | B17: 15 | C17: 2018 | D17: Mid-terrrace | E17: 69 | F17: 71 | G17: 88 | H17: 65 | I17: 83 | J17: 219 | K17: 57 | L17: 15111 | M17: 3933 | N17: Boilers + Radiators + Oil | O17: Double Glazed | P17: Boiler | Q17: Cavity Fill | R17: No insulation
A18: PH50 4QR | B18: 1 | C18: 2014 | D18: Semi-Detached | E18: 82 | F18: 65 | G18: 84 | H18: 54 | I18: 74 | J18: 223 | K18: 56 | L18: 18286 | M18: 4592 | N18: Boilers + Radiators + Oil | O18: Double Glazed | P18: Boiler | Q18: Cavity Fill | R18: 300mm Loft Insulation
A19: PH50 4QT | B19: 5 | C19: 2014 | D19: Semi-Detached | E19: 94 | F19: 64 | G19: 84 | H19: 63 | I19: 85 | J19: 223 | K19: 42 | L19: 20962 | M19: 3948 | N19: Boilers + Radiators + Oil | O19: Double Glazed | P19: Boiler | Q19: Cavity Fill | R19: 300mm Loft Insulation
A20: PH50 4RQ | B20: 6 | C20: 2018 | D20: Semi-Detached | E20: 98 | F20: 66 | G20: 82 | H20: 59 | I20: 75 | J20: 228 | K20: 60 | L20: 22344 | M20: 5880 | N20: Boilers + Radiators + Oil | O20: Double Glazed | P20: Boiler | Q20: Timber Insulated | R20: 150mm Loft insulation
A21: PH50 4QS | B21: Police House | C21: 2016 | D21: Detached | E21: 129 | F21: 66 | G21: 98 | H21: 70 | I21: 99 | J21: 229 | K21: 39 | L21: 29541 | M21: 5031 | N21: ASHP + Electric | O21: Double Glazed | P21: Boiler | Q21: Cavity Fill | R21: 300mm Loft Insulation
A22: PH50 4QW | B22: THE OLD POLICE HOUSE | C22: 2016 | D22: Detached | E22: 129 | F22: 66 | G22: 98 | H22: 70 | I22: 99 | J22: 229 | K22: 39 | L22: 29541 | M22: 5031 | N22: ASHP + Electric | O22: Double Glazed | P22: Boiler | Q22: Cavity Fill | R22: 300mm Loft Insulation
A23: PH50 4SE | B23: Allengrange | C23: 2018 | D23: Semi-Detached | E23: 175 | F23: 63 | G23: 74 | H23: 54 | I23: 67 | J23: 230 | K23: 60 | L23: 40250 | M23: 10500 | N23: Boilers + Radiators + Oil | O23: Double Glazed | P23: Boiler | Q23: Cavity Fill | R23: 250mm Loft insulation
A24: PH50 4RD | B24: 14 | C24: 2014 | D24: Semi-Detached | E24: 77 | F24: 69 | G24: 84 | H24: 67 | I24: 83 | J24: 231 | K24: 41 | L24: 17787 | M24: 3157 | N24: ASHP + Electric | O24: Double Glazed | P24: Boiler | Q24: Cavity Fill | R24: 200mm Loft Insulation
A25: PH50 4RH | B25: 8 | C25: 2018 | D25: Semi-Detached | E25: 94 | F25: 66 | G25: 83 | H25: 59 | I25: 76 | J25: 231 | K25: 60 | L25: 21714 | M25: 5640 | N25: Boilers + Radiators + Oil | O25: Double Glazed | P25: Boiler | Q25: Timber Insulated | R25: 270mm Loft Insulation
A26: PH50 4QX | B26: 24 | C26: 2018 | D26: Semi-Detached | E26: 193 | F26: 61 | G26: 74 | H26: 55 | I26: 69 | J26: 231 | K26: 57 | L26: 44583 | M26: 11001 | N26: Boilers + Radiators + Oil | O26: Double Glazed | P26: Boiler | Q26: Cavity Fill | R26: 50mm loft Insulation
A27: PH50 4QH | B27: 11 | C27: 2012 | D27: Mid-terrrace | E27: 69 | F27: 66 | G27: 67 | H27: 52 | I27: 54 | J27: 235 | K27: 60 | L27: 16215 | M27: 4140 | N27: Boilers + Radiators + Oil | O27: Double Glazed | P27: Boiler | Q27: Cavity Fill | R27: 150mm Loft insulation
A28: PH50 4SE | B28: The Moorings | C28: 2016 | D28: Semi-Detached | E28: 173 | F28: 62 | G28: 75 | H28: 53 | I28: 68 | J28: 235 | K28: 62 | L28: 40655 | M28: 10726 | N28: Boilers + Radiators + Oil | O28: Double Glazed | P28: Boiler | Q28: Cavity Fill | R28: 300mm Loft Insulation
A29: PH50 4RH | B29: 1 | C29: 2018 | D29: Semi-Detached | E29: 112 | F29: 64 | G29: 80 | H29: 56 | I29: 73 | J29: 236 | K29: 62 | L29: 26432 | M29: 6944 | N29: Boilers + Radiators + Oil | O29: Double Glazed | P29: Boiler | Q29: Timber Insulated | R29: 270mm Loft Insulation
A30: PH50 4QS | B30: 7 | C30: 2015 | D30: End-terrace | E30: 110 | F30: 65 | G30: 79 | H30: 58 | I30: 72 | J30: 237 | K30: 61 | L30: 26070 | M30: 6710 | N30: Boilers + Radiators + Oil | O30: Double Glazed | P30: Boiler | Q30: Cavity Fill | R30: 200mm Loft Insulation
A31: PH50 4QW | B31: 6 | C31: 2014 | D31: Semi-Detached | E31: 71 | F31: 65 | G31: 85 | H31: 54 | I31: 76 | J31: 238 | K31: 59 | L31: 16898 | M31: 4189 | N31: Boilers + Radiators + Oil | O31: Double Glazed | P31: Boiler | Q31: Cavity Fill | R31: 25mm Loft insulation
A32: PH50 4QX | B32: 9 | C32: 2018 | D32: End-terrace | E32: 88 | F32: 70 | G32: 86 | H32: 73 | I32: 87 | J32: 239 | K32: 40 | L32: 21032 | M32: 3520 | N32: GSHP + Electric | O32: Double Glazed | P32: Boiler | Q32: Timber Insulated | R32: 270mm Loft Insulation
A33: PH50 4QT | B33: 1 | C33: 2010 | D33: Semi-Detached | E33: 97 | F33: 61 | G33: 63 | H33: 55 | I33: 56 | J33: 240 | K33: 49 | L33: 23280 | M33: 4753 | N33: Boilers + Radiators + Oil | O33: Double Glazed | P33: Boiler | Q33: Cavity Fill | R33: 250mm Loft insulation
A34: PH50 4SE | B34: Tigh Na Cheo Garbhein | C34: 2011 | D34: Detached | E34: 452 | F34: 22 | G34: 36 | H34: 43 | I34: 55 | J34: 243 | K34: 50 | L34: 109836 | M34: 22600 | N34: Boilers + Radiators + Oil | O34: Double Glazing | P34: Electric Immersion | Q34: Cavity Fill | R34: 100mm Loft insulation
A35: PH50 4RA | B35: 18 | C35: 2014 | D35: Semi-Detached | E35: 82 | F35: 63 | G35: 83 | H35: 46 | I35: 70 | J35: 246 | K35: 68 | L35: 20172 | M35: 5576 | N35: Boilers + Radiators + Oil | O35: Double Glazed | P35: Boiler | Q35: Cavity wall no insulation | R35: 200mm Loft Insulation
A36: PH50 4RQ | B36: 41 | C36: 2017 | D36: Semi-Detached | E36: 130 | F36: 63 | G36: 75 | H36: 55 | I36: 67 | J36: 246 | K36: 63 | L36: 31980 | M36: 8190 | N36: Boilers + Radiators + Oil | O36: Double Glazed | P36: Boiler | Q36: Cavity Fill | R36: 300mm Loft Insulation
A37: PH50 4RD | B37: 13 | C37: 2014 | D37: Semi-Detached | E37: 77 | F37: 68 | G37: 83 | H37: 65 | I37: 80 | J37: 247 | K37: 44 | L37: 19019 | M37: 3388 | N37: ASHP + Electric | O37: Double Glazed | P37: Boiler | Q37: Cavity Fill | R37: 200mm Loft Insulation
A38: PH50 4RZ | B38: 15 | C38: 2014 | D38: Top-floor Flat | E38: 58 | F38: 71 | G38: 71 | H38: 65 | I38: 65 | J38: 249 | K38: 48 | L38: 14442 | M38: 2784 | N38: Boilers + Radiators + Wood | O38: Double Glazed | P38: Boiler | Q38: Cavity Fill | R38: 300mm Loft Insulation
A39: PH50 4QX | B39: 16 | C39: 2014 | D39: Semi-Detached | E39: 96 | F39: 64 | G39: 82 | H39: 91 | I39: 104 | J39: 250 | K39: 10 | L39: 24000 | M39: 960 | N39: Boilers + Radiators + Wood | O39: Double Glazed | P39: Boiler | Q39: Cavity Fill | R39: 100mm Loft insulation
A40: PH50 4QT | B40: TIGH-AN-RUDHA | C40: 2011 | D40: Detached | E40: 161 | F40: 52 | G40: 55 | H40: 40 | I40: 42 | J40: 251 | K40: 62 | L40: 40411 | M40: 9982 | N40: Boilers + Radiators + Oil | O40: Double Glazed | P40: Boiler | Q40: Cavity Fill | R40: 200mm Loft Insulation
A41: PH50 4QX | B41: 26 | C41: 2010 | D41: Semi-Detached | E41: 97 | F41: 62 | G41: 63 | H41: 51 | I41: 52 | J41: 251 | K41: 54 | L41: 24347 | M41: 5238 | N41: Boilers + Radiators + Oil | O41: Double Glazed | P41: Boiler | Q41: Cavity Fill | R41: 300mm Loft Insulation
A42: PH50 4QR | B42: 6 | C42: 2018 | D42: Semi-Detached | E42: 71 | F42: 50 | G42: 71 | H42: 66 | I42: 83 | J42: 255 | K42: 55 | L42: 18105 | M42: 3905 | N42: Boilers + Radiators + Oil | O42: Double Glazed | P42: Electric Immersion | Q42: Cavity Fill | R42: 350mm Loft Insulation
A43: PH50 4RD | B43: 1 | C43: 2014 | D43: Semi-Detached | E43: 76 | F43: 67 | G43: 83 | H43: 64 | I43: 79 | J43: 256 | K43: 45 | L43: 19456 | M43: 3420 | N43: ASHP + Electric | O43: Double Glazed | P43: Boiler | Q43: Cavity Fill | R43: 200mm Loft Insulation
A44: PH50 4RR | B44: 12 | C44: 2014 | D44: End-terrace | E44: 99 | F44: 57 | G44: 82 | H44: 47 | I44: 75 | J44: 260 | K44: 61 | L44: 25740 | M44: 6039 | N44: Boilers + Radiators + Oil | O44: Double Glazed | P44: Boiler | Q44: Cavity Fill | R44: No insulation
A45: PH50 4RH | B45: 5 | C45: 2019 | D45: Semi-Detached | E45: 98 | F45: 62 | G45: 83 | H45: 53 | I45: 76 | J45: 261 | K45: 69 | L45: 25578 | M45: 6762 | N45: Boilers + Radiators + Oil | O45: Double Glazed | P45: Boiler | Q45: Timber Insulated | R45: 150mm Loft insulation
A46: PH50 4RH | B46: 6 | C46: 2019 | D46: Semi-Detached | E46: 98 | F46: 62 | G46: 83 | H46: 53 | I46: 76 | J46: 261 | K46: 69 | L46: 25578 | M46: 6762 | N46: Boilers + Radiators + Oil | O46: Double Glazed | P46: Boiler | Q46: Timber Insulated | R46: 150mm Loft insulation
A47: PH50 4QP | B47: 3 | C47: 2015 | D47: Semi-Detached | E47: 86 | F47: 47 | G47: 95 | H47: 63 | I47: 103 | J47: 261 | K47: 56 | L47: 22446 | M47: 4816 | N47: Boilers + Radiators + Oil | O47: Double Glazed | P47: Boiler | Q47: Cavity wall no insulation | R47: 75mm loft Insulation
A48: PH50 4QJ | B48: 10 | C48: 2013 | D48: Semi-Detached | E48: 87 | F48: 61 | G48: 75 | H48: 57 | I48: 71 | J48: 262 | K48: 51 | L48: 22794 | M48: 4437 | N48: Boilers + Radiators | O48: Double Glazed | P48: Boiler | Q48: Cavity Fill | R48: No insulation
A49: PH50 4RD | B49: 4 | C49: 2014 | D49: Semi-Detached | E49: 76 | F49: 66 | G49: 82 | H49: 62 | I49: 78 | J49: 263 | K49: 47 | L49: 19988 | M49: 3572 | N49: ASHP + Electric | O49: Double Glazed | P49: Boiler | Q49: Cavity Fill | R49: 250mm Loft insulation
A50: PH50 4RA | B50: 22 | C50: 2018 | D50: Semi-Detached | E50: 98 | F50: 64 | G50: 82 | H50: 55 | I50: 76 | J50: 263 | K50: 67 | L50: 25774 | M50: 6566 | N50: Boilers + Radiators + Oil | O50: Double Glazed | P50: Boiler | Q50: Timber Insulated | R50: 270mm Loft Insulation
A51: PH50 4RS | B51: 7 | C51: 2012 | D51: Top-floor Flat | E51: 56 | F51: 72 | G51: 75 | H51: 54 | I51: 56 | J51: 267 | K51: 65 | L51: 14952 | M51: 3640 | N51: Electric Storage | O51: Double Glazed | P51: Electric Immersion | Q51: Cavity Fill | R51: 200mm Loft Insulation
A52: PH50 4RQ | B52: 14 | C52: 2018 | D52: Semi-Detached | E52: 98 | F52: 69 | G52: 85 | H52: 67 | I52: 84 | J52: 267 | K52: 45 | L52: 26166 | M52: 4410 | N52: ASHP + Electric | O52: Double Glazed | P52: Electric Immersion | Q52: Timber Insulated | R52: 270mm Loft Insulation
A53: PH50 4RD | B53: 3 | C53: 2014 | D53: Semi-Detached | E53: 75 | F53: 66 | G53: 82 | H53: 62 | I53: 78 | J53: 268 | K53: 47 | L53: 20100 | M53: 3525 | N53: ASHP + Electric | O53: Double Glazed | P53: Boiler | Q53: Cavity Fill | R53: 250mm Loft insulation
A54: PH50 4RN | B54: 4 | C54: 2013 | D54: Semi-Detached | E54: 102 | F54: 73 | G54: 83 | H54: 57 | I54: 70 | J54: 270 | K54: 48 | L54: 27540 | M54: 4896 | N54: Electric Storage | O54: Double Glazed | P54: Boiler | Q54: Timber Insulated | R54: 300mm Loft Insulation
A55: PH50 4RR | B55: 16 | C55: 2014 | D55: End-terrace | E55: 72 | F55: 58 | G55: 79 | H55: 62 | I55: 81 | J55: 274 | K55: 49 | L55: 19728 | M55: 3528 | N55: ASHP + Electric | O55: Double Glazed | P55: Boiler | Q55: Cavity Fill | R55: 300mm Loft Insulation
A56: PH50 4RN | B56: 6 | C56: 2014 | D56: Semi-Detached | E56: 103 | F56: 70 | G56: 81 | H56: 56 | I56: 69 | J56: 277 | K56: 49 | L56: 28531 | M56: 5047 | N56: Electric Storage | O56: Double Glazed | P56: Boiler | Q56: Timber Insulated | R56: 200mm Loft Insulation
A57: PH50 4RP | B57: 16 | C57: 2014 | D57: Mid-terrrace | E57: 59 | F57: 61 | G57: 87 | H57: 64 | I57: 89 | J57: 277 | K57: 49 | L57: 16343 | M57: 2891 | N57: ASHP + Electric | O57: Double Glazed | P57: Boiler | Q57: Cavity Fill | R57: 300mm Loft Insulation
A58: PH50 4QH | B58: 5 | C58: 2016 | D58: Semi-Detached | E58: 91 | F58: 60 | G58: 76 | H58: 53 | I58: 69 | J58: 282 | K58: 69 | L58: 25662 | M58: 6279 | N58: Boilers + Radiators + Oil | O58: Double Glazed | P58: Boiler | Q58: Cavity Fill | R58: 300mm Loft Insulation
A59: PH50 4QH | B59: 3 | C59: 2015 | D59: Semi-Detached | E59: 89 | F59: 59 | G59: 103 | H59: 51 | I59: 95 | J59: 283 | K59: 74 | L59: 25187 | M59: 6586 | N59: Boilers + Radiators + Oil | O59: Double Glazed | P59: Boiler | Q59: Cavity Fill | R59: 100mm Loft insulation
A60: PH50 4RU | B60: 20 | C60: 2013 | D60: Ground-floor Flat | E60: 56 | F60: 62 | G60: 76 | H60: 51 | I60: 69 | J60: 283 | K60: 70 | L60: 15848 | M60: 3920 | N60: Boilers + Radiators + Oil | O60: Double Glazed | P60: Electric Immersion | Q60: Cavity wall no isulation | R60: n/a
A61: PH50 4QR | B61: 18 | C61: 2019 | D61: Semi-Detached | E61: 70 | F61: 45 | G61: 69 | H61: 62 | I61: 82 | J61: 284 | K61: 62 | L61: 19880 | M61: 4340 | N61: Boilers + Radiators + Oil | O61: Double Glazed | P61: Boiler | Q61: Cavity Fill | R61: 150mm Loft insulation
A62: PH50 4QW | B62: 7 | C62: 2014 | D62: Semi-Detached | E62: 107 | F62: 51 | G62: 88 | H62: 40 | I62: 79 | J62: 284 | K62: 71 | L62: 30388 | M62: 7597 | N62: Boilers + Radiators + Oil | O62: Double Glazed | P62: Boiler | Q62: Solid Brick no insulation | R62: No insulation
A63: PH50 4QH | B63: 8 | C63: 2018 | D63: Semi-Detached | E63: 92 | F63: 45 | G63: 65 | H63: 60 | I63: 77 | J63: 285 | K63: 59 | L63: 26220 | M63: 5428 | N63: Boilers + Radiators + Oil | O63: Double Glazed | P63: Boiler | Q63: Cavity Fill | R63: 300mm Loft Insulation
A64: PH50 4RR | B64: 4 | C64: 2011 | D64: End-terrace | E64: 69 | F64: 45 | G64: 48 | H64: 45 | I64: 48 | J64: 288 | K64: 70 | L64: 19872 | M64: 4830 | N64: Boilers + Radiators + Oil | O64: Double Glazed | P64: Boiler | Q64: Cavity Fill | R64: 250mm Loft insulation
A65: PH50 4QP | B65: 11 | C65: 2011 | D65: End-terrace | E65: 85 | F65: 53 | G65: 57 | H65: 41 | I65: 45 | J65: 288 | K65: 72 | L65: 24480 | M65: 6120 | N65: Boliers + Radiators + Oil | O65: Double Glazed | P65: Boiler | Q65: Cavity wall no insulation | R65: No insulation
A66: PH50 4RQ | B66: 31 | C66: 2015 | D66: Semi-Detached | E66: 76 | F66: 59 | G66: 80 | H66: 51 | I66: 73 | J66: 293 | K66: 77 | L66: 22268 | M66: 5852 | N66: Boilers + Radiators + Oil | O66: Double Glazed | P66: Boiler | Q66: Cavity Fill | R66: 200mm Loft Insulation
A67: PH50 4QL | B67: SCHOOL LODGE | C67: 2013 | D67: Detached | E67: 124 | F67: 68 | G67: 83 | H67: 51 | I67: 68 | J67: 298 | K67: 53 | L67: =J67*E67 -> 36952 | M67: =K67*E67 -> 6572 | N67: Electric Storage | O67: Double Glazed | P67: Electric Immersion | Q67: Cavity Fill | R67: 300mm Loft Insulation
A68: PH50 4RQ | B68: 7 | C68: 2010 | D68: Semi-Detached | E68: 84 | F68: 57 | G68: 62 | H68: 45 | I68: 50 | J68: 300 | K68: 65 | L68: 25200 | M68: 5460 | N68: Boilers + Radiators + Coal | O68: Double Glazed | P68: Boiler | Q68: Solid Brick no insulation | R68: 300mm Loft Insulation
A69: PH50 4SB | B69: 3 | C69: 2016 | D69: End-terrace | E69: 133 | F69: 51 | G69: 94 | H69: 43 | I69: 85 | J69: 302 | K69: 80 | L69: 40166 | M69: 10640 | N69: Boilers + Radiators + Oil | O69: Double Glazed | P69: Boiler | Q69: Solid Brick internal insulation | R69: 200mm Loft Insulation
A70: PH50 4RR | B70: 11 | C70: 2013 | D70: Mid-terrrace | E70: 73 | F70: 61 | G70: 84 | H70: 53 | I70: 77 | J70: 304 | K70: 59 | L70: 22192 | M70: 4307 | N70: Boilers + Radiators + Wood | O70: Double Glazed | P70: Boiler | Q70: Cavity Fill | R70: 100mm Loft insulation
A71: PH50 4SE | B71: Argus | C71: 2014 | D71: Detached | E71: 285 | F71: 34 | G71: 50 | H71: 90 | I71: 97 | J71: 306 | K71: 9 | L71: 87210 | M71: 2565 | N71: Boilers + Radiators + Wood | O71: Single Glazing | P71: Boiler | Q71: Timber frame, no insulation | R71: 300mm Loft Insulation
A72: PH50 4QW | B72: 1 | C72: 2018 | D72: Semi-Detached | E72: 69 | F72: 61 | G72: 81 | H72: 52 | I72: 73 | J72: 311 | K72: 80 | L72: 21459 | M72: 5520 | N72: Boilers + Radiators + Oil | O72: Double Glazed | P72: Boiler | Q72: Cavity Fill | R72: 200mm Loft Insulation
A73: PH50 4QJ | B73: 8 | C73: 2016 | D73: Semi-Detached | E73: 78 | F73: 59 | G73: 80 | H73: 51 | I73: 72 | J73: 315 | K73: 80 | L73: 24570 | M73: 6240 | N73: Boilers + Radiators + Oil | O73: Double Glazed | P73: Boiler | Q73: Cavity Fill | R73: 250mm Loft insulation
A74: PH50 4RU | B74: 8 | C74: 2013 | D74: Top-floor Flat | E74: 78 | F74: 51 | G74: 52 | H74: 54 | I74: 54 | J74: 318 | K74: 57 | L74: 24804 | M74: 4446 | N74: Electric Storage | O74: Double Glazed | P74: Electric Immersion | Q74: Cavity Fill | R74: 250mm Loft insulation
A75: PH50 4QR | B75: 11 | C75: 2017 | D75: Semi-Detached | E75: 68 | F75: 58 | G75: 84 | H75: 50 | I75: 77 | J75: 318 | K75: 83 | L75: 21624 | M75: 5644 | N75: Boilers + Radiators + Oil | O75: Double Glazed | P75: Boiler | Q75: Cavity Fill | R75: No insulation
A76: PH50 4RZ | B76: 20 | C76: 2010 | D76: Top-floor Flat | E76: 56 | F76: 74 | G76: 75 | H76: 62 | I76: 62 | J76: 320 | K76: 51 | L76: 17920 | M76: 2856 | N76: Electric Storage | O76: Double Glazed | P76: Electric Immersion | Q76: Cavity Fill | R76: 300mm Loft Insulation
A77: PH50 4RQ | B77: 5 | C77: 2010 | D77: Semi-Detached | E77: 84 | F77: 54 | G77: 55 | H77: 43 | I77: 44 | J77: 320 | K77: 69 | L77: 26880 | M77: 5796 | N77: Boilers + Radiators + Oil | O77: Double Glazed | P77: Boiler | Q77: Solid Brick no insulation | R77: 300mm Loft Insulation
A78: PH50 4QY | B78: 8 | C78: 2017 | D78: Semi-Detached | E78: 60 | F78: 62 | G78: 84 | H78: 66 | I78: 85 | J78: 325 | K78: 55 | L78: 19500 | M78: 3300 | N78: ASHP + Electric | O78: Double Glazed | P78: Boiler | Q78: Cavity Fill | R78: 200mm Loft Insulation
A79: PH50 4RG | B79: 5 | C79: 2014 | D79: Semi-Detached | E79: 44 | F79: 65 | G79: 90 | H79: 64 | I79: 89 | J79: 325 | K79: 57 | L79: 14300 | M79: 2508 | N79: ASHP + Electric | O79: Double Glazed | P79: Boiler | Q79: Cavity Fill | R79: 200mm Loft Insulation
A80: PH50 4RG | B80: 7 | C80: 2013 | D80: Semi-Detached | E80: 44 | F80: 61 | G80: 86 | H80: 64 | I80: 87 | J80: 325 | K80: 57 | L80: 14300 | M80: 2508 | N80: ASHP + Electric | O80: Double Glazed | P80: Boiler | Q80: Cavity wall no insulation | R80: 300mm Loft Insulation
A81: PH50 4QR | B81: 3 | C81: 2014 | D81: Semi-Detached | E81: 66 | F81: 55 | G81: 73 | H81: 40 | I81: 54 | J81: 325 | K81: 84 | L81: 21450 | M81: 5544 | N81: Boilers + Radiators | O81: Double Glazed | P81: Boiler | Q81: Cavity wall no insulation | R81: No insulation
A82: PH50 4GZ | B82: 3 | C82: 2017 | D82: Semi-Detached | E82: 59 | F82: 61 | G82: 83 | H82: 66 | I82: 85 | J82: 326 | K82: 55 | L82: 19234 | M82: 3245 | N82: ASHP + Electric | O82: Double Glazed | P82: Boiler | Q82: Cavity Fill | R82: 250mm Loft insulation
A83: PH50 4RG | B83: 8 | C83: 2014 | D83: Semi-Detached | E83: 43 | F83: 67 | G83: 88 | H83: 63 | I83: 85 | J83: 326 | K83: 58 | L83: 14018 | M83: 2494 | N83: ASHP + Electric | O83: Double Glazed | P83: Boiler | Q83: Cavity Fill | R83: 250mm Loft insulation
A84: PH50 4QY | B84: 5 | C84: 2017 | D84: Semi-Detached | E84: 59 | F84: 62 | G84: 83 | H84: 66 | I84: 85 | J84: 327 | K84: 55 | L84: 19293 | M84: 3245 | N84: ASHP + Electric | O84: Double Glazed | P84: Boiler | Q84: Cavity Fill | R84: 200mm Loft Insulation
A85: PH50 4RF | B85: 11 | C85: 2017 | D85: Semi-Detached | E85: 85 | F85: 57 | G85: 74 | H85: 62 | I85: 77 | J85: 328 | K85: 56 | L85: 27880 | M85: 4760 | N85: ASHP + Electric | O85: Double Glazed | P85: Boiler | Q85: Cavity Fill | R85: 200mm Loft Insulation
A86: PH50 4RQ | B86: 36 | C86: 2017 | D86: Semi-Detached | E86: 94 | F86: 59 | G86: 76 | H86: 87 | I86: 98 | J86: 329 | K86: 19 | L86: 30926 | M86: 1786 | N86: Boilers + Radiators + Wood | O86: Double Glazed | P86: Boiler | Q86: Cavity Fill | R86: 200mm Loft Insulation
A87: PH50 4RF | B87: 14 | C87: 2017 | D87: Semi-Detached | E87: 84 | F87: 57 | G87: 74 | H87: 62 | I87: 77 | J87: 330 | K87: 56 | L87: 27720 | M87: 4704 | N87: ASHP + Electric | O87: Double Glazed | P87: Boiler | Q87: Cavity Fill | R87: 150mm Loft insulation
A88: PH50 4RZ | B88: 16 | C88: 2010 | D88: Top-floor Flat | E88: 60 | F88: 72 | G88: 72 | H88: 59 | I88: 59 | J88: 332 | K88: 53 | L88: 19920 | M88: 3180 | N88: Electric Storage | O88: Double Glazed | P88: Electric Immersion | Q88: Cavity Fill | R88: 300mm Loft Insulation
A89: PH50 4QX | B89: 14 | C89: 2016 | D89: Semi-Detached | E89: 92 | F89: 60 | G89: 79 | H89: 52 | I89: 70 | J89: 334 | K89: 71 | L89: 30728 | M89: 6532 | N89: Boilers + Radiators + Wood | O89: Double Glazed | P89: Boiler | Q89: Cavity Fill | R89: 250mm Loft insulation
A90: PH50 4QH | B90: THE OLD SURGERY | C90: 2018 | D90: Detached | E90: 101 | F90: 62 | G90: 74 | H90: 59 | I90: 73 | J90: 335 | K90: 57 | L90: 33835 | M90: 5757 | N90: ASHP + Electric | O90: Double Glazed | P90: Electric Immersion | Q90: Cavity Fill | R90: 270mm Loft Insulation
A91: PH50 4RH | B91: 3 | C91: 2018 | D91: Semi-Detached | E91: 90 | F91: 51 | G91: 67 | H91: 43 | I91: 56 | J91: 335 | K91: 88 | L91: 30150 | M91: 7920 | N91: Boilers + Radiators + Oil | O91: Double Glazed | P91: Boiler | Q91: Solid Brick no insulation | R91: 300mm Loft Insulation
A92: PH50 4RR | B92: 8 | C92: 2016 | D92: End-terrace | E92: 72 | F92: 57 | G92: 77 | H92: 50 | I92: 70 | J92: 336 | K92: 82 | L92: 24192 | M92: 5904 | N92: Boilers + Radiators + Oil | O92: Double Glazed | P92: Boiler | Q92: Cavity Fill | R92: 200mm Loft Insulation
A93: PH50 4SE | B93: Garbhein Cottage | C93: 2014 | D93: Detached | E93: 85 | F93: 30 | G93: 46 | H93: 41 | I93: 55 | J93: 336 | K93: 75 | L93: 28560 | M93: 6375 | N93: Boilers + Radiators + Oil | O93: Double Glazed | P93: Boiler | Q93: Granite, internal insulation | R93: 200mm Loft Insulation
A94: PH50 4QH | B94: 15 | C94: 2015 | D94: Mid-terrrace | E94: 85 | F94: 50 | G94: 108 | H94: 43 | I94: 100 | J94: 338 | K94: 88 | L94: 28730 | M94: 7480 | N94: Boilers + Radiators + Oil | O94: Double Glazed | P94: Boiler | Q94: Cavity Fill | R94: 75mm loft Insulation
A95: PH50 4RY | B95: 4 | C95: 2013 | D95: Top-floor Flat | E95: 58 | F95: 66 | G95: 67 | H95: 54 | I95: 56 | J95: 341 | K95: 63 | L95: 19778 | M95: 3654 | N95: Electric Storage | O95: Double Glazed | P95: Electric Immersion | Q95: Cavity wall no insulation | R95: 250mm Loft insulation
A96: PH50 4RR | B96: 5 | C96: 2017 | D96: End-terrace | E96: 72 | F96: 55 | G96: 79 | H96: 46 | I96: 70 | J96: 342 | K96: 88 | L96: 24624 | M96: 6336 | N96: Boilers + Radiators + Oil | O96: Double Glazed | P96: Boiler | Q96: Cavity wall no Insulation | R96: 270mm Loft Insulation
A97: PH50 4RQ | B97: 23 | C97: 2018 | D97: Semi-Detached | E97: 98 | F97: 58 | G97: 77 | H97: 52 | I97: 71 | J97: 346 | K97: 72 | L97: 33908 | M97: 7056 | N97: Electric Storage | O97: Double Glazed | P97: Electric Immersion | Q97: Timber Insulated | R97: 200mm Loft Insulation
A98: PH50 4RS | B98: 13 | C98: 2010 | D98: Mid-terrrace | E98: 55 | F98: 42 | G98: 42 | H98: 61 | I98: 61 | J98: 350 | K98: 53 | L98: 19250 | M98: 2915 | N98: Electric Storage | O98: Double Glazed | P98: Electric Immersion | Q98: Cavity Fill | R98: 300mm Loft Insulation
A99: PH50 4RU | B99: 46 | C99: 2018 | D99: Mid-floor Flat | E99: 81 | F99: 57 | G99: 76 | H99: 61 | I99: 60 | J99: 351 | K99: 59 | L99: 28431 | M99: 4779 | N99: Electric Storage | O99: Double Glazed | P99: Electric Immersion | Q99: Cavity Fill | R99: n/a
A100: PH50 4RQ | B100: 11 | C100: 2017 | D100: Mid-terrrace | E100: 92 | F100: 57 | G100: 73 | H100: 90 | I100: 100 | J100: 352 | K100: 14 | L100: 32384 | M100: 1288 | N100: Boilers + Radiators + Wood | O100: Double Glazed | P100: Boiler | Q100: Timber Insulated | R100: 150mm Loft insulation
A101: PH50 4SD | B101: 17 | C101: 2015 | D101: Ground-floor Flat | E101: 59 | F101: 54 | G101: 71 | H101: 46 | I101: 65 | J101: 354 | K101: 92 | L101: 20886 | M101: 5428 | N101: Electric Storage | O101: Double Glazed | P101: Electric Immersion | Q101: Cavity Fill | R101: n/a
A102: PH50 4RS | B102: 11 | C102: 2014 | D102: Mid-terrrace | E102: 62 | F102: 50 | G102: 64 | H102: 54 | I102: 67 | J102: 356 | K102: 63 | L102: 22072 | M102: 3906 | N102: Boilers + Radiators + Oil | O102: Double Glazed | P102: Boiler | Q102: Cavity Fill | R102: 300mm Loft Insulation
A103: PH50 4RQ | B103: 15 | C103: 2012 | D103: End-terrace | E103: 91 | F103: 52 | G103: 56 | H103: 45 | I103: 49 | J103: 357 | K103: 63 | L103: 32487 | M103: 5733 | N103: Electric Storage | O103: Double Glazed | P103: Electric Immersion | Q103: Timber Insulated | R103: 75mm loft Insulation
A104: PH50 4RQ | B104: 47 | C104: 2017 | D104: Mid-terrrace | E104: 94 | F104: 49 | G104: 98 | H104: 43 | I104: 90 | J104: 359 | K104: 89 | L104: 33746 | M104: 8366 | N104: Boilers + Radiators + Oil | O104: Double Glazed | P104: Boiler | Q104: Cavity wall no insulation | R104: 150mm Loft insulation
A105: PH50 4RH | B105: 11 | C105: 2018 | D105: End-terrace | E105: 98 | F105: 57 | G105: 77 | H105: 51 | I105: 69 | J105: 361 | K105: 76 | L105: 35378 | M105: 7448 | N105: Electric Storage | O105: Double Glazed | P105: Electric Immersion | Q105: Timber Insulated | R105: 270mm Loft Insulation
A106: PH50 4RZ | B106: 9 | C106: 2010 | D106: Top-floor Flat | E106: 57 | F106: 55 | G106: 59 | H106: 38 | I106: 42 | J106: 362 | K106: 91 | L106: 20634 | M106: 5187 | N106: Boilers + Radiators + Coal | O106: Double Glazed | P106: Boiler | Q106: Cavity Fill | R106: 300mm Loft Insulation
A107: PH50 4RY | B107: 10 | C107: 2010 | D107: Top-floor Flat | E107: 57 | F107: 55 | G107: 59 | H107: 38 | I107: 42 | J107: 362 | K107: 91 | L107: 20634 | M107: 5187 | N107: Boilers + Radiators + Coal | O107: Double Glazed | P107: Boiler | Q107: Cavity wall no insulation | R107: 300mm Loft Insulation
A108: PH50 4RU | B108: 50 | C108: 2017 | D108: Top-floor Flat | E108: 72 | F108: 60 | G108: 72 | H108: 51 | I108: 66 | J108: 364 | K108: 78 | L108: 26208 | M108: 5616 | N108: Boilers + Radiators + Wood | O108: Double Glazed | P108: Boiler | Q108: Cavity wall no insulation | R108: 150mm Loft insulation
A109: PH50 4RZ | B109: 11 | C109: 2014 | D109: Top-floor Flat | E109: 54 | F109: 69 | G109: 71 | H109: 54 | I109: 55 | J109: 365 | K109: 65 | L109: 19710 | M109: 3510 | N109: Electric Storage | O109: Double Glazed | P109: Electric Immersion | Q109: Cavity Fill | R109: 300mm Loft Insulation
A110: PH50 4SE | B110: Garbhein House | C110: 2009 | D110: Detached | E110: 320 | F110: 28 | G110: 31 | H110: 27 | I110: 28 | J110: 366 | K110: 76 | L110: 117120 | M110: 24320 | N110: Boilers + Radiators + Oil | O110: Single Glazing | P110: Electric Immersion | Q110: Cavity wall no Insulation | R110: No insulation
A111: PH50 4QR | B111: 13 | C111: 2014 | D111: Semi-Detached | E111: 72 | F111: 52 | G111: 83 | H111: 41 | I111: 73 | J111: 367 | K111: 102 | L111: 26424 | M111: 7344 | N111: Boilers + Radiators + Oil | O111: Double Glazed | P111: Boiler | Q111: Cavity wall no insulation | R111: 150mm Loft insulation
A112: PH50 4QX | B112: 22 | C112: 2018 | D112: Semi-Detached | E112: 103 | F112: 44 | G112: 76 | H112: 37 | I112: 68 | J112: 367 | K112: 97 | L112: 37801 | M112: 9991 | N112: Boilers + Radiators + Oil | O112: Double Glazed | P112: Boiler | Q112: Cavity wall, no insulation | R112: 200mm Loft Insulation
A113: PH50 4RX | B113: 10 | C113: 2018 | D113: Ground-floor Flat | E113: 52 | F113: 58 | G113: 74 | H113: 51 | I113: 59 | J113: 368 | K113: 88 | L113: 19136 | M113: 4576 | N113: Boilers + Radiators + Oil | O113: Double Glazed | P113: Boiler | Q113: Cavity Fill | R113: n/a
A114: PH50 4RZ | B114: 8 | C114: 2009 | D114: Top-floor Flat | E114: 53 | F114: 69 | G114: 69 | H114: 60 | I114: 60 | J114: 369 | K114: 56 | L114: 19557 | M114: 2968 | N114: Electric Storage | O114: Double Glazed | P114: Electric Immersion | Q114: Cavity Fill | R114: 250mm Loft insulation
A115: PH50 4RB | B115: 8 | C115: 2015 | D115: Top-floor Flat | E115: 51 | F115: 78 | G115: 80 | H115: 66 | I115: 69 | J115: 375 | K115: 63 | L115: 19125 | M115: 3213 | N115: Electric Storage | O115: Double Glazed | P115: Electric Immersion | Q115: Cavity Fill | R115: 270mm Loft Insulation
A116: PH50 4RS | B116: 41 | C116: 2018 | D116: Mid-terrrace | E116: 63 | F116: 59 | G116: 82 | H116: 63 | I116: 84 | J116: 376 | K116: 64 | L116: 23688 | M116: 4032 | N116: ASHP + Electric | O116: Double Glazed | P116: Boiler | Q116: Cavity Fill | R116: 300mm Loft Insulation
A117: PH50 4RS | B117: 23 | C117: 2010 | D117: Mid-terrrace | E117: 63 | F117: 35 | G117: 35 | H117: 56 | I117: 56 | J117: 376 | K117: 100 | L117: 23688 | M117: 6300 | N117: Electric Storage | O117: Double Glazed | P117: Electric Immersion | Q117: Cavity Fill | R117: 300mm Loft Insulation
A118: PH50 4SE | B118: Ossian | C118: 2014 | D118: Detached | E118: 108 | F118: 37 | G118: 81 | H118: 26 | I118: 67 | J118: 379 | K118: 101 | L118: 40932 | M118: 10908 | N118: Boilers + Radiators + Oil | O118: Double Glazed | P118: Boiler | Q118: Cavity wall no Insulation | R118: No insulation
A119: PH50 4RQ | B119: 55 | C119: 2010 | D119: Semi-Detached | E119: 100 | F119: 40 | G119: 44 | H119: 28 | I119: 31 | J119: 380 | K119: 94 | L119: 38000 | M119: 9400 | N119: Boilers + Radiators + Coal | O119: Double Glazed | P119: Boiler | Q119: Cavity Fill | R119: 300mm Loft Insulation
A120: PH50 4RY | B120: 1 | C120: 2010 | D120: Top-floor Flat | E120: 58 | F120: 63 | G120: 64 | H120: 57 | I120: 57 | J120: 381 | K120: 57 | L120: 22098 | M120: 3306 | N120: Electric Storage | O120: Double Glazed | P120: Electric Immersion | Q120: Cavity wall no insulation | R120: 200mm Loft Insulation
A121: PH50 4QR | B121: 16 | C121: 2014 | D121: Semi-Detached | E121: 100 | F121: 57 | G121: 79 | H121: 43 | I121: 63 | J121: 381 | K121: 68 | L121: 38100 | M121: 6800 | N121: Electric Storage | O121: Double Glazed | P121: Electric Immersion | Q121: Cavity Fill | R121: 250mm Loft insulation
A122: PH50 4RQ | B122: 12 | C122: 2018 | D122: Semi-Detached | E122: 91 | F122: 45 | G122: 62 | H122: 41 | I122: 53 | J122: 381 | K122: 93 | L122: 34671 | M122: 8463 | N122: Boilers + Radiators + Oil | O122: Double Glazed | P122: Boiler | Q122: Cavity wall no insulation | R122: 300mm Loft Insulation
A123: PH50 4RB | B123: 26 | C123: 2015 | D123: Top-floor Flat | E123: 53 | F123: 78 | G123: 79 | H123: 64 | I123: 67 | J123: 382 | K123: 65 | L123: 20246 | M123: 3445 | N123: Electric Storage | O123: Double Glazed | P123: Electric Immersion | Q123: Cavity Fill | R123: 270mm Loft Insulation
A124: PH50 4RQ | B124: 18 | C124: 2011 | D124: Semi-Detached | E124: 79 | F124: 59 | G124: 61 | H124: 43 | I124: 45 | J124: 386 | K124: 70 | L124: 30494 | M124: 5530 | N124: Electric Storage | O124: Double Glazed | P124: Electric Immersion | Q124: Cavity Fill | R124: 300mm Loft Insulation
A125: PH50 4RS | B125: 37 | C125: 2013 | D125: End-terrace | E125: 62 | F125: 55 | G125: 81 | H125: 46 | I125: 70 | J125: 388 | K125: 76 | L125: 24056 | M125: 4712 | N125: Boilers + Radiators + Wood | O125: Double Glazed | P125: Boiler | Q125: Cavity Fill | R125: 250mm Loft insulation
A126: PH50 4QX | B126: 17 | C126: 2010 | D126: End-terrace | E126: 97 | F126: 55 | G126: 56 | H126: 48 | I126: 48 | J126: 388 | K126: 59 | L126: 37636 | M126: 5723 | N126: Electric Storage | O126: Double Glazed | P126: Electric Immersion | Q126: Cavity Fill | R126: 300mm Loft Insulation
A127: PH50 4QX | B127: 20 | C127: 2010 | D127: End-terrace | E127: 97 | F127: 56 | G127: 56 | H127: 48 | I127: 48 | J127: 388 | K127: 58 | L127: 37636 | M127: 5626 | N127: Electric Storage | O127: Double Glazed | P127: Electric Immersion | Q127: Cavity Fill | R127: 300mm Loft Insulation
A128: PH50 4RQ | B128: 39 | C128: 2010 | D128: Semi-Detached | E128: 90 | F128: 41 | G128: 45 | H128: 28 | I128: 32 | J128: 389 | K128: 97 | L128: 35010 | M128: 8730 | N128: Boilers + Radiators + Coal | O128: Double Glazed | P128: Boiler | Q128: Cavity Fill | R128: 300mm Loft Insulation
A129: PH50 4RR | B129: 1 | C129: 2017 | D129: End-terrace | E129: 73 | F129: 56 | G129: 76 | H129: 86 | I129: 98 | J129: 390 | K129: 23 | L129: 28470 | M129: 1679 | N129: Boilers + Radiators + Wood | O129: Double Glazed | P129: Boiler | Q129: Cavity Fill | R129: 200mm Loft Insulation
A130: PH50 4RU | B130: 36 | C130: 2010 | D130: Top-floor Flat | E130: 78 | F130: 52 | G130: 61 | H130: 48 | I130: 59 | J130: 391 | K130: 62 | L130: 30498 | M130: 4836 | N130: Electric Storage | O130: Double Glazed | P130: Electric Immersion | Q130: Cavity Fill | R130: 300mm Loft Insulation
A131: PH50 4RS | B131: 39 | C131: 2017 | D131: Mid-terrrace | E131: 62 | F131: 56 | G131: 78 | H131: 60 | I131: 80 | J131: 392 | K131: 66 | L131: =J131*E131 -> 24304 | M131: =K131*E131 -> 4092 | N131: ASHP + Electric | O131: Double Glazed | P131: Boiler | Q131: Cavity Fill | R131: 350mm Loft Insulation
A132: PH50 4RU | B132: 28 | C132: 2014 | D132: Mid-floor Flat | E132: 80 | F132: 41 | G132: 42 | H132: 44 | I132: 45 | J132: 392 | K132: 71 | L132: 31360 | M132: 5680 | N132: Electric Storage | O132: Double Glazed | P132: Electric Immersion | Q132: Cavity wall no isulation | R132: n/a
A133: PH50 4RS | B133: 19 | C133: 2014 | D133: Mid-terrrace | E133: 59 | F133: 56 | G133: 75 | H133: 50 | I133: 69 | J133: 394 | K133: 70 | L133: 23246 | M133: 4130 | N133: Boilers + Radiators + Oil | O133: Double Glazed | P133: Boiler | Q133: Cavity Fill | R133: 200mm Loft Insulation
A134: PH50 4QR | B134: 14 | C134: 2015 | D134: Semi-Detached | E134: 72 | F134: 46 | G134: 81 | H134: 39 | I134: 73 | J134: 400 | K134: 106 | L134: 28800 | M134: 7632 | N134: Boilers + Radiators + Oil | O134: Double Glazed | P134: Boiler | Q134: Cavity wall no insulation | R134: 150mm Loft insulation
A135: PH50 4RQ | B135: 3 | C135: 2017 | D135: Semi-Detached | E135: 91 | F135: 51 | G135: 69 | H135: 84 | I135: 95 | J135: 400 | K135: 23 | L135: 36400 | M135: 2093 | N135: Boilers + Radiators + Wood | O135: Double Glazed | P135: Boiler | Q135: Timber Insulated | R135: 150mm Loft insulation
A136: PH50 4RS | B136: 43 | C136: 2010 | D136: Mid-terrrace | E136: 59 | F136: 42 | G136: 42 | H136: 54 | I136: 54 | J136: 400 | K136: 61 | L136: 23600 | M136: 3599 | N136: Boilers + Radiators + Oil | O136: Double Glazed | P136: Boiler | Q136: Cavity Fill | R136: 300mm Loft Insulation
A137: PH50 4SD | B137: 1 | C137: 2009 | D137: Ground-floor Flat | E137: 44 | F137: 67 | G137: 69 | H137: 60 | I137: 60 | J137: 402 | K137: 59 | L137: 17688 | M137: 2596 | N137: Electric Storage | O137: Double Glazed | P137: Electric Immersion | Q137: Cavity Fill | R137: n/a
A138: PH50 4RS | B138: 29 | C138: 2010 | D138: Mid-terrrace | E138: 64 | F138: 40 | G138: 40 | H138: 63 | I138: 63 | J138: 403 | K138: 61 | L138: 25792 | M138: 3904 | N138: Boilers + Radiators + Coal | O138: Double Glazed | P138: Boiler | Q138: Cavity Fill | R138: 300mm Loft Insulation
A139: PH50 4QJ | B139: 21 | C139: 2014 | D139: Semi-Detached | E139: 79 | F139: 37 | G139: 61 | H139: 44 | I139: 64 | J139: 405 | K139: 72 | L139: 31995 | M139: 5688 | N139: Electric Storage | O139: Double Glazed | P139: Electric Immersion | Q139: Cavity Fill | R139: No insulation
A140: PH50 4QR | B140: 10 | C140: 2015 | D140: Semi-Detached | E140: 85 | F140: 42 | G140: 100 | H140: 40 | I140: 91 | J140: 405 | K140: 93 | L140: 34425 | M140: 7905 | N140: Boilers + Radiators + Oil | O140: Double Glazed | P140: Electric Immersion | Q140: Cavity Fill | R140: No insulation
A141: PH50 4RP | B141: Flat 2 FF | C141: 2013 | D141: Mid-floor Flat | E141: 58 | F141: 68 | G141: 80 | H141: 49 | I141: 69 | J141: 407 | K141: 72 | L141: 23606 | M141: 4176 | N141: Electric Storage | O141: Double Glazed | P141: Electric Immersion | Q141: Cavity wall no isulation | R141: n/a
A142: PH50 4RQ | B142: 10 | C142: 2018 | D142: Semi-Detached | E142: 91 | F142: 42 | G142: 63 | H142: 37 | I142: 54 | J142: 409 | K142: 101 | L142: 37219 | M142: 9191 | N142: Boilers + Radiators + Oil | O142: Double Glazed | P142: Boiler | Q142: Cavity wall no insulation | R142: 270mm Loft Insulation
A143: PH50 4RH | B143: 10 | C143: 2017 | D143: Semi-Detached | E143: 90 | F143: 42 | G143: 83 | H143: 38 | I143: 72 | J143: 410 | K143: 100 | L143: 36900 | M143: 9000 | N143: Boilers + Radiators + Oil | O143: Double Glazed | P143: Boiler | Q143: Cavity wall no Insulation | R143: No insulation
A144: PH50 4RX | B144: 2 | C144: 2010 | D144: Ground-floor Flat | E144: 57 | F144: 49 | G144: 53 | H144: 32 | I144: 36 | J144: 411 | K144: 104 | L144: 23427 | M144: 5928 | N144: Boilers + Radiators + Coal | O144: Double Glazed | P144: Boiler | Q144: Cavity Fill | R144: n/a
A145: PH50 4RZ | B145: 22 | C145: 2010 | D145: Ground-floor Flat | E145: 60 | F145: 65 | G145: 66 | H145: 50 | I145: 50 | J145: 411 | K145: 66 | L145: 24660 | M145: 3960 | N145: Electric Storage | O145: Double Glazed | P145: Electric Immersion | Q145: Cavity Fill | R145: n/a
A146: PH50 4RU | B146: 52 | C146: 2014 | D146: Ground-floor Flat | E146: 62 | F146: 50 | G146: 58 | H146: 44 | I146: 50 | J146: 411 | K146: 79 | L146: 25482 | M146: 4898 | N146: Boilers + Radiators + Wood | O146: Double Glazed | P146: Boiler | Q146: Cavity wall no isulation | R146: n/a
A147: PH50 4RQ | B147: 32 | C147: 2010 | D147: Semi-Detached | E147: 105 | F147: 56 | G147: 57 | H147: 40 | I147: 40 | J147: 412 | K147: 69 | L147: 43260 | M147: 7245 | N147: Electric Storage | O147: Double Glazed | P147: Electric Immersion | Q147: Cavity Fill | R147: 200mm Loft Insulation
A148: PH50 4SA | B148: 8 | C148: 2010 | D148: Ground-floor Flat | E148: 57 | F148: 48 | G148: 53 | H148: 32 | I148: 36 | J148: 412 | K148: 105 | L148: 23484 | M148: 5985 | N148: Electric Storage | O148: Double Glazed | P148: Electric Immersion | Q148: Cavity Fill | R148: n/a
A149: PH50 4QS | B149: 9 | C149: 2011 | D149: Mid-terrrace | E149: 90 | F149: 51 | G149: 53 | H149: 42 | I149: 44 | J149: 413 | K149: 69 | L149: 37170 | M149: 6210 | N149: Electric Storage | O149: Double Glazed | P149: Electric Immersion | Q149: Cavity Fill | R149: 150mm Loft insulation
A150: PH50 4QT | B150: 4 | C150: 2015 | D150: Semi-Detached | E150: 85 | F150: 41 | G150: 103 | H150: 40 | I150: 94 | J150: 413 | K150: 95 | L150: 35105 | M150: 8075 | N150: Boilers + Radiators + Oil | O150: Double Glazed | P150: Electric Immersion | Q150: Cavity Fill | R150: 50mm loft insulation
A151: PH50 4QP | B151: 4 | C151: 2015 | D151: Semi-Detached | E151: 79 | F151: 42 | G151: 79 | H151: 36 | I151: 71 | J151: 414 | K151: 109 | L151: 32706 | M151: 8611 | N151: Boilers + Radiators + Oil | O151: Double Glazed | P151: Boiler | Q151: Cavity wall no insulation | R151: No insulation
A152: PH50 4QJ | B152: 14 | C152: 2017 | D152: Semi-Detached | E152: 103 | F152: 38 | G152: 75 | H152: 35 | I152: 69 | J152: 416 | K152: 103 | L152: 42848 | M152: 10609 | N152: Boilers + Radiators + Wood | O152: Double Glazed | P152: Boiler | Q152: Cavity Fill | R152: 150mm Loft insulation
A153: PH50 4RP | B153: 11 | C153: 2017 | D153: End-terrace | E153: 61 | F153: 51 | G153: 74 | H153: 57 | I153: 77 | J153: 417 | K153: 70 | L153: 25437 | M153: 4270 | N153: ASHP + Electric | O153: Double Glazed | P153: Boiler | Q153: Cavity Fill | R153: n/a
A154: PH50 4RS | B154: 31 | C154: 2017 | D154: Mid-terrrace | E154: 60 | F154: 53 | G154: 76 | H154: 58 | I154: 79 | J154: 419 | K154: 71 | L154: 25140 | M154: 4260 | N154: ASHP + Electric | O154: Double Glazed | P154: Boiler | Q154: Cavity Fill | R154: 150mm Loft insulation
A155: PH50 4RF | B155: 15 | C155: 2009 | D155: Semi-Detached | E155: 70 | F155: 36 | G155: 38 | H155: 85 | I155: 86 | J155: 422 | K155: 19 | L155: 29540 | M155: 1330 | N155: Boilers + Radiators + Oil | O155: Double Glazed | P155: Boiler | Q155: Cavity wall no insulation | R155: 100mm Loft insulation
A156: PH50 4RP | B156: Flat 1 FF | C156: 2013 | D156: Mid-floor Flat | E156: 58 | F156: 62 | G156: 75 | H156: 48 | I156: 67 | J156: 422 | K156: 75 | L156: 24476 | M156: 4350 | N156: Electric Storage | O156: Double Glazed | P156: Electric Immersion | Q156: Cavity wall no isulation | R156: n/a
A157: PH50 4RS | B157: 9 | C157: 2014 | D157: End-terrace | E157: 61 | F157: 41 | G157: 57 | H157: 47 | I157: 61 | J157: 425 | K157: 75 | L157: 25925 | M157: 4575 | N157: Boilers + Radiators + Oil | O157: Double Glazed | P157: Boiler | Q157: Cavity Fill | R157: 300mm Loft Insulation
A158: PH50 4RS | B158: 21 | C158: 2014 | D158: Mid-terrrace | E158: 59 | F158: 41 | G158: 68 | H158: 47 | I158: 71 | J158: 426 | K158: 75 | L158: 25134 | M158: 4425 | N158: Boilers + Radiators + Wood | O158: Double Glazed | P158: Boiler | Q158: Cavity Fill | R158: 250mm Loft insulation
A159: PH50 4SD | B159: 8 | C159: 2017 | D159: Mid-floor Flat | E159: 56 | F159: 54 | G159: 80 | H159: 59 | I159: 68 | J159: 426 | K159: 72 | L159: 23856 | M159: 4032 | N159: Electric Storage | O159: Double Glazed | P159: Electric Immersion | Q159: Cavity Fill | R159: n/a
A160: PH50 4RZ | B160: 1 | C160: 2013 | D160: Top-floor Flat | E160: 58 | F160: 50 | G160: 69 | H160: 43 | I160: 64 | J160: 427 | K160: 82 | L160: 24766 | M160: 4756 | N160: Boilers + Radiators + Wood | O160: Double Glazed | P160: Boiler | Q160: Cavity wall no insulation | R160: 100mm Loft insulation
A161: PH50 4RD | B161: 12 | C161: 2014 | D161: End-terrace | E161: 75 | F161: 33 | G161: 57 | H161: 88 | I161: 104 | J161: 430 | K161: 14 | L161: 32250 | M161: 1050 | N161: Boilers + Radiators + Wood | O161: Double Glazed | P161: Boiler | Q161: Cavity wall no insulation | R161: 200mm Loft Insulation
A162: PH50 4QJ | B162: 1 | C162: 2017 | D162: Semi-Detached | E162: 85 | F162: 42 | G162: 62 | H162: 32 | I162: 44 | J162: 431 | K162: 123 | L162: 36635 | M162: 10455 | N162: Boilers + Radiators + Oil | O162: Double Glazed | P162: Boiler | Q162: Cavity Fill | R162: No insulation
A163: PH50 4RG | B163: 6 | C163: 2014 | D163: Semi-Detached | E163: 46 | F163: 59 | G163: 84 | H163: 63 | I163: 86 | J163: 432 | K163: 73 | L163: 19872 | M163: 3358 | N163: ASHP + Electric | O163: Double Glazed | P163: Boiler | Q163: Cavity Fill | R163: 300mm Loft Insulation
A164: PH50 4SD | B164: 14 | C164: 2009 | D164: Top-floor Flat | E164: 61 | F164: 51 | G164: 51 | H164: 51 | I164: 51 | J164: 432 | K164: 64 | L164: 26352 | M164: 3904 | N164: Electric Storage | O164: Double Glazed | P164: Electric Immersion | Q164: Cavity Fill | R164: 300mm Loft Insulation
A165: PH50 4QS | B165: 10 | C165: 2010 | D165: End-terrace | E165: 102 | F165: 45 | G165: 49 | H165: 40 | I165: 43 | J165: 433 | K165: 70 | L165: 44166 | M165: 7140 | N165: Electric Storage | O165: Double Glazed | P165: Electric Immersion | Q165: Cavity Fill | R165: 75mm loft Insulation
A166: PH50 4RU | B166: 6 | C166: 2017 | D166: Ground-floor Flat | E166: 56 | F166: 52 | G166: 55 | H166: 57 | I166: 60 | J166: 435 | K166: 74 | L166: 24360 | M166: 4144 | N166: ASHP + Electric | O166: Double Glazed | P166: Boiler | Q166: Cavity Fill | R166: n/a
A167: PH50 4QY | B167: 3 | C167: 2017 | D167: Semi-Detached | E167: 58 | F167: 51 | G167: 79 | H167: 56 | I167: 81 | J167: 438 | K167: 74 | L167: 25404 | M167: 4292 | N167: ASHP + Electric | O167: Double Glazed | P167: Boiler | Q167: Cavity Fill | R167: 150mm Loft insulation
A168: PH50 4SD | B168: 5 | C168: 2017 | D168: Mid-floor Flat | E168: 57 | F168: 74 | G168: 81 | H168: 57 | I168: 70 | J168: 441 | K168: 75 | L168: 25137 | M168: 4275 | N168: Electric Storage | O168: Double Glazed | P168: Electric Immersion | Q168: Cavity Fill | R168: n/a
A169: PH50 4RP | B169: 18 | C169: 2017 | D169: Mid-terrrace | E169: 60 | F169: 49 | G169: 69 | H169: 55 | I169: 73 | J169: 444 | K169: 75 | L169: 26640 | M169: 4500 | N169: ASHP + Electric | O169: Double Glazed | P169: Boiler | Q169: Cavity Fill | R169: 250mm Loft insulation
A170: PH50 4RY | B170: 6 | C170: 2010 | D170: Top-floor Flat | E170: 57 | F170: 64 | G170: 64 | H170: 48 | I170: 48 | J170: 444 | K170: 72 | L170: 25308 | M170: 4104 | N170: Electric Storage | O170: Double Glazed | P170: Electric Immersion | Q170: Cavity wall no insulation | R170: 300mm Loft Insulation
A171: PH50 4RU | B171: 12 | C171: 2014 | D171: Ground-floor Flat | E171: 57 | F171: 40 | G171: 51 | H171: 45 | I171: 54 | J171: 445 | K171: 80 | L171: 25365 | M171: 4560 | N171: Electric Storage | O171: Double Glazed | P171: Electric Immersion | Q171: Cavity Fill | R171: n/a
A172: PH50 4QW | B172: 16 | C172: 2015 | D172: End-terrace | E172: 107 | F172: 35 | G172: 51 | H172: 32 | I172: 43 | J172: 445 | K172: 110 | L172: 47615 | M172: 11770 | N172: Boilers + Radiators + Oil | O172: Double Glazed | P172: Boiler | Q172: Cavity Fill | R172: No insulation
A173: PH50 4RZ | B173: 7 | C173: 2011 | D173: Top-floor Flat | E173: 58 | F173: 66 | G173: 74 | H173: 40 | I173: 50 | J173: 446 | K173: 85 | L173: 25868 | M173: 4930 | N173: Electric Storage | O173: Double Glazed | P173: Electric Immersion | Q173: Cavity Fill | R173: 50mm loft insulation
A174: PH50 4RS | B174: 53 | C174: 2010 | D174: End-terrace | E174: 67 | F174: 33 | G174: 33 | H174: 47 | I174: 47 | J174: 448 | K174: 67 | L174: 30016 | M174: 4489 | N174: Boilers + Radiators + Oil | O174: Double Glazed | P174: Boiler | Q174: Cavity Fill | R174: 300mm Loft Insulation
A175: PH50 4QX | B175: 7 | C175: 2015 | D175: Semi-Detached | E175: 98 | F175: 34 | G175: 87 | H175: 29 | I175: 75 | J175: 453 | K175: 121 | L175: 44394 | M175: 11858 | N175: Boilers + Radiators + Oil | O175: Double Glazed | P175: Boiler | Q175: Timber frame, no insulation | R175: 75mm loft Insulation
A176: PH50 4QY | B176: 7 | C176: 2010 | D176: Semi-Detached | E176: 58 | F176: 42 | G176: 47 | H176: 27 | I176: 31 | J176: 454 | K176: 126 | L176: 26332 | M176: 7308 | N176: Boilers + Radiators + Coal | O176: Double Glazed | P176: Boiler | Q176: Cavity Fill | R176: 300mm Loft Insulation
A177: PH50 4RQ | B177: 20 | C177: 2010 | D177: Semi-Detached | E177: 84 | F177: 43 | G177: 43 | H177: 43 | I177: 43 | J177: 456 | K177: 68 | L177: 38304 | M177: 5712 | N177: Electric Storage | O177: Double Glazed | P177: Electric Immersion | Q177: Cavity Fill | R177: 300mm Loft Insulation
A178: PH50 4RP | B178: 4 | C178: 2010 | D178: Mid-terrrace | E178: 64 | F178: 59 | G178: 59 | H178: 45 | I178: 45 | J178: 458 | K178: 74 | L178: 29312 | M178: 4736 | N178: Electric Storage | O178: Double Glazed | P178: Electric Immersion | Q178: Cavity Fill | R178: 300mm Loft Insulation
A179: PH50 4RB | B179: 24 | C179: 2015 | D179: Ground-floor Flat | E179: 53 | F179: 74 | G179: 79 | H179: 57 | I179: 67 | J179: 459 | K179: 78 | L179: 24327 | M179: 4134 | N179: Electric Storage | O179: Double Glazed | P179: Electric Immersion | Q179: Cavity Fill | R179: n/a
A180: PH50 4RF | B180: 8 | C180: 2016 | D180: Mid-terrrace | E180: 83 | F180: 55 | G180: 85 | H180: 51 | I180: 68 | J180: 460 | K180: 78 | L180: 38180 | M180: 6474 | N180: Electric Storage | O180: Double Glazed | P180: Electric Immersion | Q180: Cavity Fill | R180: 200mm Loft Insulation
A181: PH50 4RR | B181: 9 | C181: 2013 | D181: Semi-Detached | E181: 72 | F181: 47 | G181: 71 | H181: 37 | I181: 60 | J181: 464 | K181: 89 | L181: 33408 | M181: 6408 | N181: Electric Storage | O181: Double Glazed | P181: Electric Immersion | Q181: Cavity Fill | R181: 150mm Loft insulation
A182: PH50 4RU | B182: 16 | C182: 2013 | D182: Ground-floor Flat | E182: 50 | F182: 41 | G182: 52 | H182: 46 | I182: 55 | J182: 464 | K182: 83 | L182: 23200 | M182: 4150 | N182: Electric Storage | O182: Double Glazed | P182: Electric Immersion | Q182: Cavity Fill | R182: n/a
A183: PH50 4RD | B183: 10 | C183: 2014 | D183: End-terrace | E183: 75 | F183: 63 | G183: 79 | H183: 39 | I183: 57 | J183: 465 | K183: 82 | L183: 34875 | M183: 6150 | N183: Electric Storage | O183: Double Glazed | P183: Electric Immersion | Q183: Cavity Fill | R183: 300mm Loft Insulation
A184: PH50 4SA | B184: 7 | C184: 2010 | D184: Ground-floor Flat | E184: 57 | F184: 30 | G184: 30 | H184: 49 | I184: 49 | J184: 465 | K184: 70 | L184: 26505 | M184: 3990 | N184: Electric Storage | O184: Double Glazed | P184: Electric Immersion | Q184: Cavity Fill | R184: n/a
A185: PH50 4RB | B185: 6 | C185: 2015 | D185: Ground-floor Flat | E185: 51 | F185: 74 | G185: 79 | H185: 58 | I185: 68 | J185: 466 | K185: 79 | L185: 23766 | M185: 4029 | N185: Electric Storage | O185: Double Glazed | P185: Electric Immersion | Q185: Cavity Fill | R185: n/a
A186: PH50 4SD | B186: 20 | C186: 2013 | D186: Top-floor Flat | E186: 60 | F186: 65 | G186: 77 | H186: 42 | I186: 61 | J186: 468 | K186: 83 | L186: 28080 | M186: 4980 | N186: Electric Storage | O186: Double Glazed | P186: Electric Immersion | Q186: Cavity Fill | R186: 100mm Loft insulation
A187: PH50 4QP | B187: 23 | C187: 2015 | D187: Semi-Detached | E187: 85 | F187: 33 | G187: 103 | H187: 33 | I187: 94 | J187: 469 | K187: 111 | L187: 39865 | M187: 9435 | N187: Boilers + Radiators + Oil | O187: Double Glazed | P187: Electric Immersion | Q187: Cavity wall no insulation | R187: 200mm Loft insulation
A188: PH50 4RB | B188: 13 | C188: 2015 | D188: Ground-floor Flat | E188: 52 | F188: 74 | G188: 79 | H188: 56 | I188: 67 | J188: 471 | K188: 80 | L188: 24492 | M188: 4160 | N188: Electric Storage | O188: Double Glazed | P188: Electric Immersion | Q188: Cavity Fill | R188: n/a
A189: PH50 4RD | B189: 8 | C189: 2011 | D189: Mid-terrrace | E189: 74 | F189: 43 | G189: 56 | H189: 37 | I189: 47 | J189: 472 | K189: 92 | L189: 34928 | M189: 6808 | N189: Electric Storage | O189: Double Glazed | P189: Electric Immersion | Q189: Cavity wall no insulation | R189: 150mm Loft insulation
A190: PH50 4SD | B190: 3 | C190: 2013 | D190: Top-floor Flat | E190: 56 | F190: 37 | G190: 38 | H190: 43 | I190: 44 | J190: 476 | K190: 85 | L190: 26656 | M190: 4760 | N190: Electric Storage | O190: Double Glazed | P190: Electric Immersion | Q190: Cavity Fill | R190: 250mm Loft insulation
A191: PH50 4RP | B191: 19 | C191: 2010 | D191: Mid-terrrace | E191: 64 | F191: 45 | G191: 45 | H191: 46 | I191: 46 | J191: 478 | K191: 72 kg/m2 | L191: 30592 | N191: Electric Storage | O191: Double Glazed | P191: Electric Immersion | Q191: Cavity Fill | R191: 300mm Loft Insulation
A192: PH50 4RQ | B192: 53 | C192: 2015 | D192: Semi-Detached | E192: 85 | F192: 32 | G192: 103 | H192: 32 | I192: 94 | J192: 478 | K192: 113 | L192: 40630 | M192: 9605 | N192: Boilers + Radiators + Oil | O192: Double Glazed | P192: Electric Immersion | Q192: Cavity wall no insulation | R192: 75mm loft Insulation
A193: PH50 4RQ | B193: 45 | C193: 2015 | D193: Semi-Detached | E193: 85 | F193: 32 | G193: 103 | H193: 32 | I193: 93 | J193: 479 | K193: 118 | L193: 40715 | M193: 10030 | N193: Boilers + Radiators + Oil | O193: Double Glazed | P193: Electric Immersion | Q193: Cavity wall no insulation | R193: 50mm loft insulation
A194: PH50 4RY | B194: 8 | C194: 2010 | D194: Top-floor Flat | E194: 57 | F194: 49 | G194: 50 | H194: 45 | I194: 45 | J194: 483 | K194: 77 | L194: 27531 | M194: 4389 | N194: Electric Storage | O194: Double Glazed | P194: Electric Immersion | Q194: Cavity wall no insulation | R194: 300mm Loft Insulation
A195: PH50 4RU | B195: 38 | C195: 2013 | D195: Ground-floor Flat | E195: 81 | F195: 28 | G195: 35 | H195: 36 | I195: 42 | J195: 483 | K195: 86 | L195: =J195*E195 -> 39123 | M195: =K195*E195 -> 6966 | N195: Electric Storage | O195: Double Glazed | P195: Electric Immersion | Q195: Cavity wall no isulation | R195: n/a
A196: PH50 4RZ | B196: 13 | C196: 2017 | D196: Top-floor Flat | E196: 59 | F196: 72 | G196: 74 | H196: 53 | I196: 56 | J196: 485 | K196: 82 | L196: 28615 | M196: 4838 | N196: Electric Storage | O196: Double Glazed | P196: Electric Immersion | Q196: Cavity Fill | R196: 100mm Loft insulation
A197: PH50 4RA | B197: 21 | C197: 2018 | D197: Mid-terrrace | E197: 83 | F197: 32 | G197: 74 | H197: 29 | I197: 65 | J197: 485 | K197: 128 | L197: 40255 | M197: 10624 | N197: Boilers + Radiators + Oil | O197: Double Glazed | P197: Boiler | Q197: Cavity wall no insulation | R197: 25mm Loft insulation
A198: PH50 4RP | B198: 8 | C198: 2013 | D198: Mid-terrrace | E198: 64 | F198: 34 | G198: 60 | H198: 39 | I198: 60 | J198: 486 | K198: 88 | L198: 31104 | M198: 5632 | N198: Electric Storage | O198: Double Glazed | P198: Boiler | Q198: Cavity Fill | R198: 300mm Loft Insulation
A199: PH50 4SB | B199: 2 | C199: 2016 | D199: Mid-terrrace | E199: 109 | F199: 31 | G199: 83 | H199: 22 | I199: 63 | J199: 489 | K199: 140 | L199: 53301 | M199: 15260 | N199: Boilers + Radiators + Oil | O199: Double Glazed | P199: Boiler | Q199: Solid Brick no insulation | R199: 150mm Loft insulation
A200: PH50 4RX | B200: 9 | C200: 2015 | D200: Ground-floor Flat | E200: 56 | F200: 52 | G200: 65 | H200: 44 | I200: 58 | J200: 489 | K200: 105 | L200: 27384 | M200: 5880 | N200: Boilers + Radiators + Wood | O200: Double Glazed | P200: Boiler | Q200: Cavity Fill | R200: n/a
... 137 more rows

Sheet Top-floor flat
A1: Postcode | B1: House No. | C1: Assessment Year | D1: Dwelling Type | E1: Floor Area (m^2) | F1: Energy Efficiency Rating - Current | G1: Energy Efficiency Rating - Potential | H1: Environmental Impact Rating - Current | I1: Environmental Impact Rating - Potential | J1: Energy Usuage (kWh/m^2 per year) | K1: Emissions (kg/m^2 per year) | L1: Energy usage (kWh/year) | M1: Emmissions (kgCO2/year) | N1: Main Heating Type | O1: Windows | P1: Hot Water | Q1: Wall Insulation | R1: Pitch Roof Insulation | V1: Floor Area (m^2) | W1: Energy Efficiency Rating - Current | X1: Environmental Impact Rating - Current | Y1: Energy Usuage (kWh/m^2 per year) | Z1: Emissions (kg/m^2 per year) | AE1: Wall Insulation | AH1: Roof insulation
A2: PH50 4RZ | B2: 15 | C2: 2014 | D2: Top-floor Flat | E2: 58 | F2: 71 | G2: 71 | H2: 65 | I2: 65 | J2: 249 | K2: 48 | L2: =J2*E2 -> 14442 | M2: =K2*E2 -> 2784 | N2: Boilers + Radiators + Wood | O2: Double Glazed | P2: Boiler | Q2: Cavity Fill | R2: 300mm Loft Insulation | V2: =AVERAGE(E2:E41) -> 58.6 | W2: =AVERAGE(F2:F41) -> 56.65 | X2: =AVERAGE(H2:H41) -> 42.525 | Y2: =AVERAGE(J2:J54) -> 522.2 | Z2: =AVERAGE(K2:K54) -> 92.625 | AA2: =AVERAGE(L2:L41) -> 30528.25 | AD2: Cavity fill | AE2: =COUNTIF(Q2:Q41,"cavity fill") -> 19 | AG2: 400 | AH2: =COUNTIF(R2:R41,"400mm loft insulation") -> 0
A3: PH50 4RS | B3: 7 | C3: 2012 | D3: Top-floor Flat | E3: 56 | F3: 72 | G3: 75 | H3: 54 | I3: 56 | J3: 267 | K3: 65 | L3: =J3*E3 -> 14952 | M3: =K3*E3 -> 3640 | N3: Electric Storage | O3: Double Glazed | P3: Electric Immersion | Q3: Cavity Fill | R3: 200mm Loft Insulation | AD3: Timber frame no insulation | AE3: =COUNTIF(Q2:Q41,"timber frame no insulation") -> 0 | AG3: 300 | AH3: =COUNTIF(R$2:R$41,"300mm loft insulation") -> 11
A4: PH50 4RU | B4: 8 | C4: 2013 | D4: Top-floor Flat | E4: 78 | F4: 51 | G4: 52 | H4: 54 | I4: 54 | J4: 318 | K4: 57 | L4: 24804 | M4: 4446 | N4: Electric Storage | O4: Double Glazed | P4: Electric Immersion | Q4: Cavity Fill | R4: 250mm Loft insulation | AD4: Cavity wall no insulation | AE4: =COUNTIF(Q2:Q41,"cavity wall no insulation") -> 21 | AG4: 270 | AH4: =COUNTIF(R$2:R$41,"270mm loft insulation") -> 2
A5: PH50 4RZ | B5: 20 | C5: 2010 | D5: Top-floor Flat | E5: 56 | F5: 74 | G5: 75 | H5: 62 | I5: 62 | J5: 320 | K5: 51 | L5: 17920 | M5: 2856 | N5: Electric Storage | O5: Double Glazed | P5: Electric Immersion | Q5: Cavity Fill | R5: 300mm Loft Insulation | AD5: Timber insulated | AE5: =COUNTIF(Q2:Q41,"Timber insulated") -> 0 | AG5: 250 | AH5: =COUNTIF(R$2:R$41,"250mm loft insulation") -> 8
A6: PH50 4RZ | B6: 16 | C6: 2010 | D6: Top-floor Flat | E6: 60 | F6: 72 | G6: 72 | H6: 59 | I6: 59 | J6: 332 | K6: 53 | L6: 19920 | M6: 3180 | N6: Electric Storage | O6: Double Glazed | P6: Electric Immersion | Q6: Cavity Fill | R6: 300mm Loft Insulation | AG6: 200 | AH6: =COUNTIF(R$2:R$41,"200mm loft insulation") -> 3
A7: PH50 4RY | B7: 4 | C7: 2013 | D7: Top-floor Flat | E7: 58 | F7: 66 | G7: 67 | H7: 54 | I7: 56 | J7: 341 | K7: 63 | L7: 19778 | M7: 3654 | N7: Electric Storage | O7: Double Glazed | P7: Electric Immersion | Q7: Cavity wall no insulation | R7: 250mm Loft insulation | AG7: 150 | AH7: =COUNTIF(R$2:R$41,"150mm loft insulation") -> 1
A8: PH50 4RZ | B8: 9 | C8: 2010 | D8: Top-floor Flat | E8: 57 | F8: 55 | G8: 59 | H8: 38 | I8: 42 | J8: 362 | K8: 91 | L8: 20634 | M8: 5187 | N8: Boilers + Radiators + Coal | O8: Double Glazed | P8: Boiler | Q8: Cavity Fill | R8: 300mm Loft Insulation | AG8: 100 | AH8: =COUNTIF(R$2:R$41,"100mm loft insulation") -> 6
A9: PH50 4RY | B9: 10 | C9: 2010 | D9: Top-floor Flat | E9: 57 | F9: 55 | G9: 59 | H9: 38 | I9: 42 | J9: 362 | K9: 91 | L9: 20634 | M9: 5187 | N9: Boilers + Radiators + Coal | O9: Double Glazed | P9: Boiler | Q9: Cavity wall no insulation | R9: 300mm Loft Insulation | AG9: 50 | AH9: =COUNTIF(R$2:R$41,"50mm loft insulation") -> 6
A10: PH50 4RU | B10: 50 | C10: 2017 | D10: Top-floor Flat | E10: 72 | F10: 60 | G10: 72 | H10: 51 | I10: 66 | J10: 364 | K10: 78 | L10: 26208 | M10: 5616 | N10: Boilers + Radiators + Wood | O10: Double Glazed | P10: Boiler | Q10: Cavity wall no insulation | R10: 150mm Loft insulation | AG10: 0 | AH10: =COUNTIF(R$2:R$41,"no insulation") -> 2
A11: PH50 4RZ | B11: 11 | C11: 2014 | D11: Top-floor Flat | E11: 54 | F11: 69 | G11: 71 | H11: 54 | I11: 55 | J11: 365 | K11: 65 | L11: 19710 | M11: 3510 | N11: Electric Storage | O11: Double Glazed | P11: Electric Immersion | Q11: Cavity Fill | R11: 300mm Loft Insulation | AG11: sum | AH11: =SUM(AH2:AH10) -> 39
A12: PH50 4RZ | B12: 8 | C12: 2009 | D12: Top-floor Flat | E12: 53 | F12: 69 | G12: 69 | H12: 60 | I12: 60 | J12: 369 | K12: 56 | L12: 19557 | M12: 2968 | N12: Electric Storage | O12: Double Glazed | P12: Electric Immersion | Q12: Cavity Fill | R12: 250mm Loft insulation | AG12: average | AH12: =(AG2*AH2+AG3*AH3+AG4*AH4+AG5*AH5+AG6*AH6+AG7*AH7+AG8*AH8+AG9*AH9+AG10*AH10)/AH11 -> 192.0512821
A13: PH50 4RB | B13: 8 | C13: 2015 | D13: Top-floor Flat | E13: 51 | F13: 78 | G13: 80 | H13: 66 | I13: 69 | J13: 375 | K13: 63 | L13: 19125 | M13: 3213 | N13: Electric Storage | O13: Double Glazed | P13: Electric Immersion | Q13: Cavity Fill | R13: 270mm Loft Insulation
A14: PH50 4RY | B14: 1 | C14: 2010 | D14: Top-floor Flat | E14: 58 | F14: 63 | G14: 64 | H14: 57 | I14: 57 | J14: 381 | K14: 57 | L14: 22098 | M14: 3306 | N14: Electric Storage | O14: Double Glazed | P14: Electric Immersion | Q14: Cavity wall no insulation | R14: 200mm Loft Insulation
A15: PH50 4RB | B15: 26 | C15: 2015 | D15: Top-floor Flat | E15: 53 | F15: 78 | G15: 79 | H15: 64 | I15: 67 | J15: 382 | K15: 65 | L15: 20246 | M15: 3445 | N15: Electric Storage | O15: Double Glazed | P15: Electric Immersion | Q15: Cavity Fill | R15: 270mm Loft Insulation
A16: PH50 4RU | B16: 36 | C16: 2010 | D16: Top-floor Flat | E16: 78 | F16: 52 | G16: 61 | H16: 48 | I16: 59 | J16: 391 | K16: 62 | L16: 30498 | M16: 4836 | N16: Electric Storage | O16: Double Glazed | P16: Electric Immersion | Q16: Cavity Fill | R16: 300mm Loft Insulation
A17: PH50 4RZ | B17: 1 | C17: 2013 | D17: Top-floor Flat | E17: 58 | F17: 50 | G17: 69 | H17: 43 | I17: 64 | J17: 427 | K17: 82 | L17: 24766 | M17: 4756 | N17: Boilers + Radiators + Wood | O17: Double Glazed | P17: Boiler | Q17: Cavity wall no insulation | R17: 100mm Loft insulation
A18: PH50 4SD | B18: 14 | C18: 2009 | D18: Top-floor Flat | E18: 61 | F18: 51 | G18: 51 | H18: 51 | I18: 51 | J18: 432 | K18: 64 | L18: 26352 | M18: 3904 | N18: Electric Storage | O18: Double Glazed | P18: Electric Immersion | Q18: Cavity Fill | R18: 300mm Loft Insulation
A19: PH50 4RY | B19: 6 | C19: 2010 | D19: Top-floor Flat | E19: 57 | F19: 64 | G19: 64 | H19: 48 | I19: 48 | J19: 444 | K19: 72 | L19: 25308 | M19: 4104 | N19: Electric Storage | O19: Double Glazed | P19: Electric Immersion | Q19: Cavity wall no insulation | R19: 300mm Loft Insulation
A20: PH50 4RZ | B20: 7 | C20: 2011 | D20: Top-floor Flat | E20: 58 | F20: 66 | G20: 74 | H20: 40 | I20: 50 | J20: 446 | K20: 85 | L20: 25868 | M20: 4930 | N20: Electric Storage | O20: Double Glazed | P20: Electric Immersion | Q20: Cavity Fill | R20: 50mm loft insulation
A21: PH50 4SD | B21: 20 | C21: 2013 | D21: Top-floor Flat | E21: 60 | F21: 65 | G21: 77 | H21: 42 | I21: 61 | J21: 468 | K21: 83 | L21: 28080 | M21: 4980 | N21: Electric Storage | O21: Double Glazed | P21: Electric Immersion | Q21: Cavity Fill | R21: 100mm Loft insulation
A22: PH50 4SD | B22: 3 | C22: 2013 | D22: Top-floor Flat | E22: 56 | F22: 37 | G22: 38 | H22: 43 | I22: 44 | J22: 476 | K22: 85 | L22: 26656 | M22: 4760 | N22: Electric Storage | O22: Double Glazed | P22: Electric Immersion | Q22: Cavity Fill | R22: 250mm Loft insulation
A23: PH50 4RY | B23: 8 | C23: 2010 | D23: Top-floor Flat | E23: 57 | F23: 49 | G23: 50 | H23: 45 | I23: 45 | J23: 483 | K23: 77 | L23: 27531 | M23: 4389 | N23: Electric Storage | O23: Double Glazed | P23: Electric Immersion | Q23: Cavity wall no insulation | R23: 300mm Loft Insulation
A24: PH50 4RZ | B24: 13 | C24: 2017 | D24: Top-floor Flat | E24: 59 | F24: 72 | G24: 74 | H24: 53 | I24: 56 | J24: 485 | K24: 82 | L24: 28615 | M24: 4838 | N24: Electric Storage | O24: Double Glazed | P24: Electric Immersion | Q24: Cavity Fill | R24: 100mm Loft insulation
A25: PH50 4SD | B25: 6 | C25: 2017 | D25: Top-floor Flat | E25: 50 | F25: 71 | G25: 76 | H25: 53 | I25: 63 | J25: 520 | K25: 88 | L25: 26000 | M25: 4400 | N25: Electric Storage | O25: Double Glazed | P25: Electric Immersion | Q25: Cavity Fill | R25: 250mm Loft insulation
A26: PH50 4RZ | B26: 12 | C26: 2015 | D26: Top-floor Flat | E26: 54 | F26: 43 | G26: 44 | H26: 49 | I26: 50 | J26: 551 | K26: 95 | L26: 29754 | M26: 5130 | N26: Electric Storage | O26: Double Glazed | P26: Electric Immersion | Q26: Cavity Fill | R26: 300mm Loft Insulation
A27: PH50 4RP | B27: Flat 3 SF | C27: 2013 | D27: Top-floor Flat | E27: 58 | F27: 55 | G27: 75 | H27: 35 | I27: 59 | J27: 580 | K27: 103 | L27: 33640 | M27: 5974 | N27: Electric Storage | O27: Double Glazed | P27: Electric Immersion | Q27: Cavity wall no insulation | R27: 100mm Loft insulation
A28: PH50 4RB | B28: 7 | C28: 2014 | D28: Top-floor Flat | E28: 50 | F28: 60 | G28: 70 | H28: 36 | I28: 47 | J28: 584 | K28: 103 | L28: 29200 | M28: 5150 | N28: Electric Storage | O28: Double Glazed | P28: Electric Immersion | Q28: Cavity wall no Insulation | R28: 250mm Loft insulation
A29: PH50 4RP | B29: Flat 4 SF | C29: 2013 | D29: Top-floor Flat | E29: 58 | F29: 55 | G29: 70 | H29: 32 | I29: 48 | J29: 605 | K29: 107 | L29: 35090 | M29: 6206 | N29: Electric Storage | O29: Double Glazed | P29: Electric Immersion | Q29: Cavity wall no insulation | R29: 100mm Loft insulation
A30: PH50 4RB | B30: 25 | C30: 2014 | D30: Top-floor Flat | E30: 53 | F30: 56 | G30: 69 | H30: 33 | I30: 46 | J30: 624 | K30: 110 | L30: 33072 | M30: 5830 | N30: Electric Storage | O30: Double Glazed | P30: Electric Immersion | Q30: Cavity wall no Insulation | R30: 250mm Loft insulation
A31: PH50 4RY | B31: 7 | C31: 2014 | D31: Top-floor Flat | E31: 56 | F31: 53 | G31: 70 | H31: 32 | I31: 49 | J31: 625 | K31: 111 | L31: 35000 | M31: 6216 | N31: Electric Storage | O31: Double Glazed | P31: Electric Immersion | Q31: Cavity wall no insulation | R31: 250mm Loft insulation
A32: PH50 4RU | B32: 64 | C32: 2017 | D32: Top-floor Flat | E32: 64 | F32: 64 | G32: 75 | H32: 39 | I32: 56 | J32: 636 | K32: 110 | L32: 40704 | M32: 7040 | N32: Electric Storage | O32: Double Glazed | P32: Electric Immersion | Q32: Cavity wall no insulation | R32: 100mm Loft insulation
A33: PH50 4RB | B33: 22 | C33: 2014 | D33: Top-floor Flat | E33: 57 | F33: 53 | G33: 69 | H33: 30 | I33: 46 | J33: 639 | K33: 113 | L33: 36423 | M33: 6441 | N33: Electric Storage | O33: Double Glazed | P33: Electric Immersion | Q33: Cavity wall no Insulation | R33: 200mm Loft Insulation
A34: PH50 4RY | B34: 5 | C34: 2014 | D34: Top-floor Flat | E34: 57 | F34: 42 | G34: 73 | H34: 26 | I34: 53 | J34: 708 | K34: 125 | L34: 40356 | M34: 7125 | N34: Electric Storage | O34: Double Glazed | P34: Electric Immersion | Q34: Cavity wall no insulation | R34: 25mm Loft insulation
A35: PH50 4RU | B35: 42 | C35: 2017 | D35: Top-floor Flat | E35: 77 | F35: 47 | G35: 59 | H35: 27 | I35: 35 | J35: 799 | K35: 135 | L35: 61523 | M35: 10395 | N35: Electric Storage | O35: Double Glazed | P35: Electric Immersion | Q35: Cavity wall no insulation | R35: No insulation
A36: PH50 4RU | B36: 48 | C36: 2017 | D36: Top-floor Flat | E36: 80 | F36: 45 | G36: 57 | H36: 25 | I36: 33 | J36: 830 | K36: 140 | L36: 66400 | M36: 11200 | N36: Electric Storage | O36: Double Glazed | P36: Electric Immersion | Q36: Cavity Fill | R36: No insulation
A37: PH50 4RB | B37: 21 | C37: 2014 | D37: Top-floor Flat | E37: 57 | F37: 40 | G37: 57 | H37: 20 | I37: 32 | J37: 834 | K37: 148 | L37: 47538 | M37: 8436 | N37: Electric Storage | O37: Double Glazed | P37: Electric Immersion | Q37: Cavity wall no Insulation | R37: 50mm loft Insulation
A38: PH50 4RB | B38: 12 | C38: 2014 | D38: Top-floor Flat | E38: 52 | F38: 40 | G38: 57 | H38: 20 | I38: 32 | J38: 855 | K38: 151 | L38: 44460 | M38: 7852 | N38: Electric Storage | O38: Double Glazed | P38: Electric Immersion | Q38: Cavity wall no Insulation | R38: 50mm loft Insulation
A39: PH50 4RB | B39: 11 | C39: 2014 | D39: Top-floor Flat | E39: 52 | F39: 29 | G39: 64 | H39: 19 | I39: 41 | J39: 869 | K39: 154 | L39: 45188 | M39: 8008 | N39: Electric Storage | O39: Single Glazing | P39: Electric Immersion | Q39: Cavity wall no Insulation | R39: 50mm loft Insulation
A40: PH50 4RB | B40: 16 | C40: 2014 | D40: Top-floor Flat | E40: 52 | F40: 38 | G40: 57 | H40: 18 | I40: 32 | J40: 894 | K40: 158 | L40: 46488 | M40: 8216 | N40: Electric Storage | O40: Double Glazed | P40: Electric Immersion | Q40: Cavity wall no Insulation | R40: 50mm loft Insulation
A41: PH50 4RB | B41: 15 | C41: 2014 | D41: Top-floor Flat | E41: 52 | F41: 36 | G41: 60 | H41: 18 | I41: 37 | J41: 896 | K41: 159 | L41: 46592 | M41: 8268 | N41: Electric Storage | O41: Double Glazed | P41: Electric Immersion | Q41: Cavity wall no Insulation | R41: 50mm loft Insulation

Sheet Mid-floor flat
A1: Postcode | B1: House No. | C1: Assessment Year | D1: Dwelling Type | E1: Floor Area (m^2) | F1: Energy Efficiency Rating - Current | G1: Energy Efficiency Rating - Potential | H1: Environmental Impact Rating - Current | I1: Environmental Impact Rating - Potential | J1: Energy Usuage (kWh/m^2 per year) | K1: Emissions (kg/m^2 per year) | L1: Main Heating Type | M1: Windows | N1: Hot Water | O1: Wall Insulation | P1: Pitch Roof Insulation | T1: Floor Area (m^2) | U1: Energy Efficiency Rating - Current | V1: Environmental Impact Rating - Current | W1: Energy Usuage (kWh/m^2 per year) | X1: Emissions (kg/m^2 per year) | AA1: Wall Insulation
A2: PH50 4RU | B2: 46 | C2: 2018 | D2: Mid-floor Flat | E2: 81 | F2: 57 | G2: 76 | H2: 61 | I2: 60 | J2: 351 | K2: 59 | L2: Electric Storage | M2: Double Glazed | N2: Electric Immersion | O2: Cavity Fill | P2: n/a | T2: =AVERAGE(E2:E24) -> 63.85714286 | U2: =AVERAGE(F2:F24) -> 57.14285714 | V2: =AVERAGE(H2:H24) -> 50 | W2: =AVERAGE(J2:J24) -> 433.8571429 | X2: =AVERAGE(K2:K24) -> 75.57142857 | Z2: Cavity fill | AA2: =COUNTIF(O2:O24,"cavity fill") -> 4
A3: PH50 4RU | B3: 28 | C3: 2014 | D3: Mid-floor Flat | E3: 80 | F3: 41 | G3: 42 | H3: 44 | I3: 45 | J3: 392 | K3: 71 | L3: Electric Storage | M3: Double Glazed | N3: Electric Immersion | O3: Cavity wall no insulation | P3: n/a | Z3: Timber frame no insulation | AA3: =COUNTIF(O2:O24,"timber frame no insulation") -> 0
A4: PH50 4RP | B4: Flat 2 FF | C4: 2013 | D4: Mid-floor Flat | E4: 58 | F4: 68 | G4: 80 | H4: 49 | I4: 69 | J4: 407 | K4: 72 | L4: Electric Storage | M4: Double Glazed | N4: Electric Immersion | O4: Cavity wall no insulation | P4: n/a | Z4: Cavity wall no insulation | AA4: =COUNTIF(O2:O24,"cavity wall no insulation") -> 3
A5: PH50 4RP | B5: Flat 1 FF | C5: 2013 | D5: Mid-floor Flat | E5: 58 | F5: 62 | G5: 75 | H5: 48 | I5: 67 | J5: 422 | K5: 75 | L5: Electric Storage | M5: Double Glazed | N5: Electric Immersion | O5: Cavity wall no insulation | P5: n/a | Z5: Timber insulated | AA5: =COUNTIF(O2:O24,"Timber insulated") -> 0
A6: PH50 4SD | B6: 8 | C6: 2017 | D6: Mid-floor Flat | E6: 56 | F6: 54 | G6: 80 | H6: 59 | I6: 68 | J6: 426 | K6: 72 | L6: Electric Storage | M6: Double Glazed | N6: Electric Immersion | O6: Cavity Fill | P6: n/a
A7: PH50 4SD | B7: 5 | C7: 2017 | D7: Mid-floor Flat | E7: 57 | F7: 74 | G7: 81 | H7: 57 | I7: 70 | J7: 441 | K7: 75 | L7: Electric Storage | M7: Double Glazed | N7: Electric Immersion | O7: Cavity Fill | P7: n/a
A8: PH50 4SD | B8: 2 | C8: 2012 | D8: Mid-floor Flat | E8: 57 | F8: 44 | G8: 58 | H8: 32 | I8: 43 | J8: 598 | K8: 105 | L8: Electric Storage | M8: Double Glazed | N8: Electric Immersion | O8: Cavity Fill | P8: n/a

Sheet Ground-Floor Flat
A1: Postcode | B1: House No. | C1: Assessment Year | D1: Dwelling Type | E1: Floor Area (m^2) | F1: Energy Efficiency Rating - Current | G1: Energy Efficiency Rating - Potential | H1: Environmental Impact Rating - Current | I1: Environmental Impact Rating - Potential | J1: Energy Usuage (kWh/m^2 per year) | K1: Emissions (kg/m^2 per year) | L1: Energy usage (kWh/year) | M1: Emmissions (kgCO2/year) | N1: Main Heating Type | O1: Windows | P1: Hot Water | Q1: Wall Insulation | R1: Pitch Roof Insulation | V1: Floor Area (m^2) | W1: Energy Efficiency Rating - Current | X1: Environmental Impact Rating - Current | Y1: Energy Usuage (kWh/m^2 per year) | Z1: Emissions (kg/m^2 per year) | AE1: Wall Insulation
A2: PH50 4RU | B2: 20 | C2: 2013 | D2: Ground-floor Flat | E2: 56 | F2: 62 | G2: 76 | H2: 51 | I2: 69 | J2: 283 | K2: 70 | L2: =J2*E2 -> 15848 | M2: =K2*E2 -> 3920 | N2: Boilers + Radiators + Oil | O2: Double Glazed | P2: Electric Immersion | Q2: Cavity wall no insulation | R2: n/a | V2: =AVERAGE(E2:E59) -> 57.27586207 | W2: =AVERAGE(F2:F59) -> 51.13793103 | X2: =AVERAGE(H2:H59) -> 42.75862069 | Y2: =AVERAGE(J2:J59) -> 529.9827586 | Z2: =AVERAGE(K2:K59) -> 92.94827586 | AA2: =AVERAGE(L2:L59) -> 30240.05172 | AD2: Cavity fill | AE2: =COUNTIF(Q2:Q52,"cavity fill") -> 38
A3: PH50 4SD | B3: 17 | C3: 2015 | D3: Ground-floor Flat | E3: 59 | F3: 54 | G3: 71 | H3: 46 | I3: 65 | J3: 354 | K3: 92 | L3: =J3*E3 -> 20886 | M3: =K3*E3 -> 5428 | N3: Electric Storage | O3: Double Glazed | P3: Electric Immersion | Q3: Cavity Fill | R3: n/a | AD3: Timber frame no insulation | AE3: =COUNTIF(Q2:Q52,"timber frame no insulation") -> 0
A4: PH50 4RX | B4: 10 | C4: 2018 | D4: Ground-floor Flat | E4: 52 | F4: 58 | G4: 74 | H4: 51 | I4: 59 | J4: 368 | K4: 88 | L4: =J4*E4 -> 19136 | M4: 4576 | N4: Boilers + Radiators + Oil | O4: Double Glazed | P4: Boiler | Q4: Cavity Fill | R4: n/a | AD4: Cavity wall no insulation | AE4: =COUNTIF(Q2:Q52,"cavity wall no insulation") -> 13
A5: PH50 4SD | B5: 1 | C5: 2009 | D5: Ground-floor Flat | E5: 44 | F5: 67 | G5: 69 | H5: 60 | I5: 60 | J5: 402 | K5: 59 | L5: 17688 | M5: 2596 | N5: Electric Storage | O5: Double Glazed | P5: Electric Immersion | Q5: Cavity Fill | R5: n/a | AD5: Timber insulated | AE5: =COUNTIF(Q2:Q52,"Timber insulated") -> 0
A6: PH50 4RX | B6: 2 | C6: 2010 | D6: Ground-floor Flat | E6: 57 | F6: 49 | G6: 53 | H6: 32 | I6: 36 | J6: 411 | K6: 104 | L6: 23427 | M6: 5928 | N6: Boilers + Radiators + Coal | O6: Double Glazed | P6: Boiler | Q6: Cavity Fill | R6: n/a
A7: PH50 4RZ | B7: 22 | C7: 2010 | D7: Ground-floor Flat | E7: 60 | F7: 65 | G7: 66 | H7: 50 | I7: 50 | J7: 411 | K7: 66 | L7: 24660 | M7: 3960 | N7: Electric Storage | O7: Double Glazed | P7: Electric Immersion | Q7: Cavity Fill | R7: n/a
A8: PH50 4RU | B8: 52 | C8: 2014 | D8: Ground-floor Flat | E8: 62 | F8: 50 | G8: 58 | H8: 44 | I8: 50 | J8: 411 | K8: 79 | L8: 25482 | M8: 4898 | N8: Boilers + Radiators + Wood | O8: Double Glazed | P8: Boiler | Q8: Cavity wall no insulation | R8: n/a
A9: PH50 4SA | B9: 8 | C9: 2010 | D9: Ground-floor Flat | E9: 57 | F9: 48 | G9: 53 | H9: 32 | I9: 36 | J9: 412 | K9: 105 | L9: 23484 | M9: 5985 | N9: Electric Storage | O9: Double Glazed | P9: Electric Immersion | Q9: Cavity Fill | R9: n/a
A10: PH50 4RU | B10: 6 | C10: 2017 | D10: Ground-floor Flat | E10: 56 | F10: 52 | G10: 55 | H10: 57 | I10: 60 | J10: 435 | K10: 74 | L10: 24360 | M10: 4144 | N10: ASHP + Electric | O10: Double Glazed | P10: Boiler | Q10: Cavity Fill | R10: n/a
A11: PH50 4RU | B11: 12 | C11: 2014 | D11: Ground-floor Flat | E11: 57 | F11: 40 | G11: 51 | H11: 45 | I11: 54 | J11: 445 | K11: 80 | L11: 25365 | M11: 4560 | N11: Electric Storage | O11: Double Glazed | P11: Electric Immersion | Q11: Cavity Fill | R11: n/a
A12: PH50 4RB | B12: 24 | C12: 2015 | D12: Ground-floor Flat | E12: 53 | F12: 74 | G12: 79 | H12: 57 | I12: 67 | J12: 459 | K12: 78 | L12: 24327 | M12: 4134 | N12: Electric Storage | O12: Double Glazed | P12: Electric Immersion | Q12: Cavity Fill | R12: n/a
A13: PH50 4RU | B13: 16 | C13: 2013 | D13: Ground-floor Flat | E13: 50 | F13: 41 | G13: 52 | H13: 46 | I13: 55 | J13: 464 | K13: 83 | L13: 23200 | M13: 4150 | N13: Electric Storage | O13: Double Glazed | P13: Electric Immersion | Q13: Cavity Fill | R13: n/a
A14: PH50 4SA | B14: 7 | C14: 2010 | D14: Ground-floor Flat | E14: 57 | F14: 30 | G14: 30 | H14: 49 | I14: 49 | J14: 465 | K14: 70 | L14: 26505 | M14: 3990 | N14: Electric Storage | O14: Double Glazed | P14: Electric Immersion | Q14: Cavity Fill | R14: n/a
A15: PH50 4RB | B15: 6 | C15: 2015 | D15: Ground-floor Flat | E15: 51 | F15: 74 | G15: 79 | H15: 58 | I15: 68 | J15: 466 | K15: 79 | L15: 23766 | M15: 4029 | N15: Electric Storage | O15: Double Glazed | P15: Electric Immersion | Q15: Cavity Fill | R15: n/a
A16: PH50 4RB | B16: 13 | C16: 2015 | D16: Ground-floor Flat | E16: 52 | F16: 74 | G16: 79 | H16: 56 | I16: 67 | J16: 471 | K16: 80 | L16: 24492 | M16: 4160 | N16: Electric Storage | O16: Double Glazed | P16: Electric Immersion | Q16: Cavity Fill | R16: n/a
A17: PH50 4RU | B17: 38 | C17: 2013 | D17: Ground-floor Flat | E17: 81 | F17: 28 | G17: 35 | H17: 36 | I17: 42 | J17: 483 | K17: 86 | L17: 39123 | M17: 6966 | N17: Electric Storage | O17: Double Glazed | P17: Electric Immersion | Q17: Cavity wall no insulation | R17: n/a
A18: PH50 4RX | B18: 9 | C18: 2015 | D18: Ground-floor Flat | E18: 56 | F18: 52 | G18: 65 | H18: 44 | I18: 58 | J18: 489 | K18: 105 | L18: 27384 | M18: 5880 | N18: Boilers + Radiators + Wood | O18: Double Glazed | P18: Boiler | Q18: Cavity Fill | R18: n/a
A19: PH50 4RU | B19: 10 | C19: 2017 | D19: Ground-floor Flat | E19: 60 | F19: 48 | G19: 76 | H19: 48 | I19: 57 | J19: 494 | K19: 91 | L19: 29640 | M19: 5460 | N19: Electric Storage | O19: Double Glazed | P19: Electric Immersion | Q19: Cavity Fill | R19: n/a
A20: PH50 4RX | B20: 6 | C20: 2009 | D20: Ground-floor Flat | E20: 55 | F20: 53 | G20: 55 | H20: 47 | I20: 47 | J20: 496 | K20: 75 | L20: 27280 | M20: 4125 | N20: Electric Storage | O20: Double Glazed | P20: Electric Immersion | Q20: Cavity Fill | R20: n/a
A21: PH50 4SA | B21: 2 | C21: 2010 | D21: Ground-floor Flat | E21: 57 | F21: 48 | G21: 48 | H21: 45 | I21: 45 | J21: 503 | K21: 75 | L21: 28671 | M21: 4275 | N21: Electric Storage | O21: Double Glazed | P21: Electric Immersion | Q21: Cavity Fill | R21: n/a
A22: PH50 4RX | B22: 3 | C22: 2010 | D22: Ground-floor Flat | E22: 57 | F22: 54 | G22: 54 | H22: 45 | I22: 45 | J22: 507 | K22: 76 | L22: 28899 | M22: 4332 | N22: Electric Storage | O22: Double Glazed | P22: Electric Immersion | Q22: Cavity Fill | R22: n/a
A23: PH50 4RX | B23: 5 | C23: 2010 | D23: Ground-floor Flat | E23: 57 | F23: 53 | G23: 54 | H23: 45 | I23: 45 | J23: 508 | K23: 77 | L23: 28956 | M23: 4389 | N23: Electric Storage | O23: Double Glazed | P23: Electric Immersion | Q23: Cavity Fill | R23: n/a
A24: PH50 4SA | B24: 4 | C24: 2010 | D24: Ground-floor Flat | E24: 57 | F24: 53 | G24: 54 | H24: 45 | I24: 45 | J24: 508 | K24: 77 | L24: 28956 | M24: 4389 | N24: Electric Storage | O24: Double Glazed | P24: Electric Immersion | Q24: Cavity Fill | R24: n/a
A25: PH50 4RX | B25: 8 | C25: 2010 | D25: Ground-floor Flat | E25: 57 | F25: 58 | G25: 59 | H25: 42 | I25: 42 | J25: 510 | K25: 82 | L25: 29070 | M25: 4674 | N25: Electric Storage | O25: Double Glazed | P25: Electric Immersion | Q25: Cavity Fill | R25: n/a
A26: PH50 4SA | B26: 5 | C26: 2010 | D26: Ground-floor Flat | E26: 57 | F26: 58 | G26: 59 | H26: 42 | I26: 42 | J26: 510 | K26: 82 | L26: 29070 | M26: 4674 | N26: Electric Storage | O26: Double Glazed | P26: Electric Immersion | Q26: Cavity Fill | R26: n/a
A27: PH50 4SA | B27: 6 | C27: 2010 | D27: Ground-floor Flat | E27: 57 | F27: 58 | G27: 59 | H27: 42 | I27: 42 | J27: 510 | K27: 82 | L27: 29070 | M27: 4674 | N27: Electric Storage | O27: Double Glazed | P27: Electric Immersion | Q27: Cavity Fill | R27: n/a
A28: PH50 4RZ | B28: 6 | C28: 2010 | D28: Ground-floor Flat | E28: 46 | F28: 61 | G28: 62 | H28: 45 | I28: 45 | J28: 531 | K28: 86 | L28: 24426 | M28: 3956 | N28: Electric Storage | O28: Double Glazed | P28: Electric Immersion | Q28: Cavity Fill | R28: n/a
A29: PH50 4RZ | B29: 14 | C29: 2010 | D29: Ground-floor Flat | E29: 46 | F29: 61 | G29: 62 | H29: 45 | I29: 45 | J29: 531 | K29: 86 | L29: 24426 | M29: 3956 | N29: Electric Storage | O29: Double Glazed | P29: Electric Immersion | Q29: Cavity Fill | R29: n/a
A30: PH50 4RU | B30: 54 | C30: 2014 | D30: Ground-floor Flat | E30: 69 | F30: 39 | G30: 47 | H30: 32 | I30: 39 | J30: 540 | K30: 100 | L30: 37260 | M30: 6900 | N30: Boilers + Radiators + Oil | O30: Double Glazed | P30: Electric Immersion | Q30: Cavity wall no insulation | R30: n/a
A31: PH50 4RZ | B31: 10 | C31: 2013 | D31: Ground-floor Flat | E31: 47 | F31: 66 | G31: 74 | H31: 41 | I31: 52 | J31: 542 | K31: 97 | L31: 25474 | M31: 4559 | N31: Electric Storage | O31: Double Glazed | P31: Electric Immersion | Q31: Cavity Fill | R31: n/a
A32: PH50 4RU | B32: 44 | C32: 2016 | D32: Ground-floor Flat | E32: 81 | F32: 37 | G32: 50 | H32: 41 | I32: 51 | J32: 544 | K32: 97 | L32: 44064 | M32: 7857 | N32: Electric Storage | O32: Double Glazed | P32: Electric Immersion | Q32: Cavity Fill | R32: n/a
A33: PH50 4RS | B33: 5 | C33: 2013 | D33: Ground-floor Flat | E33: 46 | F33: 35 | G33: 47 | H33: 39 | I33: 49 | J33: 546 | K33: 102 | L33: 25116 | M33: 4692 | N33: Electric Storage | O33: Double Glazed | P33: Electric Immersion | Q33: Cavity Fill | R33: n/a
A34: PH50 4RX | B34: 4 | C34: 2010 | D34: Ground-floor Flat | E34: 57 | F34: 44 | G34: 45 | H34: 39 | I34: 39 | J34: 549 | K34: 88 | L34: 31293 | M34: 5016 | N34: Electric Storage | O34: Double Glazed | P34: Electric Immersion | Q34: Cavity Fill | R34: n/a
A35: PH50 4RB | B35: 13 | C35: 2015 | D35: Ground-floor Flat | E35: 54 | F35: 68 | G35: 76 | H35: 49 | I35: 61 | J35: 559 | K35: 95 | L35: 30186 | M35: 5130 | N35: Electric Storage | O35: Double Glazed | P35: Electric Immersion | Q35: Cavity Fill | R35: n/a
A36: PH50 4RB | B36: 9 | C36: 2015 | D36: Ground-floor Flat | E36: 51 | F36: 68 | G36: 75 | H36: 48 | I36: 59 | J36: 590 | K36: 100 | L36: 30090 | M36: 5100 | N36: Electric Storage | O36: Double Glazed | P36: Electric Immersion | Q36: Cavity Fill | R36: n/a
A37: PH50 4SA | B37: 1 | C37: 2014 | D37: Ground-floor Flat | E37: 51 | F37: 52 | G37: 59 | H37: 36 | I37: 42 | J37: 590 | K37: 105 | L37: 30090 | M37: 5355 | N37: Electric Storage | O37: Double Glazed | P37: Electric Immersion | Q37: Cavity Fill | R37: n/a
A38: PH50 4RX | B38: 1 | C38: 2015 | D38: Ground-floor Flat | E38: 62 | F38: 37 | G38: 48 | H38: 44 | I38: 53 | J38: 593 | K38: 102 | L38: 36766 | M38: 6324 | N38: Electric Storage | O38: Double Glazed | P38: Electric Immersion | Q38: Cavity Fill | R38: n/a
A39: PH50 4SD | B39: 7 | C39: 2009 | D39: Ground-floor Flat | E39: 59 | F39: 45 | G39: 56 | H39: 38 | I39: 38 | J39: 594 | K39: 90 | L39: 35046 | M39: 5310 | N39: Electric Storage | O39: Double Glazed | P39: Electric Immersion | Q39: Cavity Fill | R39: n/a
A40: PH50 4RU | B40: 60 | C40: 2019 | D40: Ground-floor Flat | E40: 66 | F40: 33 | G40: 73 | H40: 41 | I40: 54 | J40: 602 | K40: 102 | L40: 39732 | M40: 6732 | N40: Electric storage | O40: Double Glazed | P40: Electric Immersion | Q40: Cavity wall no insulation | R40: n/a
A41: PH50 4SD | B41: 4 | C41: 2017 | D41: Ground-floor Flat | E41: 43 | F41: 67 | G41: 76 | H41: 46 | I41: 61 | J41: 657 | K41: 111 | L41: 28251 | M41: 4773 | N41: Electric Storage | O41: Double Glazed | P41: Electric Immersion | Q41: Cavity Fill | R41: n/a
A42: PH50 4RZ | B42: 2 | C42: 2013 | D42: Ground-floor Flat | E42: 49 | F42: 21 | G42: 28 | H42: 31 | I42: 36 | J42: 680 | K42: 121 | L42: 33320 | M42: 5929 | N42: Electric Storage | O42: Double Glazed | P42: Electric Immersion | Q42: Cavity wall no insulation | R42: n/a
A43: PH50 4RB | B43: 5 | C43: 2014 | D43: Ground-floor Flat | E43: 50 | F43: 52 | G43: 70 | H43: 30 | I43: 46 | J43: 692 | K43: 123 | L43: 34600 | M43: 6150 | N43: Electric Storage | O43: Double Glazed | P43: Electric Immersion | Q43: Cavity wall no Insulation | R43: n/a
A44: PH50 4RZ | B44: 18 | C44: 2018 | D44: Ground-floor Flat | E44: 42 | F44: 38 | G44: 72 | H44: 40 | I44: 49 | J44: 695 | K44: 127 | L44: 29190 | M44: 5334 | N44: Electric Storage | O44: Double Glazed | P44: Electric Immersion | Q44: Cavity Fill | R44: n/a
A45: PH50 4SD | B45: 13 | C45: 2009 | D45: Ground-floor Flat | E45: 59 | F45: 37 | G45: 38 | H45: 31 | I45: 31 | J45: 696 | K45: 105 | L45: 41064 | M45: 6195 | N45: Electric Storage | O45: Double Glazed | P45: Electric Immersion | Q45: Cavity Fill | R45: n/a
A46: PH50 4SD | B46: 15 | C46: 2017 | D46: Ground-floor Flat | E46: 59 | F46: 56 | G46: 73 | H46: 35 | I46: 52 | J46: 709 | K46: 128 | L46: 41831 | M46: 7552 | N46: Electric Storage | O46: Double Glazed | P46: Electric Immersion | Q46: Cavity Fill | R46: n/a
A47: PH50 4RB | B47: 19 | C47: 2014 | D47: Ground-floor Flat | E47: 57 | F47: 47 | G47: 70 | H47: 26 | I47: 47 | J47: 709 | K47: 126 | L47: 40413 | M47: 7182 | N47: Electric Storage | O47: Double Glazed | P47: Electric Immersion | Q47: Cavity wall no Insulation | R47: n/a
A48: PH50 4RU | B48: 26 | C48: 2015 | D48: Ground-floor Flat | E48: 86 | F48: 41 | G48: 75 | H48: 30 | I48: 58 | J48: 736 | K48: 124 | L48: 63296 | M48: 10664 | N48: Electric Storage | O48: Double Glazed | P48: Electric Immersion | Q48: Cavity wall no insulation | R48: n/a
A49: PH50 4RB | B49: 23 | C49: 2014 | D49: Ground-floor Flat | E49: 53 | F49: 47 | G49: 68 | H49: 26 | I49: 45 | J49: 742 | K49: 131 | L49: 39326 | M49: 6943 | N49: Electric Storage | O49: Double Glazed | P49: Electric Immersion | Q49: Cavity wall no Insulation | R49: n/a
A50: PH50 4RB | B50: 10 | C50: 2014 | D50: Ground-floor Flat | E50: 52 | F50: 47 | G50: 68 | H50: 26 | I50: 45 | J50: 748 | K50: 132 | L50: 38896 | M50: 6864 | N50: Electric Storage | O50: Double Glazed | P50: Electric Immersion | Q50: Cavity wall no Insulation | R50: n/a
A51: PH50 4RB | B51: 20 | C51: 2014 | D51: Ground-floor Flat | E51: 57 | F51: 45 | G51: 69 | H51: 24 | I51: 46 | J51: 749 | K51: 133 | L51: 42693 | M51: 7581 | N51: Electric Storage | O51: Double Glazed | P51: Electric Immersion | Q51: Cavity wall no Insulation | R51: n/a
A52: PH50 4RU | B52: 32 | C52: 2015 | D52: Ground-floor Flat | E52: 59 | F52: 21 | G52: 57 | H52: 32 | I52: 62 | J52: 803 | K52: 136 | L52: 47377 | M52: 8024 | N52: Electric Storage | O52: Double Glazed | P52: Electric Immersion | Q52: Cavity wall no insulation | R52: n/a
A53: PH50 4RU | B53: 46 | C53: 2018 | D53: Mid-floor Flat | E53: 81 | F53: 57 | G53: 76 | H53: 61 | I53: 60 | J53: 351 | K53: 59 | L53: 28431 | M53: 4779 | N53: Electric Storage | O53: Double Glazed | P53: Electric Immersion | Q53: Cavity Fill | R53: n/a
A54: PH50 4RU | B54: 28 | C54: 2014 | D54: Mid-floor Flat | E54: 80 | F54: 41 | G54: 42 | H54: 44 | I54: 45 | J54: 392 | K54: 71 | L54: 31360 | M54: 5680 | N54: Electric Storage | O54: Double Glazed | P54: Electric Immersion | Q54: Cavity wall no insulation | R54: n/a
A55: PH50 4RP | B55: Flat 2 FF | C55: 2013 | D55: Mid-floor Flat | E55: 58 | F55: 68 | G55: 80 | H55: 49 | I55: 69 | J55: 407 | K55: 72 | L55: =J55*E55 -> 23606 | M55: =K55*E55 -> 4176 | N55: Electric Storage | O55: Double Glazed | P55: Electric Immersion | Q55: Cavity wall no insulation | R55: n/a
A56: PH50 4RP | B56: Flat 1 FF | C56: 2013 | D56: Mid-floor Flat | E56: 58 | F56: 62 | G56: 75 | H56: 48 | I56: 67 | J56: 422 | K56: 75 | L56: 24476 | M56: 4350 | N56: Electric Storage | O56: Double Glazed | P56: Electric Immersion | Q56: Cavity wall no insulation | R56: n/a
A57: PH50 4SD | B57: 8 | C57: 2017 | D57: Mid-floor Flat | E57: 56 | F57: 54 | G57: 80 | H57: 59 | I57: 68 | J57: 426 | K57: 72 | L57: 23856 | M57: 4032 | N57: Electric Storage | O57: Double Glazed | P57: Electric Immersion | Q57: Cavity Fill | R57: n/a
A58: PH50 4SD | B58: 5 | C58: 2017 | D58: Mid-floor Flat | E58: 57 | F58: 74 | G58: 81 | H58: 57 | I58: 70 | J58: 441 | K58: 75 | L58: 25137 | M58: 4275 | N58: Electric Storage | O58: Double Glazed | P58: Electric Immersion | Q58: Cavity Fill | R58: n/a
A59: PH50 4SD | B59: 2 | C59: 2012 | D59: Mid-floor Flat | E59: 57 | F59: 44 | G59: 58 | H59: 32 | I59: 43 | J59: 598 | K59: 105 | L59: 34086 | M59: 5985 | N59: Electric Storage | O59: Double Glazed | P59: Electric Immersion | Q59: Cavity Fill | R59: n/a

Sheet Mid-Terrace
A1: Postcode | B1: House No. | C1: Assessment Year | D1: Dwelling Type | E1: Floor Area (m^2) | F1: Energy Efficiency Rating - Current | G1: Energy Efficiency Rating - Potential | H1: Environmental Impact Rating - Current | I1: Environmental Impact Rating - Potential | J1: Energy Usuage (kWh/m^2 per year) | K1: Emissions (kg/m^2 per year) | L1: Energy usage (kWh/year) | M1: Emmissions (kgCO2/year) | N1: Main Heating Type | O1: Windows | P1: Hot Water | Q1: Wall Insulation | R1: Pitch Roof Insulation | V1: Floor Area (m^2) | W1: Energy Efficiency Rating - Current | X1: Environmental Impact Rating - Current | Y1: Energy Usuage (kWh/m^2 per year) | Z1: Emissions (kg/m^2 per year) | AC1: Wall Insulation | AF1: Roof insulation
A2: PH50 4QX | B2: 19 | C2: 2018 | D2: Mid-terrrace | E2: 92 | F2: 69 | G2: 83 | H2: 63 | I2: 77 | J2: 210 | K2: 54 | L2: =J2*E2 -> 19320 | M2: =K2*E2 -> 4968 | N2: Boilers + Radiators + Oil | O2: Double Glazed | P2: Boiler | Q2: Cavity Fill | R2: 270mm Loft Insulation | V2: =AVERAGE(E2:E54) -> 70.86792453 | W2: =AVERAGE(F2:F54) -> 49.26415094 | X2: =AVERAGE(H2:H54) -> 46.66037736 | Y2: =AVERAGE(J2:J54) -> 512.2830189 | Z2: =AVERAGE(K2:K54) -> 89.01923077 | AA2: =AVERAGE(L2:L54) -> 36072.15094 | AB2: Cavity fill | AC2: =COUNTIF(Q2:Q54,"cavity fill") -> 44 | AE2: 400 | AF2: =COUNTIF(R2:R54,"400mm loft insulation") -> 0
A3: PH50 4QP | B3: 15 | C3: 2018 | D3: Mid-terrrace | E3: 69 | F3: 71 | G3: 88 | H3: 65 | I3: 83 | J3: 219 | K3: 57 | L3: =J3*E3 -> 15111 | M3: =K3*E3 -> 3933 | N3: Boilers + Radiators + Oil | O3: Double Glazed | P3: Boiler | Q3: Cavity Fill | R3: No insulation | AB3: solid brick no insulation | AC3: =COUNTIF(Q2:Q54,"solid brick no insulation") -> 2 | AE3: 300 | AF3: =COUNTIF(R$2:R$54,"300mm loft insulation") -> 22
A4: PH50 4QH | B4: 11 | C4: 2012 | D4: Mid-terrrace | E4: 69 | F4: 66 | G4: 67 | H4: 52 | I4: 54 | J4: 235 | K4: 60 | L4: 16215 | M4: 4140 | N4: Boilers + Radiators + Oil | O4: Double Glazed | P4: Boiler | Q4: Cavity Fill | R4: 150mm Loft insulation | AB4: Cavity wall no insulation | AC4: =COUNTIF(Q2:Q54,"cavity wall no insulation") -> 4 | AE4: 270 | AF4: =COUNTIF(R$2:R$54,"270mm loft insulation") -> 4
A5: PH50 4RP | B5: 16 | C5: 2014 | D5: Mid-terrrace | E5: 59 | F5: 61 | G5: 87 | H5: 64 | I5: 89 | J5: 277 | K5: 49 | L5: 16343 | M5: 2891 | N5: ASHP + Electric | O5: Double Glazed | P5: Boiler | Q5: Cavity Fill | R5: 300mm Loft Insulation | AB5: Timber insulated | AC5: =COUNTIF(Q2:Q54,"Timber insulated") -> 3 | AE5: 250 | AF5: =COUNTIF(R$2:R$54,"250mm loft insulation") -> 4
A6: PH50 4RR | B6: 11 | C6: 2013 | D6: Mid-terrrace | E6: 73 | F6: 61 | G6: 84 | H6: 53 | I6: 77 | J6: 304 | K6: 59 | L6: 22192 | M6: 4307 | N6: Boilers + Radiators + Wood | O6: Double Glazed | P6: Boiler | Q6: Cavity Fill | R6: 100mm Loft insulation | AE6: 200 | AF6: =COUNTIF(R$2:R$54,"200mm loft insulation") -> 4
A7: PH50 4QH | B7: 15 | C7: 2015 | D7: Mid-terrrace | E7: 85 | F7: 50 | G7: 108 | H7: 43 | I7: 100 | J7: 338 | K7: 88 | L7: 28730 | M7: 7480 | N7: Boilers + Radiators + Oil | O7: Double Glazed | P7: Boiler | Q7: Cavity Fill | R7: 75mm loft Insulation | AE7: 150 | AF7: =COUNTIF(R$2:R$54,"150mm loft insulation") -> 8
A8: PH50 4RS | B8: 13 | C8: 2010 | D8: Mid-terrrace | E8: 55 | F8: 42 | G8: 42 | H8: 61 | I8: 61 | J8: 350 | K8: 53 | L8: 19250 | M8: 2915 | N8: Electric Storage | O8: Double Glazed | P8: Electric Immersion | Q8: Cavity Fill | R8: 300mm Loft Insulation | AE8: 100 | AF8: =COUNTIF(R$2:R$54,"100mm loft insulation") -> 2
A9: PH50 4RQ | B9: 11 | C9: 2017 | D9: Mid-terrrace | E9: 92 | F9: 57 | G9: 73 | H9: 90 | I9: 100 | J9: 352 | K9: 14 | L9: 32384 | M9: 1288 | N9: Boilers + Radiators + Wood | O9: Double Glazed | P9: Boiler | Q9: Timber Insulated | R9: 150mm Loft insulation | AE9: 50 | AF9: =COUNTIF(R$2:R$54,"50mm loft insulation") -> 1
A10: PH50 4RS | B10: 11 | C10: 2014 | D10: Mid-terrrace | E10: 62 | F10: 50 | G10: 64 | H10: 54 | I10: 67 | J10: 356 | K10: 63 | L10: 22072 | M10: 3906 | N10: Boilers + Radiators + Oil | O10: Double Glazed | P10: Boiler | Q10: Cavity Fill | R10: 300mm Loft Insulation | AE10: 0 | AF10: =COUNTIF(R$2:R$54,"no insulation") -> 4
A11: PH50 4RQ | B11: 47 | C11: 2017 | D11: Mid-terrrace | E11: 94 | F11: 49 | G11: 98 | H11: 43 | I11: 90 | J11: 359 | K11: 89 | L11: 33746 | M11: 8366 | N11: Boilers + Radiators + Oil | O11: Double Glazed | P11: Boiler | Q11: Cavity wall no insulation | R11: 150mm Loft insulation | AE11: sum | AF11: =SUM(AF2:AF10) -> 49
A12: PH50 4RS | B12: 41 | C12: 2018 | D12: Mid-terrrace | E12: 63 | F12: 59 | G12: 82 | H12: 63 | I12: 84 | J12: 376 | K12: 64 | L12: 23688 | M12: 4032 | N12: ASHP + Electric | O12: Double Glazed | P12: Boiler | Q12: Cavity Fill | R12: 300mm Loft Insulation | AE12: average | AF12: =(AE2*AF2+AE3*AF3+AE4*AF4+AE5*AF5+AE6*AF6+AE7*AF7+AE8*AF8+AE9*AF9+AE10*AF10)/AF11 -> 223.0612245
A13: PH50 4RS | B13: 23 | C13: 2010 | D13: Mid-terrrace | E13: 63 | F13: 35 | G13: 35 | H13: 56 | I13: 56 | J13: 376 | K13: 100 | L13: 23688 | M13: 6300 | N13: Electric Storage | O13: Double Glazed | P13: Electric Immersion | Q13: Cavity Fill | R13: 300mm Loft Insulation
A14: PH50 4RS | B14: 39 | C14: 2017 | D14: Mid-terrrace | E14: 62 | F14: 56 | G14: 78 | H14: 60 | I14: 80 | J14: 392 | K14: 66 | L14: 24304 | M14: 4092 | N14: ASHP + Electric | O14: Double Glazed | P14: Boiler | Q14: Cavity Fill | R14: 350mm Loft Insulation
A15: PH50 4RS | B15: 19 | C15: 2014 | D15: Mid-terrrace | E15: 59 | F15: 56 | G15: 75 | H15: 50 | I15: 69 | J15: 394 | K15: 70 | L15: 23246 | M15: 4130 | N15: Boilers + Radiators + Oil | O15: Double Glazed | P15: Boiler | Q15: Cavity Fill | R15: 200mm Loft Insulation
A16: PH50 4RS | B16: 43 | C16: 2010 | D16: Mid-terrrace | E16: 59 | F16: 42 | G16: 42 | H16: 54 | I16: 54 | J16: 400 | K16: 61 | L16: 23600 | M16: 3599 | N16: Boilers + Radiators + Oil | O16: Double Glazed | P16: Boiler | Q16: Cavity Fill | R16: 300mm Loft Insulation
A17: PH50 4RS | B17: 29 | C17: 2010 | D17: Mid-terrrace | E17: 64 | F17: 40 | G17: 40 | H17: 63 | I17: 63 | J17: 403 | K17: 61 | L17: 25792 | M17: 3904 | N17: Boilers + Radiators + Coal | O17: Double Glazed | P17: Boiler | Q17: Cavity Fill | R17: 300mm Loft Insulation
A18: PH50 4QS | B18: 9 | C18: 2011 | D18: Mid-terrrace | E18: 90 | F18: 51 | G18: 53 | H18: 42 | I18: 44 | J18: 413 | K18: 69 | L18: 37170 | M18: 6210 | N18: Electric Storage | O18: Double Glazed | P18: Electric Immersion | Q18: Cavity Fill | R18: 150mm Loft insulation
A19: PH50 4RS | B19: 31 | C19: 2017 | D19: Mid-terrrace | E19: 60 | F19: 53 | G19: 76 | H19: 58 | I19: 79 | J19: 419 | K19: 71 | L19: 25140 | M19: 4260 | N19: ASHP + Electric | O19: Double Glazed | P19: Boiler | Q19: Cavity Fill | R19: 150mm Loft insulation
A20: PH50 4RS | B20: 21 | C20: 2014 | D20: Mid-terrrace | E20: 59 | F20: 41 | G20: 68 | H20: 47 | I20: 71 | J20: 426 | K20: 75 | L20: 25134 | M20: 4425 | N20: Boilers + Radiators + Wood | O20: Double Glazed | P20: Boiler | Q20: Cavity Fill | R20: 250mm Loft insulation
A21: PH50 4RP | B21: 18 | C21: 2017 | D21: Mid-terrrace | E21: 60 | F21: 49 | G21: 69 | H21: 55 | I21: 73 | J21: 444 | K21: 75 | L21: 26640 | M21: 4500 | N21: ASHP + Electric | O21: Double Glazed | P21: Boiler | Q21: Cavity Fill | R21: 250mm Loft insulation
A22: PH50 4RP | B22: 4 | C22: 2010 | D22: Mid-terrrace | E22: 64 | F22: 59 | G22: 59 | H22: 45 | I22: 45 | J22: 458 | K22: 74 | L22: 29312 | M22: 4736 | N22: Electric Storage | O22: Double Glazed | P22: Electric Immersion | Q22: Cavity Fill | R22: 300mm Loft Insulation
A23: PH50 4RF | B23: 8 | C23: 2016 | D23: Mid-terrrace | E23: 83 | F23: 55 | G23: 85 | H23: 51 | I23: 68 | J23: 460 | K23: 78 | L23: 38180 | M23: 6474 | N23: Electric Storage | O23: Double Glazed | P23: Electric Immersion | Q23: Cavity Fill | R23: 200mm Loft Insulation
A24: PH50 4RD | B24: 8 | C24: 2011 | D24: Mid-terrrace | E24: 74 | F24: 43 | G24: 56 | H24: 37 | I24: 47 | J24: 472 | K24: 92 | L24: 34928 | M24: 6808 | N24: Electric Storage | O24: Double Glazed | P24: Electric Immersion | Q24: Cavity wall no insulation | R24: 150mm Loft insulation
A25: PH50 4RP | B25: 19 | C25: 2010 | D25: Mid-terrrace | E25: 64 | F25: 45 | G25: 45 | H25: 46 | I25: 46 | J25: 478 | K25: 72 kg/m2 | L25: 30592 | N25: Electric Storage | O25: Double Glazed | P25: Electric Immersion | Q25: Cavity Fill | R25: 300mm Loft Insulation
A26: PH50 4RA | B26: 21 | C26: 2018 | D26: Mid-terrrace | E26: 83 | F26: 32 | G26: 74 | H26: 29 | I26: 65 | J26: 485 | K26: 128 | L26: 40255 | M26: 10624 | N26: Boilers + Radiators + Oil | O26: Double Glazed | P26: Boiler | Q26: Cavity wall no insulation | R26: 25mm Loft insulation
A27: PH50 4RP | B27: 8 | C27: 2013 | D27: Mid-terrrace | E27: 64 | F27: 34 | G27: 60 | H27: 39 | I27: 60 | J27: 486 | K27: 88 | L27: 31104 | M27: 5632 | N27: Electric Storage | O27: Double Glazed | P27: Boiler | Q27: Cavity Fill | R27: 300mm Loft Insulation
A28: PH50 4SB | B28: 2 | C28: 2016 | D28: Mid-terrrace | E28: 109 | F28: 31 | G28: 83 | H28: 22 | I28: 63 | J28: 489 | K28: 140 | L28: 53301 | M28: 15260 | N28: Boilers + Radiators + Oil | O28: Double Glazed | P28: Boiler | Q28: Solid Brick no insulation | R28: 150mm Loft insulation
A29: PH50 4RP | B29: 5 | C29: 2010 | D29: Mid-terrrace | E29: 64 | F29: 43 | G29: 44 | H29: 44 | I29: 44 | J29: 494 | K29: 74 | L29: 31616 | M29: 4736 | N29: Electric Storage | O29: Double Glazed | P29: Electric Immersion | Q29: Cavity Fill | R29: 300mm Loft Insulation
A30: PH50 4RP | B30: 12 | C30: 2013 | D30: Mid-terrrace | E30: 58 | F30: 65 | G30: 87 | H30: 40 | I30: 63 | J30: 496 | K30: 89 | L30: 28768 | M30: 5162 | N30: Electric Storage | O30: Double Glazed | P30: Electric Immersion | Q30: Cavity Fill | R30: 200mm Loft Insulation
A31: PH50 4RS | B31: 33 | C31: 2013 | D31: Mid-terrrace | E31: 58 | F31: 64 | G31: 87 | H31: 40 | I31: 63 | J31: 501 | K31: 90 | L31: 29058 | M31: 5220 | N31: Electric Storage | O31: Double Glazed | P31: Electric Immersion | Q31: Cavity Fill | R31: 250mm Loft insulation
A32: PH50 4RP | B32: 14 | C32: 2013 | D32: Mid-terrrace | E32: 60 | F32: 64 | G32: 85 | H32: 39 | I32: 60 | J32: 507 | K32: 91 | L32: 30420 | M32: 5460 | N32: Electric Storage | O32: Double Glazed | P32: Electric Immersion | Q32: Cavity Fill | R32: 300mm Loft Insulation
A33: PH50 4QP | B33: 7 | C33: 2014 | D33: Mid-terrrace | E33: 70 | F33: 60 | G33: 90 | H33: 36 | I33: 74 | J33: 516 | K33: 91 | L33: 36120 | M33: 6370 | N33: Electric Storage | O33: Double Glazed | P33: Electric Immersion | Q33: Cavity wall no insulation | R33: 50mm loft insulation
A34: PH50 4RS | B34: 47 | C34: 2017 | D34: Mid-terrrace | E34: 63 | F34: 44 | G34: 66 | H34: 88 | I34: 101 | J34: 521 | K34: 20 | L34: 32823 | M34: 1260 | N34: Boilers + Radiators + Wood | O34: Double Glazed | P34: Boiler | Q34: Cavity Fill | R34: No insulation
A35: PH50 4RR | B35: 7 | C35: 2018 | D35: Mid-terrrace | E35: 70 | F35: 69 | G35: 87 | H35: 48 | I35: 69 | J35: 526 | K35: 89 | L35: 36820 | M35: 6230 | N35: Electric Storage | O35: Double Glazed | P35: Electric Immersion | Q35: Cavity Fill | R35: 270mm Loft Insulation
A36: PH50 4RP | B36: 7 | C36: 2017 | D36: Mid-terrrace | E36: 60 | F36: 45 | G36: 68 | H36: 88 | I36: 102 | J36: 526 | K36: 20 | L36: 31560 | M36: 1200 | N36: Boilers + Radiators + Wood | O36: Double Glazed | P36: Boiler | Q36: Cavity Fill | R36: n/a
A37: PH50 4QS | B37: 8 | C37: 2016 | D37: Mid-terrrace | E37: 89 | F37: 63 | G37: 83 | H37: 44 | I37: 64 | J37: 537 | K37: 92 | L37: 47793 | M37: 8188 | N37: Electric Storage | O37: Double Glazed | P37: Electric Immersion | Q37: Cavity Fill | R37: 150mm Loft insulation
A38: PH50 4QX | B38: 11 | C38: 2018 | D38: Mid-terrrace | E38: 97 | F38: 57 | G38: 84 | H38: 42 | I38: 67 | J38: 553 | K38: 93 | L38: 53641 | M38: 9021 | N38: Electric Storage | O38: Double Glazed | P38: Electric Immersion | Q38: Timber Insulated | R38: 270mm Loft Insulation
A39: PH50 4QX | B39: 10 | C39: 2010 | D39: Mid-terrrace | E39: 90 | F39: 37 | G39: 38 | H39: 32 | I39: 32 | J39: 588 | K39: 89 | L39: 52920 | M39: 8010 | N39: Electric Storage | O39: Double Glazed | P39: Electric Immersion | Q39: Solid Brick no insulation | R39: 300mm Loft Insulation
A40: PH50 4RQ | B40: 4 | C40: 2018 | D40: Mid-terrrace | E40: 98 | F40: 56 | G40: 83 | H40: 37 | I40: 62 | J40: 604 | K40: 106 | L40: 59192 | M40: 10388 | N40: Electric Storage | O40: Double Glazed | P40: Electric Immersion | Q40: Timber Insulated | R40: 200mm Loft Insulation
A41: PH50 4RR | B41: 2 | C41: 2015 | D41: Mid-terrrace | E41: 76 | F41: 32 | G41: 55 | H41: 41 | I41: 59 | J41: 604 | K41: 102 | L41: 45904 | M41: 7752 | N41: Electric Storage | O41: Double Glazed | P41: Electric Immersion | Q41: Cavity Fill | R41: 300mm Loft Insulation
A42: PH50 4RR | B42: 6 | C42: 2015 | D42: Mid-terrrace | E42: 76 | F42: 32 | G42: 55 | H42: 41 | I42: 59 | J42: 604 | K42: 102 | L42: 45904 | M42: 7752 | N42: Electric Storage | O42: Double Glazed | P42: Electric Immersion | Q42: Cavity Fill | R42: 300mm Loft Insulation
A43: PH50 4QS | B43: 2 | C43: 2016 | D43: Mid-terrrace | E43: 84 | F43: 58 | G43: 84 | H43: 40 | I43: 64 | J43: 605 | K43: 102 | L43: 50820 | M43: 8568 | N43: Electric Storage | O43: Double Glazed | P43: Electric Immersion | Q43: Cavity Fill | R43: 300mm Loft Insulation
A44: PH50 4RR | B44: 15 | C44: 2015 | D44: Mid-terrrace | E44: 70 | F44: 57 | G44: 75 | H44: 39 | I44: 56 | J44: 649 | K44: 113 | L44: 45430 | M44: 7910 | N44: Electric Storage | O44: Double Glazed | P44: Electric Immersion | Q44: Cavity Fill | R44: 300mm Loft Insulation
A45: PH50 4RB | B45: 2 | C45: 2015 | D45: Mid-terrrace | E45: 50 | F45: 65 | G45: 87 | H45: 44 | I45: 67 | J45: 667 | K45: 113 | L45: 33350 | M45: 5650 | N45: Electric Storage | O45: Double Glazed | P45: Electric Immersion | Q45: Cavity Fill | R45: 300mm Loft Insulation
A46: PH50 4QS | B46: 3 | C46: 2018 | D46: Mid-terrrace | E46: 90 | F46: 47 | G46: 82 | H46: 34 | I46: 61 | J46: 670 | K46: 113 | L46: 60300 | M46: 10170 | N46: Electric Storage | O46: Double Glazed | P46: Electric Immersion | Q46: Cavity Fill | R46: 250mm Loft insulation
A47: PH50 4RP | B47: 6 | C47: 2015 | D47: Mid-terrrace | E47: 61 | F47: 32 | G47: 54 | H47: 37 | I47: 56 | J47: 687 | K47: 123 | L47: 41907 | M47: 7503 | N47: Electric Storage | O47: Double Glazed | P47: Electric Immersion | Q47: Cavity Fill | R47: 300mm Loft Insulation
A48: PH50 4QF | B48: 3 | C48: 2015 | D48: Mid-terrrace | E48: 63 | F48: 29 | G48: 52 | H48: 38 | I48: 55 | J48: 700 | K48: 122 | L48: 44100 | M48: 7686 | N48: Electric Storage | O48: Double Glazed | P48: Electric Immersion | Q48: Cavity Fill | R48: 300mm Loft Insulation
A49: PH50 4RP | B49: 3 | C49: 2015 | D49: Mid-terrrace | E49: 63 | F49: 29 | G49: 52 | H49: 38 | I49: 55 | J49: 700 | K49: 122 | L49: 44100 | M49: 7686 | N49: Electric Storage | O49: Double Glazed | P49: Electric Immersion | Q49: Cavity Fill | R49: 300mm Loft Insulation
A50: PH50 4RS | B50: 49 | C50: 2018 | D50: Mid-terrrace | E50: 53 | F50: 58 | G50: 88 | H50: 37 | I50: 69 | J50: 770 | K50: 130 | L50: 40810 | M50: 6890 | N50: Electric Storage | O50: Double Glazed | P50: Electric Immersion | Q50: Cavity Fill | R50: 300mm Loft Insulation
A51: PH50 4QH | B51: 14 | C51: 2017 | D51: Mid-terrrace | E51: 71 | F51: 17 | G51: 64 | H51: 28 | I51: 66 | J51: 815 | K51: 142 | L51: 57865 | M51: 10082 | N51: Boilers + Radiators + Oil | O51: Double Glazed | P51: Boiler | Q51: Cavity Fill | R51: No Insulation
A52: PH50 4RP | B52: 15 | C52: 2017 | D52: Mid-terrrace | E52: 60 | F52: 55 | G52: 84 | H52: 31 | I52: 60 | J52: 824 | K52: 145 | L52: 49440 | M52: 8700 | N52: Electric Storage | O52: Double Glazed | P52: Electric Immersion | Q52: Cavity Fill | R52: 270mm Loft Insulation
A53: PH50 4RP | B53: 9 | C53: 2015 | D53: Mid-terrrace | E53: 65 | F53: 41 | G53: 70 | H53: 23 | I53: 41 | J53: 1023 | K53: 173 | L53: 66495 | M53: 11245 | N53: Electric Storage | O53: Double Glazed | P53: Electric Immersion | Q53: Cavity Fill | R53: 100mm Loft insulation
A54: PH50 4QW | B54: 10 | C54: 2015 | D54: Mid-terrrace | E54: 67 | F54: 35 | G54: 83 | H54: 19 | I54: 62 | J54: 1093 | K54: 185 | L54: 73231 | M54: 12395 | N54: Electric Storage | O54: Double Glazed | P54: Electric Immersion | Q54: Cavity Fill | R54: No insulation

Sheet Semi-Detached
A1: Postcode | B1: House No. | C1: Assessment Year | D1: Dwelling Type | E1: Floor Area (m^2) | F1: Energy Efficiency Rating - Current | G1: Energy Efficiency Rating - Potential | H1: Environmental Impact Rating - Current | I1: Environmental Impact Rating - Potential | J1: Energy Usuage (kWh/m^2 per year) | K1: Emissions (kg/m^2 per year) | L1: Energy usage (kWh/year) | M1: Emmissions (kgCO2/year) | N1: Main Heating Type | O1: Windows | P1: Hot Water | Q1: Wall Insulation | R1: Pitch Roof Insulation | W1: Pre | AH1: Post
A2: PH50 4QU | B2: 3 | C2: 2012 | D2: Semi-Detached | E2: 136 | F2: 70 | G2: 72 | H2: 60 | I2: 62 | J2: 159 | K2: 40 | L2: =J2*E2 -> 21624 | M2: =K2*E2 -> 5440 | N2: Boilers + Radiators + Oil | O2: Double Glazed | P2: Boiler | Q2: Cavity Fill | R2: 300mm Loft Insulation | W2: Average Floor area | X2: Energy Efficiency Rating - Current | Z2: Ave Environmental Impact Rating - Current | AA2: Average Energy Usuage (kWh/m^2 per year) | AB2: Ave tot energy usage (kWh/year) | AC2: heating (kWh/year) | AD2: water heating (kWh/year) | AE2: Electrical (kWh/year) | AH2: heating (kWh/year) | AI2: water (kWh/year) | AJ2: electrical | AK2: total | AM2: heating factor reduction | AN2: water reduction | AR2: Roof ins | AS2: Ave Roof ins | AT2: Median roof ins | AV2: Wall ins
A3: PH50 4SE | B3: Levenside | C3: 2013 | D3: Semi-Detached | E3: 170 | F3: 67 | G3: 82 | H3: 56 | I3: 73 | J3: 175 | K3: 43 | L3: =J3*E3 -> 29750 | M3: =K3*E3 -> 7310 | N3: Boilers + Radiators + Oil | O3: Double Glazed | P3: Boiler | Q3: Cavity Fill | R3: 200mm Loft Insulation | W3: =AVERAGE(E2:E163) -> 87.34567901 | X3: =AVERAGE(F2:F163) -> 49.27160494 | Z3: 46.22222222 | AA3: =AVERAGE(J2:J163) -> 437.6419753 | AB3: =AVERAGE(L2:L163) -> 37155.10494 | AC3: 18500 | AD3: 3500 | AE3: =AB3-AC3-AD3 -> 15155.10494 | AH3: 1700 | AI3: =AD3/3 -> 1166.666667 | AJ3: =AE3/2 -> 7577.552469 | AK3: =AH3+AI3+AJ3 -> 10444.21914 | AM3: =AC3/AH3 -> 10.88235294 | AN3: =AD3/AI3 -> 3 | AQ3: 400 | AR3: =COUNTIF(R2:R163,"400mm loft insulation") -> 1 | AS3: =(AQ3*AR3+AQ4*AR4+AQ5*AR5+AQ6*AR6+AQ7*AR7+AQ8*AR8+AQ9*AR9+AQ10*AR10+AQ11*AR11+AQ12*AR12)/SUM(AR3:AR12) -> 188.3544304 | AT3: 200 | AU3: Cavity fill | AV3: =COUNTIF(Q2:Q163,"cavity fill") -> 92
A4: PH50 4RT | B4: 8 | C4: 2017 | D4: Semi-Detached | E4: 91 | F4: 74 | G4: 89 | H4: 77 | I4: 90 | J4: 181 | K4: 31 | L4: 16471 | M4: 2821 | N4: ASHP + Electric | O4: HP Glazing | P4: Electric Immersion | Q4: Cavity fill | R4: 150mm Loft insulation | AB4: =AB3/W3 -> 425.38 | AQ4: 300 | AR4: =COUNTIF(R2:R163,"300mm loft insulation") -> 41 | AU4: solid brick | AV4: =COUNTIF(Q2:Q163,"Solid Brick no insulation") -> 12
A5: PH50 4RT | B5: 7 | C5: 2017 | D5: Semi-Detached | E5: 92 | F5: 74 | G5: 89 | H5: 77 | I5: 90 | J5: 181 | K5: 31 | L5: 16652 | M5: 2852 | N5: ASHP + Electric | O5: HP Glazing | P5: Electric Immersion | Q5: Cavity Fill | R5: 150mm Loft insulation | AC5: =AC3/AB3*100 -> 49.79127372 | AD5: =AD3/AB3*100 -> 9.419970703 | AE5: =AE3/AB3*100 -> 40.78875558 | AH5: =AH3/AK3*100 -> 16.27694687 | AI5: =AI3/AK3*100 -> 11.17045374 | AJ5: =AJ3/AK3*100 -> 72.55259939 | AQ5: 270 | AR5: =COUNTIF(R2:R163,"270mm loft insulation") -> 13 | AU5: timber insulated | AV5: =COUNTIF(Q2:Q163,"timber insulated") -> 19
A6: PH50 4RA | B6: 19 | C6: 2010 | D6: Semi-Detached | E6: 97 | F6: 68 | G6: 71 | H6: 56 | I6: 60 | J6: 201 | K6: 44 | L6: 19497 | M6: 4268 | N6: Boilers + Radiators + Oil | O6: Double Glazed | P6: Boiler | Q6: Cavity Fill | R6: 300mm Loft Insulation | AQ6: 250 | AR6: =COUNTIF(R2:R163,"250mm loft insulation") -> 13 | AU6: cavity wall no insulation | AV6: =COUNTIF(Q2:Q163,"cavity wall no insulation") -> 31
A7: PH50 4RA | B7: THE STEADINGS | C7: 2009 | D7: Semi-Detached | E7: 149 | F7: 61 | G7: 63 | H7: 56 | I7: 57 | J7: 209 | K7: 42 | L7: 31141 | M7: 6258 | N7: Boilers + Radiators + Oil | O7: Double Glazed | P7: Boiler | Q7: Cavity Fill | R7: 200mm Loft Insulation | AQ7: 200 | AR7: =COUNTIF(R2:R163,"200mm loft insulation") -> 32 | AV7: =SUM(AV3:AV6) -> 154
A8: PH50 4QX | B8: 23 | C8: 2014 | D8: Semi-Detached | E8: 116 | F8: 64 | G8: 79 | H8: 53 | I8: 70 | J8: 210 | K8: 51 | L8: 24360 | M8: 5916 | N8: Boilers + Radiators + Oil | O8: Double Glazed | P8: Boiler | Q8: Cavity Fill | R8: No insulation | AQ8: 150 | AR8: =COUNTIF(R2:R163,"150mm loft insulation") -> 16
A9: PH50 4QR | B9: 1 | C9: 2014 | D9: Semi-Detached | E9: 82 | F9: 65 | G9: 84 | H9: 54 | I9: 74 | J9: 223 | K9: 56 | L9: 18286 | M9: 4592 | N9: Boilers + Radiators + Oil | O9: Double Glazed | P9: Boiler | Q9: Cavity Fill | R9: 300mm Loft Insulation | AQ9: 100 | AR9: =COUNTIF(R2:R163,"100mm loft insulation") -> 7
A10: PH50 4QT | B10: 5 | C10: 2014 | D10: Semi-Detached | E10: 94 | F10: 64 | G10: 84 | H10: 63 | I10: 85 | J10: 223 | K10: 42 | L10: 20962 | M10: 3948 | N10: Boilers + Radiators + Oil | O10: Double Glazed | P10: Boiler | Q10: Cavity Fill | R10: 300mm Loft Insulation | AQ10: 75 | AR10: =COUNTIF(R2:R163,"75mm loft insulation") -> 6
A11: PH50 4RQ | B11: 6 | C11: 2018 | D11: Semi-Detached | E11: 98 | F11: 66 | G11: 82 | H11: 59 | I11: 75 | J11: 228 | K11: 60 | L11: 22344 | M11: 5880 | N11: Boilers + Radiators + Oil | O11: Double Glazed | P11: Boiler | Q11: Timber Insulated | R11: 150mm Loft insulation | AQ11: 50 | AR11: =COUNTIF(R2:R163,"50mm loft insulation") -> 7
A12: PH50 4SE | B12: Allengrange | C12: 2018 | D12: Semi-Detached | E12: 175 | F12: 63 | G12: 74 | H12: 54 | I12: 67 | J12: 230 | K12: 60 | L12: 40250 | M12: 10500 | N12: Boilers + Radiators + Oil | O12: Double Glazed | P12: Boiler | Q12: Cavity Fill | R12: 250mm Loft insulation | AQ12: 0 | AR12: =COUNTIF(R2:R163,"No insulation") -> 22
A13: PH50 4RD | B13: 14 | C13: 2014 | D13: Semi-Detached | E13: 77 | F13: 69 | G13: 84 | H13: 67 | I13: 83 | J13: 231 | K13: 41 | L13: 17787 | M13: 3157 | N13: ASHP + Electric | O13: Double Glazed | P13: Boiler | Q13: Cavity Fill | R13: 200mm Loft Insulation | AQ13: sum | AR13: =SUM(AR3:AR12) -> 158
A14: PH50 4RH | B14: 8 | C14: 2018 | D14: Semi-Detached | E14: 94 | F14: 66 | G14: 83 | H14: 59 | I14: 76 | J14: 231 | K14: 60 | L14: 21714 | M14: 5640 | N14: Boilers + Radiators + Oil | O14: Double Glazed | P14: Boiler | Q14: Timber Insulated | R14: 270mm Loft Insulation
A15: PH50 4QX | B15: 24 | C15: 2018 | D15: Semi-Detached | E15: 193 | F15: 61 | G15: 74 | H15: 55 | I15: 69 | J15: 231 | K15: 57 | L15: 44583 | M15: 11001 | N15: Boilers + Radiators + Oil | O15: Double Glazed | P15: Boiler | Q15: Cavity Fill | R15: 50mm loft Insulation
A16: PH50 4SE | B16: The Moorings | C16: 2016 | D16: Semi-Detached | E16: 173 | F16: 62 | G16: 75 | H16: 53 | I16: 68 | J16: 235 | K16: 62 | L16: 40655 | M16: 10726 | N16: Boilers + Radiators + Oil | O16: Double Glazed | P16: Boiler | Q16: Cavity Fill | R16: 300mm Loft Insulation
A17: PH50 4RH | B17: 1 | C17: 2018 | D17: Semi-Detached | E17: 112 | F17: 64 | G17: 80 | H17: 56 | I17: 73 | J17: 236 | K17: 62 | L17: 26432 | M17: 6944 | N17: Boilers + Radiators + Oil | O17: Double Glazed | P17: Boiler | Q17: Timber Insulated | R17: 270mm Loft Insulation
A18: PH50 4QS | B18: 7 | C18: 2015 | D18: End-terrace | E18: 110 | F18: 65 | G18: 79 | H18: 58 | I18: 72 | J18: 237 | K18: 61 | L18: 26070 | M18: 6710 | N18: Boilers + Radiators + Oil | O18: Double Glazed | P18: Boiler | Q18: Cavity Fill | R18: 200mm Loft Insulation
A19: PH50 4QW | B19: 6 | C19: 2014 | D19: Semi-Detached | E19: 71 | F19: 65 | G19: 85 | H19: 54 | I19: 76 | J19: 238 | K19: 59 | L19: 16898 | M19: 4189 | N19: Boilers + Radiators + Oil | O19: Double Glazed | P19: Boiler | Q19: Cavity Fill | R19: 25mm Loft insulation
A20: PH50 4QX | B20: 9 | C20: 2018 | D20: End-terrace | E20: 88 | F20: 70 | G20: 86 | H20: 73 | I20: 87 | J20: 239 | K20: 40 | L20: 21032 | M20: 3520 | N20: GSHP + Electric | O20: Double Glazed | P20: Boiler | Q20: Timber Insulated | R20: 270mm Loft Insulation
A21: PH50 4QT | B21: 1 | C21: 2010 | D21: Semi-Detached | E21: 97 | F21: 61 | G21: 63 | H21: 55 | I21: 56 | J21: 240 | K21: 49 | L21: 23280 | M21: 4753 | N21: Boilers + Radiators + Oil | O21: Double Glazed | P21: Boiler | Q21: Cavity Fill | R21: 250mm Loft insulation
A22: PH50 4RA | B22: 18 | C22: 2014 | D22: Semi-Detached | E22: 82 | F22: 63 | G22: 83 | H22: 46 | I22: 70 | J22: 246 | K22: 68 | L22: 20172 | M22: 5576 | N22: Boilers + Radiators + Oil | O22: Double Glazed | P22: Boiler | Q22: Cavity wall no insulation | R22: 200mm Loft Insulation
A23: PH50 4RQ | B23: 41 | C23: 2017 | D23: Semi-Detached | E23: 130 | F23: 63 | G23: 75 | H23: 55 | I23: 67 | J23: 246 | K23: 63 | L23: 31980 | M23: 8190 | N23: Boilers + Radiators + Oil | O23: Double Glazed | P23: Boiler | Q23: Cavity Fill | R23: 300mm Loft Insulation
A24: PH50 4RD | B24: 13 | C24: 2014 | D24: Semi-Detached | E24: 77 | F24: 68 | G24: 83 | H24: 65 | I24: 80 | J24: 247 | K24: 44 | L24: 19019 | M24: 3388 | N24: ASHP + Electric | O24: Double Glazed | P24: Boiler | Q24: Cavity Fill | R24: 200mm Loft Insulation
A25: PH50 4QX | B25: 16 | C25: 2014 | D25: Semi-Detached | E25: 96 | F25: 64 | G25: 82 | H25: 91 | I25: 104 | J25: 250 | K25: 10 | L25: 24000 | M25: 960 | N25: Boilers + Radiators + Wood | O25: Double Glazed | P25: Boiler | Q25: Cavity Fill | R25: 100mm Loft insulation
A26: PH50 4QX | B26: 26 | C26: 2010 | D26: Semi-Detached | E26: 97 | F26: 62 | G26: 63 | H26: 51 | I26: 52 | J26: 251 | K26: 54 | L26: 24347 | M26: 5238 | N26: Boilers + Radiators + Oil | O26: Double Glazed | P26: Boiler | Q26: Cavity Fill | R26: 300mm Loft Insulation
A27: PH50 4QR | B27: 6 | C27: 2018 | D27: Semi-Detached | E27: 71 | F27: 50 | G27: 71 | H27: 66 | I27: 83 | J27: 255 | K27: 55 | L27: 18105 | M27: 3905 | N27: Boilers + Radiators + Oil | O27: Double Glazed | P27: Electric Immersion | Q27: Cavity Fill | R27: 350mm Loft Insulation
A28: PH50 4RD | B28: 1 | C28: 2014 | D28: Semi-Detached | E28: 76 | F28: 67 | G28: 83 | H28: 64 | I28: 79 | J28: 256 | K28: 45 | L28: 19456 | M28: 3420 | N28: ASHP + Electric | O28: Double Glazed | P28: Boiler | Q28: Cavity Fill | R28: 200mm Loft Insulation
A29: PH50 4RR | B29: 12 | C29: 2014 | D29: End-terrace | E29: 99 | F29: 57 | G29: 82 | H29: 47 | I29: 75 | J29: 260 | K29: 61 | L29: 25740 | M29: 6039 | N29: Boilers + Radiators + Oil | O29: Double Glazed | P29: Boiler | Q29: Cavity Fill | R29: No insulation
A30: PH50 4RH | B30: 5 | C30: 2019 | D30: Semi-Detached | E30: 98 | F30: 62 | G30: 83 | H30: 53 | I30: 76 | J30: 261 | K30: 69 | L30: 25578 | M30: 6762 | N30: Boilers + Radiators + Oil | O30: Double Glazed | P30: Boiler | Q30: Timber Insulated | R30: 150mm Loft insulation
A31: PH50 4RH | B31: 6 | C31: 2019 | D31: Semi-Detached | E31: 98 | F31: 62 | G31: 83 | H31: 53 | I31: 76 | J31: 261 | K31: 69 | L31: 25578 | M31: 6762 | N31: Boilers + Radiators + Oil | O31: Double Glazed | P31: Boiler | Q31: Timber Insulated | R31: 150mm Loft insulation
A32: PH50 4QP | B32: 3 | C32: 2015 | D32: Semi-Detached | E32: 86 | F32: 47 | G32: 95 | H32: 63 | I32: 103 | J32: 261 | K32: 56 | L32: 22446 | M32: 4816 | N32: Boilers + Radiators + Oil | O32: Double Glazed | P32: Boiler | Q32: Cavity wall no insulation | R32: 75mm loft Insulation
A33: PH50 4QJ | B33: 10 | C33: 2013 | D33: Semi-Detached | E33: 87 | F33: 61 | G33: 75 | H33: 57 | I33: 71 | J33: 262 | K33: 51 | L33: 22794 | M33: 4437 | N33: Boilers + Radiators | O33: Double Glazed | P33: Boiler | Q33: Cavity Fill | R33: No insulation
A34: PH50 4RD | B34: 4 | C34: 2014 | D34: Semi-Detached | E34: 76 | F34: 66 | G34: 82 | H34: 62 | I34: 78 | J34: 263 | K34: 47 | L34: 19988 | M34: 3572 | N34: ASHP + Electric | O34: Double Glazed | P34: Boiler | Q34: Cavity Fill | R34: 250mm Loft insulation
A35: PH50 4RA | B35: 22 | C35: 2018 | D35: Semi-Detached | E35: 98 | F35: 64 | G35: 82 | H35: 55 | I35: 76 | J35: 263 | K35: 67 | L35: 25774 | M35: 6566 | N35: Boilers + Radiators + Oil | O35: Double Glazed | P35: Boiler | Q35: Timber Insulated | R35: 270mm Loft Insulation
A36: PH50 4RQ | B36: 14 | C36: 2018 | D36: Semi-Detached | E36: 98 | F36: 69 | G36: 85 | H36: 67 | I36: 84 | J36: 267 | K36: 45 | L36: 26166 | M36: 4410 | N36: ASHP + Electric | O36: Double Glazed | P36: Electric Immersion | Q36: Timber Insulated | R36: 270mm Loft Insulation
A37: PH50 4RD | B37: 3 | C37: 2014 | D37: Semi-Detached | E37: 75 | F37: 66 | G37: 82 | H37: 62 | I37: 78 | J37: 268 | K37: 47 | L37: 20100 | M37: 3525 | N37: ASHP + Electric | O37: Double Glazed | P37: Boiler | Q37: Cavity Fill | R37: 250mm Loft insulation
A38: PH50 4RN | B38: 4 | C38: 2013 | D38: Semi-Detached | E38: 102 | F38: 73 | G38: 83 | H38: 57 | I38: 70 | J38: 270 | K38: 48 | L38: 27540 | M38: 4896 | N38: Electric Storage | O38: Double Glazed | P38: Boiler | Q38: Timber Insulated | R38: 300mm Loft Insulation
A39: PH50 4RR | B39: 16 | C39: 2014 | D39: End-terrace | E39: 72 | F39: 58 | G39: 79 | H39: 62 | I39: 81 | J39: 274 | K39: 49 | L39: 19728 | M39: 3528 | N39: ASHP + Electric | O39: Double Glazed | P39: Boiler | Q39: Cavity Fill | R39: 300mm Loft Insulation
A40: PH50 4RN | B40: 6 | C40: 2014 | D40: Semi-Detached | E40: 103 | F40: 70 | G40: 81 | H40: 56 | I40: 69 | J40: 277 | K40: 49 | L40: 28531 | M40: 5047 | N40: Electric Storage | O40: Double Glazed | P40: Boiler | Q40: Timber Insulated | R40: 200mm Loft Insulation
A41: PH50 4QH | B41: 5 | C41: 2016 | D41: Semi-Detached | E41: 91 | F41: 60 | G41: 76 | H41: 53 | I41: 69 | J41: 282 | K41: 69 | L41: 25662 | M41: 6279 | N41: Boilers + Radiators + Oil | O41: Double Glazed | P41: Boiler | Q41: Cavity Fill | R41: 300mm Loft Insulation
A42: PH50 4QH | B42: 3 | C42: 2015 | D42: Semi-Detached | E42: 89 | F42: 59 | G42: 103 | H42: 51 | I42: 95 | J42: 283 | K42: 74 | L42: 25187 | M42: 6586 | N42: Boilers + Radiators + Oil | O42: Double Glazed | P42: Boiler | Q42: Cavity Fill | R42: 100mm Loft insulation
A43: PH50 4QR | B43: 18 | C43: 2019 | D43: Semi-Detached | E43: 70 | F43: 45 | G43: 69 | H43: 62 | I43: 82 | J43: 284 | K43: 62 | L43: 19880 | M43: 4340 | N43: Boilers + Radiators + Oil | O43: Double Glazed | P43: Boiler | Q43: Cavity Fill | R43: 150mm Loft insulation
A44: PH50 4QW | B44: 7 | C44: 2014 | D44: Semi-Detached | E44: 107 | F44: 51 | G44: 88 | H44: 40 | I44: 79 | J44: 284 | K44: 71 | L44: 30388 | M44: 7597 | N44: Boilers + Radiators + Oil | O44: Double Glazed | P44: Boiler | Q44: Solid Brick no insulation | R44: No insulation
A45: PH50 4QH | B45: 8 | C45: 2018 | D45: Semi-Detached | E45: 92 | F45: 45 | G45: 65 | H45: 60 | I45: 77 | J45: 285 | K45: 59 | L45: 26220 | M45: 5428 | N45: Boilers + Radiators + Oil | O45: Double Glazed | P45: Boiler | Q45: Cavity Fill | R45: 300mm Loft Insulation
A46: PH50 4RR | B46: 4 | C46: 2011 | D46: End-terrace | E46: 69 | F46: 45 | G46: 48 | H46: 45 | I46: 48 | J46: 288 | K46: 70 | L46: 19872 | M46: 4830 | N46: Boilers + Radiators + Oil | O46: Double Glazed | P46: Boiler | Q46: Cavity Fill | R46: 250mm Loft insulation
A47: PH50 4QP | B47: 11 | C47: 2011 | D47: End-terrace | E47: 85 | F47: 53 | G47: 57 | H47: 41 | I47: 45 | J47: 288 | K47: 72 | L47: 24480 | M47: 6120 | N47: Boliers + Radiators + Oil | O47: Double Glazed | P47: Boiler | Q47: Cavity wall no insulation | R47: No insulation
A48: PH50 4RQ | B48: 31 | C48: 2015 | D48: Semi-Detached | E48: 76 | F48: 59 | G48: 80 | H48: 51 | I48: 73 | J48: 293 | K48: 77 | L48: 22268 | M48: 5852 | N48: Boilers + Radiators + Oil | O48: Double Glazed | P48: Boiler | Q48: Cavity Fill | R48: 200mm Loft Insulation
A49: PH50 4RQ | B49: 7 | C49: 2010 | D49: Semi-Detached | E49: 84 | F49: 57 | G49: 62 | H49: 45 | I49: 50 | J49: 300 | K49: 65 | L49: 25200 | M49: 5460 | N49: Boilers + Radiators + Coal | O49: Double Glazed | P49: Boiler | Q49: Solid Brick no insulation | R49: 300mm Loft Insulation
A50: PH50 4SB | B50: 3 | C50: 2016 | D50: End-terrace | E50: 133 | F50: 51 | G50: 94 | H50: 43 | I50: 85 | J50: 302 | K50: 80 | L50: 40166 | M50: 10640 | N50: Boilers + Radiators + Oil | O50: Double Glazed | P50: Boiler | Q50: Solid Brick internal insulation | R50: 200mm Loft Insulation
A51: PH50 4QW | B51: 1 | C51: 2018 | D51: Semi-Detached | E51: 69 | F51: 61 | G51: 81 | H51: 52 | I51: 73 | J51: 311 | K51: 80 | L51: 21459 | M51: 5520 | N51: Boilers + Radiators + Oil | O51: Double Glazed | P51: Boiler | Q51: Cavity Fill | R51: 200mm Loft Insulation
A52: PH50 4QJ | B52: 8 | C52: 2016 | D52: Semi-Detached | E52: 78 | F52: 59 | G52: 80 | H52: 51 | I52: 72 | J52: 315 | K52: 80 | L52: 24570 | M52: 6240 | N52: Boilers + Radiators + Oil | O52: Double Glazed | P52: Boiler | Q52: Cavity Fill | R52: 250mm Loft insulation
A53: PH50 4QR | B53: 11 | C53: 2017 | D53: Semi-Detached | E53: 68 | F53: 58 | G53: 84 | H53: 50 | I53: 77 | J53: 318 | K53: 83 | L53: 21624 | M53: 5644 | N53: Boilers + Radiators + Oil | O53: Double Glazed | P53: Boiler | Q53: Cavity Fill | R53: No insulation
A54: PH50 4RQ | B54: 5 | C54: 2010 | D54: Semi-Detached | E54: 84 | F54: 54 | G54: 55 | H54: 43 | I54: 44 | J54: 320 | K54: 69 | L54: 26880 | M54: 5796 | N54: Boilers + Radiators + Oil | O54: Double Glazed | P54: Boiler | Q54: Solid Brick no insulation | R54: 300mm Loft Insulation
A55: PH50 4QY | B55: 8 | C55: 2017 | D55: Semi-Detached | E55: 60 | F55: 62 | G55: 84 | H55: 66 | I55: 85 | J55: 325 | K55: 55 | L55: =J55*E55 -> 19500 | M55: =K55*E55 -> 3300 | N55: ASHP + Electric | O55: Double Glazed | P55: Boiler | Q55: Cavity Fill | R55: 200mm Loft Insulation
A56: PH50 4RG | B56: 5 | C56: 2014 | D56: Semi-Detached | E56: 44 | F56: 65 | G56: 90 | H56: 64 | I56: 89 | J56: 325 | K56: 57 | L56: 14300 | M56: 2508 | N56: ASHP + Electric | O56: Double Glazed | P56: Boiler | Q56: Cavity Fill | R56: 200mm Loft Insulation
A57: PH50 4RG | B57: 7 | C57: 2013 | D57: Semi-Detached | E57: 44 | F57: 61 | G57: 86 | H57: 64 | I57: 87 | J57: 325 | K57: 57 | L57: 14300 | M57: 2508 | N57: ASHP + Electric | O57: Double Glazed | P57: Boiler | Q57: Cavity wall no insulation | R57: 300mm Loft Insulation
A58: PH50 4QR | B58: 3 | C58: 2014 | D58: Semi-Detached | E58: 66 | F58: 55 | G58: 73 | H58: 40 | I58: 54 | J58: 325 | K58: 84 | L58: 21450 | M58: 5544 | N58: Boilers + Radiators | O58: Double Glazed | P58: Boiler | Q58: Cavity wall no insulation | R58: No insulation
A59: PH50 4GZ | B59: 3 | C59: 2017 | D59: Semi-Detached | E59: 59 | F59: 61 | G59: 83 | H59: 66 | I59: 85 | J59: 326 | K59: 55 | L59: 19234 | M59: 3245 | N59: ASHP + Electric | O59: Double Glazed | P59: Boiler | Q59: Cavity Fill | R59: 250mm Loft insulation
A60: PH50 4RG | B60: 8 | C60: 2014 | D60: Semi-Detached | E60: 43 | F60: 67 | G60: 88 | H60: 63 | I60: 85 | J60: 326 | K60: 58 | L60: 14018 | M60: 2494 | N60: ASHP + Electric | O60: Double Glazed | P60: Boiler | Q60: Cavity Fill | R60: 250mm Loft insulation
A61: PH50 4QY | B61: 5 | C61: 2017 | D61: Semi-Detached | E61: 59 | F61: 62 | G61: 83 | H61: 66 | I61: 85 | J61: 327 | K61: 55 | L61: 19293 | M61: 3245 | N61: ASHP + Electric | O61: Double Glazed | P61: Boiler | Q61: Cavity Fill | R61: 200mm Loft Insulation
A62: PH50 4RF | B62: 11 | C62: 2017 | D62: Semi-Detached | E62: 85 | F62: 57 | G62: 74 | H62: 62 | I62: 77 | J62: 328 | K62: 56 | L62: 27880 | M62: 4760 | N62: ASHP + Electric | O62: Double Glazed | P62: Boiler | Q62: Cavity Fill | R62: 200mm Loft Insulation
A63: PH50 4RQ | B63: 36 | C63: 2017 | D63: Semi-Detached | E63: 94 | F63: 59 | G63: 76 | H63: 87 | I63: 98 | J63: 329 | K63: 19 | L63: 30926 | M63: 1786 | N63: Boilers + Radiators + Wood | O63: Double Glazed | P63: Boiler | Q63: Cavity Fill | R63: 200mm Loft Insulation
A64: PH50 4RF | B64: 14 | C64: 2017 | D64: Semi-Detached | E64: 84 | F64: 57 | G64: 74 | H64: 62 | I64: 77 | J64: 330 | K64: 56 | L64: 27720 | M64: 4704 | N64: ASHP + Electric | O64: Double Glazed | P64: Boiler | Q64: Cavity Fill | R64: 150mm Loft insulation
A65: PH50 4QX | B65: 14 | C65: 2016 | D65: Semi-Detached | E65: 92 | F65: 60 | G65: 79 | H65: 52 | I65: 70 | J65: 334 | K65: 71 | L65: 30728 | M65: 6532 | N65: Boilers + Radiators + Wood | O65: Double Glazed | P65: Boiler | Q65: Cavity Fill | R65: 250mm Loft insulation
A66: PH50 4RH | B66: 3 | C66: 2018 | D66: Semi-Detached | E66: 90 | F66: 51 | G66: 67 | H66: 43 | I66: 56 | J66: 335 | K66: 88 | L66: 30150 | M66: 7920 | N66: Boilers + Radiators + Oil | O66: Double Glazed | P66: Boiler | Q66: Solid Brick no insulation | R66: 300mm Loft Insulation
A67: PH50 4RR | B67: 8 | C67: 2016 | D67: End-terrace | E67: 72 | F67: 57 | G67: 77 | H67: 50 | I67: 70 | J67: 336 | K67: 82 | L67: 24192 | M67: 5904 | N67: Boilers + Radiators + Oil | O67: Double Glazed | P67: Boiler | Q67: Cavity Fill | R67: 200mm Loft Insulation
A68: PH50 4RR | B68: 5 | C68: 2017 | D68: End-terrace | E68: 72 | F68: 55 | G68: 79 | H68: 46 | I68: 70 | J68: 342 | K68: 88 | L68: 24624 | M68: 6336 | N68: Boilers + Radiators + Oil | O68: Double Glazed | P68: Boiler | Q68: Cavity wall no Insulation | R68: 270mm Loft Insulation
A69: PH50 4RQ | B69: 23 | C69: 2018 | D69: Semi-Detached | E69: 98 | F69: 58 | G69: 77 | H69: 52 | I69: 71 | J69: 346 | K69: 72 | L69: 33908 | M69: 7056 | N69: Electric Storage | O69: Double Glazed | P69: Electric Immersion | Q69: Timber Insulated | R69: 200mm Loft Insulation
A70: PH50 4RQ | B70: 15 | C70: 2012 | D70: End-terrace | E70: 91 | F70: 52 | G70: 56 | H70: 45 | I70: 49 | J70: 357 | K70: 63 | L70: 32487 | M70: 5733 | N70: Electric Storage | O70: Double Glazed | P70: Electric Immersion | Q70: Timber Insulated | R70: 75mm loft Insulation
A71: PH50 4RH | B71: 11 | C71: 2018 | D71: End-terrace | E71: 98 | F71: 57 | G71: 77 | H71: 51 | I71: 69 | J71: 361 | K71: 76 | L71: 35378 | M71: 7448 | N71: Electric Storage | O71: Double Glazed | P71: Electric Immersion | Q71: Timber Insulated | R71: 270mm Loft Insulation
A72: PH50 4QR | B72: 13 | C72: 2014 | D72: Semi-Detached | E72: 72 | F72: 52 | G72: 83 | H72: 41 | I72: 73 | J72: 367 | K72: 102 | L72: 26424 | M72: 7344 | N72: Boilers + Radiators + Oil | O72: Double Glazed | P72: Boiler | Q72: Cavity wall no insulation | R72: 150mm Loft insulation
A73: PH50 4QX | B73: 22 | C73: 2018 | D73: Semi-Detached | E73: 103 | F73: 44 | G73: 76 | H73: 37 | I73: 68 | J73: 367 | K73: 97 | L73: 37801 | M73: 9991 | N73: Boilers + Radiators + Oil | O73: Double Glazed | P73: Boiler | Q73: Cavity wall no insulation | R73: 200mm Loft Insulation
A74: PH50 4RQ | B74: 55 | C74: 2010 | D74: Semi-Detached | E74: 100 | F74: 40 | G74: 44 | H74: 28 | I74: 31 | J74: 380 | K74: 94 | L74: 38000 | M74: 9400 | N74: Boilers + Radiators + Coal | O74: Double Glazed | P74: Boiler | Q74: Cavity Fill | R74: 300mm Loft Insulation
A75: PH50 4QR | B75: 16 | C75: 2014 | D75: Semi-Detached | E75: 100 | F75: 57 | G75: 79 | H75: 43 | I75: 63 | J75: 381 | K75: 68 | L75: 38100 | M75: 6800 | N75: Electric Storage | O75: Double Glazed | P75: Electric Immersion | Q75: Cavity Fill | R75: 250mm Loft insulation
A76: PH50 4RQ | B76: 12 | C76: 2018 | D76: Semi-Detached | E76: 91 | F76: 45 | G76: 62 | H76: 41 | I76: 53 | J76: 381 | K76: 93 | L76: 34671 | M76: 8463 | N76: Boilers + Radiators + Oil | O76: Double Glazed | P76: Boiler | Q76: Cavity wall no insulation | R76: 300mm Loft Insulation
A77: PH50 4RQ | B77: 18 | C77: 2011 | D77: Semi-Detached | E77: 79 | F77: 59 | G77: 61 | H77: 43 | I77: 45 | J77: 386 | K77: 70 | L77: 30494 | M77: 5530 | N77: Electric Storage | O77: Double Glazed | P77: Electric Immersion | Q77: Cavity Fill | R77: 300mm Loft Insulation
A78: PH50 4RS | B78: 37 | C78: 2013 | D78: End-terrace | E78: 62 | F78: 55 | G78: 81 | H78: 46 | I78: 70 | J78: 388 | K78: 76 | L78: 24056 | M78: 4712 | N78: Boilers + Radiators + Wood | O78: Double Glazed | P78: Boiler | Q78: Cavity Fill | R78: 250mm Loft insulation
A79: PH50 4QX | B79: 17 | C79: 2010 | D79: End-terrace | E79: 97 | F79: 55 | G79: 56 | H79: 48 | I79: 48 | J79: 388 | K79: 59 | L79: 37636 | M79: 5723 | N79: Electric Storage | O79: Double Glazed | P79: Electric Immersion | Q79: Cavity Fill | R79: 300mm Loft Insulation
A80: PH50 4QX | B80: 20 | C80: 2010 | D80: End-terrace | E80: 97 | F80: 56 | G80: 56 | H80: 48 | I80: 48 | J80: 388 | K80: 58 | L80: 37636 | M80: 5626 | N80: Electric Storage | O80: Double Glazed | P80: Electric Immersion | Q80: Cavity Fill | R80: 300mm Loft Insulation
A81: PH50 4RQ | B81: 39 | C81: 2010 | D81: Semi-Detached | E81: 90 | F81: 41 | G81: 45 | H81: 28 | I81: 32 | J81: 389 | K81: 97 | L81: 35010 | M81: 8730 | N81: Boilers + Radiators + Coal | O81: Double Glazed | P81: Boiler | Q81: Cavity Fill | R81: 300mm Loft Insulation
A82: PH50 4RR | B82: 1 | C82: 2017 | D82: End-terrace | E82: 73 | F82: 56 | G82: 76 | H82: 86 | I82: 98 | J82: 390 | K82: 23 | L82: 28470 | M82: 1679 | N82: Boilers + Radiators + Wood | O82: Double Glazed | P82: Boiler | Q82: Cavity Fill | R82: 200mm Loft Insulation
A83: PH50 4QR | B83: 14 | C83: 2015 | D83: Semi-Detached | E83: 72 | F83: 46 | G83: 81 | H83: 39 | I83: 73 | J83: 400 | K83: 106 | L83: 28800 | M83: 7632 | N83: Boilers + Radiators + Oil | O83: Double Glazed | P83: Boiler | Q83: Cavity wall no insulation | R83: 150mm Loft insulation
A84: PH50 4RQ | B84: 3 | C84: 2017 | D84: Semi-Detached | E84: 91 | F84: 51 | G84: 69 | H84: 84 | I84: 95 | J84: 400 | K84: 23 | L84: 36400 | M84: 2093 | N84: Boilers + Radiators + Wood | O84: Double Glazed | P84: Boiler | Q84: Timber Insulated | R84: 150mm Loft insulation
A85: PH50 4QJ | B85: 21 | C85: 2014 | D85: Semi-Detached | E85: 79 | F85: 37 | G85: 61 | H85: 44 | I85: 64 | J85: 405 | K85: 72 | L85: 31995 | M85: 5688 | N85: Electric Storage | O85: Double Glazed | P85: Electric Immersion | Q85: Cavity Fill | R85: No insulation
A86: PH50 4QR | B86: 10 | C86: 2015 | D86: Semi-Detached | E86: 85 | F86: 42 | G86: 100 | H86: 40 | I86: 91 | J86: 405 | K86: 93 | L86: 34425 | M86: 7905 | N86: Boilers + Radiators + Oil | O86: Double Glazed | P86: Electric Immersion | Q86: Cavity Fill | R86: No insulation
A87: PH50 4RQ | B87: 10 | C87: 2018 | D87: Semi-Detached | E87: 91 | F87: 42 | G87: 63 | H87: 37 | I87: 54 | J87: 409 | K87: 101 | L87: 37219 | M87: 9191 | N87: Boilers + Radiators + Oil | O87: Double Glazed | P87: Boiler | Q87: Cavity wall no insulation | R87: 270mm Loft Insulation
A88: PH50 4RH | B88: 10 | C88: 2017 | D88: Semi-Detached | E88: 90 | F88: 42 | G88: 83 | H88: 38 | I88: 72 | J88: 410 | K88: 100 | L88: 36900 | M88: 9000 | N88: Boilers + Radiators + Oil | O88: Double Glazed | P88: Boiler | Q88: Cavity wall no Insulation | R88: No insulation
A89: PH50 4RQ | B89: 32 | C89: 2010 | D89: Semi-Detached | E89: 105 | F89: 56 | G89: 57 | H89: 40 | I89: 40 | J89: 412 | K89: 69 | L89: 43260 | M89: 7245 | N89: Electric Storage | O89: Double Glazed | P89: Electric Immersion | Q89: Cavity Fill | R89: 200mm Loft Insulation
A90: PH50 4QT | B90: 4 | C90: 2015 | D90: Semi-Detached | E90: 85 | F90: 41 | G90: 103 | H90: 40 | I90: 94 | J90: 413 | K90: 95 | L90: 35105 | M90: 8075 | N90: Boilers + Radiators + Oil | O90: Double Glazed | P90: Electric Immersion | Q90: Cavity Fill | R90: 50mm loft insulation
A91: PH50 4QP | B91: 4 | C91: 2015 | D91: Semi-Detached | E91: 79 | F91: 42 | G91: 79 | H91: 36 | I91: 71 | J91: 414 | K91: 109 | L91: 32706 | M91: 8611 | N91: Boilers + Radiators + Oil | O91: Double Glazed | P91: Boiler | Q91: Cavity wall no insulation | R91: No insulation
A92: PH50 4QJ | B92: 14 | C92: 2017 | D92: Semi-Detached | E92: 103 | F92: 38 | G92: 75 | H92: 35 | I92: 69 | J92: 416 | K92: 103 | L92: 42848 | M92: 10609 | N92: Boilers + Radiators + Wood | O92: Double Glazed | P92: Boiler | Q92: Cavity Fill | R92: 150mm Loft insulation
A93: PH50 4RP | B93: 11 | C93: 2017 | D93: End-terrace | E93: 61 | F93: 51 | G93: 74 | H93: 57 | I93: 77 | J93: 417 | K93: 70 | L93: 25437 | M93: 4270 | N93: ASHP + Electric | O93: Double Glazed | P93: Boiler | Q93: Cavity Fill | R93: n/a
A94: PH50 4RF | B94: 15 | C94: 2009 | D94: Semi-Detached | E94: 70 | F94: 36 | G94: 38 | H94: 85 | I94: 86 | J94: 422 | K94: 19 | L94: 29540 | M94: 1330 | N94: Boilers + Radiators + Oil | O94: Double Glazed | P94: Boiler | Q94: Cavity wall no insulation | R94: 100mm Loft insulation
A95: PH50 4RS | B95: 9 | C95: 2014 | D95: End-terrace | E95: 61 | F95: 41 | G95: 57 | H95: 47 | I95: 61 | J95: 425 | K95: 75 | L95: 25925 | M95: 4575 | N95: Boilers + Radiators + Oil | O95: Double Glazed | P95: Boiler | Q95: Cavity Fill | R95: 300mm Loft Insulation
A96: PH50 4RD | B96: 12 | C96: 2014 | D96: End-terrace | E96: 75 | F96: 33 | G96: 57 | H96: 88 | I96: 104 | J96: 430 | K96: 14 | L96: 32250 | M96: 1050 | N96: Boilers + Radiators + Wood | O96: Double Glazed | P96: Boiler | Q96: Cavity wall no insulation | R96: 200mm Loft Insulation | X96: =491*70 -> 34370
A97: PH50 4QJ | B97: 1 | C97: 2017 | D97: Semi-Detached | E97: 85 | F97: 42 | G97: 62 | H97: 32 | I97: 44 | J97: 431 | K97: 123 | L97: 36635 | M97: 10455 | N97: Boilers + Radiators + Oil | O97: Double Glazed | P97: Boiler | Q97: Cavity Fill | R97: No insulation | X97: 11500
A98: PH50 4RG | B98: 6 | C98: 2014 | D98: Semi-Detached | E98: 46 | F98: 59 | G98: 84 | H98: 63 | I98: 86 | J98: 432 | K98: 73 | L98: 19872 | M98: 3358 | N98: ASHP + Electric | O98: Double Glazed | P98: Boiler | Q98: Cavity Fill | R98: 300mm Loft Insulation | X98: =X96-X97 -> 22870
A99: PH50 4QS | B99: 10 | C99: 2010 | D99: End-terrace | E99: 102 | F99: 45 | G99: 49 | H99: 40 | I99: 43 | J99: 433 | K99: 70 | L99: 44166 | M99: 7140 | N99: Electric Storage | O99: Double Glazed | P99: Electric Immersion | Q99: Cavity Fill | R99: 75mm loft Insulation
A100: PH50 4QY | B100: 3 | C100: 2017 | D100: Semi-Detached | E100: 58 | F100: 51 | G100: 79 | H100: 56 | I100: 81 | J100: 438 | K100: 74 | L100: 25404 | M100: 4292 | N100: ASHP + Electric | O100: Double Glazed | P100: Boiler | Q100: Cavity Fill | R100: 150mm Loft insulation
A101: PH50 4QW | B101: 16 | C101: 2015 | D101: End-terrace | E101: 107 | F101: 35 | G101: 51 | H101: 32 | I101: 43 | J101: 445 | K101: 110 | L101: 47615 | M101: 11770 | N101: Boilers + Radiators + Oil | O101: Double Glazed | P101: Boiler | Q101: Cavity Fill | R101: No insulation
A102: PH50 4RS | B102: 53 | C102: 2010 | D102: End-terrace | E102: 67 | F102: 33 | G102: 33 | H102: 47 | I102: 47 | J102: 448 | K102: 67 | L102: 30016 | M102: 4489 | N102: Boilers + Radiators + Oil | O102: Double Glazed | P102: Boiler | Q102: Cavity Fill | R102: 300mm Loft Insulation
A103: PH50 4QX | B103: 7 | C103: 2015 | D103: Semi-Detached | E103: 98 | F103: 34 | G103: 87 | H103: 29 | I103: 75 | J103: 453 | K103: 121 | L103: 44394 | M103: 11858 | N103: Boilers + Radiators + Oil | O103: Double Glazed | P103: Boiler | Q103: Timber frame no insulation | R103: 75mm loft Insulation
A104: PH50 4QY | B104: 7 | C104: 2010 | D104: Semi-Detached | E104: 58 | F104: 42 | G104: 47 | H104: 27 | I104: 31 | J104: 454 | K104: 126 | L104: 26332 | M104: 7308 | N104: Boilers + Radiators + Coal | O104: Double Glazed | P104: Boiler | Q104: Cavity Fill | R104: 300mm Loft Insulation
A105: PH50 4RQ | B105: 20 | C105: 2010 | D105: Semi-Detached | E105: 84 | F105: 43 | G105: 43 | H105: 43 | I105: 43 | J105: 456 | K105: 68 | L105: 38304 | M105: 5712 | N105: Electric Storage | O105: Double Glazed | P105: Electric Immersion | Q105: Cavity Fill | R105: 300mm Loft Insulation
A106: PH50 4RR | B106: 9 | C106: 2013 | D106: Semi-Detached | E106: 72 | F106: 47 | G106: 71 | H106: 37 | I106: 60 | J106: 464 | K106: 89 | L106: 33408 | M106: 6408 | N106: Electric Storage | O106: Double Glazed | P106: Electric Immersion | Q106: Cavity Fill | R106: 150mm Loft insulation
A107: PH50 4RD | B107: 10 | C107: 2014 | D107: End-terrace | E107: 75 | F107: 63 | G107: 79 | H107: 39 | I107: 57 | J107: 465 | K107: 82 | L107: 34875 | M107: 6150 | N107: Electric Storage | O107: Double Glazed | P107: Electric Immersion | Q107: Cavity Fill | R107: 300mm Loft Insulation
A108: PH50 4QP | B108: 23 | C108: 2015 | D108: Semi-Detached | E108: 85 | F108: 33 | G108: 103 | H108: 33 | I108: 94 | J108: 469 | K108: 111 | L108: 39865 | M108: 9435 | N108: Boilers + Radiators + Oil | O108: Double Glazed | P108: Electric Immersion | Q108: Cavity wall no insulation | R108: 200mm Loft insulation
A109: PH50 4RQ | B109: 53 | C109: 2015 | D109: Semi-Detached | E109: 85 | F109: 32 | G109: 103 | H109: 32 | I109: 94 | J109: 478 | K109: 113 | L109: 40630 | M109: 9605 | N109: Boilers + Radiators + Oil | O109: Double Glazed | P109: Electric Immersion | Q109: Cavity wall no insulation | R109: 75mm loft Insulation
A110: PH50 4RQ | B110: 45 | C110: 2015 | D110: Semi-Detached | E110: 85 | F110: 32 | G110: 103 | H110: 32 | I110: 93 | J110: 479 | K110: 118 | L110: 40715 | M110: 10030 | N110: Boilers + Radiators + Oil | O110: Double Glazed | P110: Electric Immersion | Q110: Cavity wall no insulation | R110: 50mm loft insulation
A111: PH50 4QW | B111: 4 | C111: 2013 | D111: Semi-Detached | E111: 70 | F111: 55 | G111: 80 | H111: 38 | I111: 59 | J111: 491 | K111: 87 | L111: 34370 | M111: 6090 | N111: Electric Storage | O111: Double Glazed | P111: Electric Immersion | Q111: Cavity Fill | R111: 200mm Loft Insulation
A112: PH50 4RS | B112: 15 | C112: 2010 | D112: End-terrace | E112: 63 | F112: 23 | G112: 23 | H112: 45 | I112: 45 | J112: 491 | K112: 73 | L112: 30933 | M112: 4599 | N112: Electric Storage | O112: Double Glazed | P112: Electric Immersion | Q112: Cavity Fill | R112: 300mm Loft Insulation
A113: PH50 4RS | B113: 17 | C113: 2010 | D113: End-terrace | E113: 63 | F113: 30 | G113: 30 | H113: 44 | I113: 44 | J113: 503 | K113: 75 | L113: 31689 | M113: 4725 | N113: Boilers + Radiators + Coal | O113: Double Glazed | P113: Boiler | Q113: Cavity Fill | R113: 300mm Loft Insulation
A114: PH50 4QH | B114: 2 | C114: 2015 | D114: Semi-Detached | E114: 49 | F114: 40 | G114: 119 | H114: 35 | I114: 110 | J114: 505 | K114: 133 | L114: 24745 | M114: 6517 | N114: Boilers + Radiators + Oil | O114: Double Glazed | P114: Boiler | Q114: Cavity Fill | R114: 50mm loft insulation
A115: PH50 4RQ | B115: 13 | C115: 2009 | D115: End-terrace | E115: 172 | F115: 35 | G115: 41 | H115: 31 | I115: 35 | J115: 506 | K115: 76 | L115: 87032 | M115: 13072 | N115: Electric Storage | O115: Double Glazed | P115: Electric Immersion | Q115: Timber Insulated | R115: 50mm loft insulation
A116: PH50 4RQ | B116: 37 | C116: 2015 | D116: Semi-Detached | E116: 94 | F116: 60 | G116: 75 | H116: 48 | I116: 65 | J116: 508 | K116: 86 | L116: 47752 | M116: 8084 | N116: Electric Storage | O116: Double Glazed | P116: Electric Immersion | Q116: Cavity Fill | R116: 200mm Loft Insulation
A117: PH50 4RZ | B117: 24 | C117: 2010 | D117: End-terrace | E117: 76 | F117: 44 | G117: 44 | H117: 38 | I117: 38 | J117: 508 | K117: 82 | L117: 38608 | M117: 6232 | N117: Electric Storage | O117: Double Glazed | P117: Electric Immersion | Q117: Cavity Fill | R117: 300mm Loft Insulation
A118: PH50 4SE | B118: Tigh-Na-Fleasgach | C118: 2019 | D118: Semi-Detached | E118: 144 | F118: 32 | G118: 87 | H118: 86 | I118: 112 | J118: 510 | K118: 18 | L118: 73440 | M118: 2592 | N118: Boilers + Radiators + Wood | O118: Double Glazed | P118: Boiler | Q118: Sandstone no insulation | R118: 300mm Loft Insulation
A119: PH50 4GZ | B119: 5 | C119: 2017 | D119: Semi-Detached | E119: 60 | F119: 47 | G119: 80 | H119: 42 | I119: 73 | J119: 521 | K119: 108 | L119: =J119*E119 -> 31260 | M119: =K119*E119 -> 6480 | N119: Boilers + Radiators + Wood | O119: Double Glazed | P119: Boiler | Q119: Cavity wall no Insulation | R119: 300mm Loft Insulation
A120: PH50 4RQ | B120: 34 | C120: 2012 | D120: Semi-Detached | E120: 93 | F120: 42 | G120: 43 | H120: 29 | I120: 30 | J120: 526 | K120: 94 | L120: 48918 | M120: 8742 | N120: Electric Storage | O120: Double Glazed | P120: Electric Immersion | Q120: Cavity wall no insulation | R120: 300mm Loft Insulation
A121: PH50 4QH | B121: 4 | C121: 2014 | D121: Semi-Detached | E121: 92 | F121: 22 | G121: 54 | H121: 30 | I121: 55 | J121: 529 | K121: 95 | L121: 48668 | M121: 8740 | N121: Electric Storage | O121: Double Glazed | P121: Electric Immersion | Q121: Cavity Fill | R121: 150mm Loft insulation
A122: PH50 4RQ | B122: 21 | C122: 2018 | D122: Semi-Detached | E122: 98 | F122: 58 | G122: 85 | H122: 42 | I122: 68 | J122: 543 | K122: 92 | L122: 53214 | M122: 9016 | N122: Electric Storage | O122: Double Glazed | P122: Electric Immersion | Q122: Timber Insulated | R122: 270mm Loft Insulation
A123: PH50 4RB | B123: 27 | C123: 2015 | D123: Semi-Detached | E123: 92 | F123: 65 | G123: 77 | H123: 43 | I123: 54 | J123: 549 | K123: 93 | L123: 50508 | M123: 8556 | N123: Electric Storage | O123: Double Glazed | P123: Electric Immersion | Q123: Cavity Fill | R123: 270mm Loft Insulation
A124: PH50 4GZ | B124: 7 | C124: 2010 | D124: Semi-Detached | E124: 64 | F124: 38 | G124: 40 | H124: 39 | I124: 40 | J124: 555 | K124: 84 | L124: 35520 | M124: 5376 | N124: Electric Storage | O124: Double Glazed | P124: Electric Immersion | Q124: Cavity Fill | R124: 300mm Loft Insulation
A125: PH50 4QP | B125: 1 | C125: 2017 | D125: Semi-Detached | E125: 111 | F125: 36 | G125: 78 | H125: 7 | I125: 112 | J125: 556 | K125: 205 | L125: 61716 | M125: 22755 | N125: Boilers + Radiators + Coal | O125: Double Glazed | P125: Boiler | Q125: Solid Brick no insulation | R125: No insulation
A126: PH50 4SB | B126: 1 | C126: 2016 | D126: Semi-Detached | E126: 112 | F126: 23 | G126: 90 | H126: 17 | I126: 74 | J126: 561 | K126: 159 | L126: 62832 | M126: 17808 | N126: Boilers + Radiators + Oil | O126: Double Glazed | P126: Oil range cooker | Q126: Cavity wall no Insulation | R126: 250mm Loft insulation
A127: PH50 4RU | B127: 22 | C127: 2009 | D127: End-terrace | E127: 87 | F127: 43 | G127: 43 | H127: 33 | I127: 33 | J127: 570 | K127: 88 | L127: 49590 | M127: 7656 | N127: Electric Storage | O127: Double Glazed | P127: Electric Immersion | Q127: Solid Brick no insulation | R127: n/a
A128: PH50 4QU | B128: 2 | C128: 2016 | D128: Semi-Detached | E128: 132 | F128: 54 | G128: 93 | H128: 32 | I128: 62 | J128: 573 | K128: 108 | L128: 75636 | M128: 14256 | N128: Electric Storage | O128: Double Glazed | P128: Electric Immersion | Q128: Cavity Fill | R128: 270mm Loft Insulation
A129: PH50 4RQ | B129: 9 | C129: 2018 | D129: End-terrace | E129: 91 | F129: 28 | G129: 46 | H129: 38 | I129: 54 | J129: 581 | K129: 101 | L129: 52871 | M129: 9191 | N129: Electric Storage | O129: Double Glazed | P129: Electric Immersion | Q129: Timber Insulated | R129: 300mm Loft Insulation
A130: PH50 4RR | B130: 13 | C130: 2014 | D130: End-terrace | E130: 75 | F130: 19 | G130: 58 | H130: 30 | I130: 61 | J130: 583 | K130: 103 | L130: 43725 | M130: 7725 | N130: Electric Storage | O130: Double Glazed | P130: Electric Immersion | Q130: Cavity wall no Insulation | R130: 200mm Loft Insulation
A131: PH50 4QY | B131: 6 | C131: 2010 | D131: Semi-Detached | E131: 64 | F131: 51 | G131: 51 | H131: 35 | I131: 35 | J131: 586 | K131: 94 | L131: 37504 | M131: 6016 | N131: Electric Storage | O131: Double Glazed | P131: Electric Immersion | Q131: Cavity Fill | R131: 300mm Loft Insulation
A132: PH50 4RH | B132: 16 | C132: 2018 | D132: Semi-Detached | E132: 98 | F132: 55 | G132: 83 | H132: 39 | I132: 64 | J132: 594 | K132: 100 | L132: 58212 | M132: 9800 | N132: Electric Storage | O132: Double Glazed | P132: Electric Immersion | Q132: Timber Insulated | R132: 270mm Loft Insulation
A133: PH50 4RS | B133: 35 | C133: 2018 | D133: End-terrace | E133: 62 | F133: 36 | G133: 60 | H133: 81 | I133: 96 | J133: 612 | K133: 32 | L133: 37944 | M133: 1984 | N133: Boilers + Radiators + Wood | O133: Double Glazed | P133: Boiler | Q133: Cavity Fill | R133: 300mm Loft Insulation
A134: PH50 4QY | B134: 4 | C134: 2013 | D134: Semi-Detached | E134: 59 | F134: 46 | G134: 84 | H134: 32 | I134: 69 | J134: 613 | K134: 108 | L134: 36167 | M134: 6372 | N134: Electric Storage | O134: Double Glazed | P134: Electric Immersion | Q134: Cavity wall no insulation | R134: 200mm Loft Insulation
A135: PH50 4RB | B135: 18 | C135: 2015 | D135: End-terrace | E135: 52 | F135: 66 | G135: 83 | H135: 45 | I135: 60 | J135: 641 | K135: 108 | L135: 33332 | M135: 5616 | N135: Electric Storage | O135: Double Glazed | P135: Electric Immersion | Q135: Cavity Fill | R135: 400mm Loft Insulation
A136: PH50 4QH | B136: 10 | C136: 2016 | D136: Semi-Detached | E136: 70 | F136: 58 | G136: 85 | H136: 40 | I136: 66 | J136: 646 | K136: 109 | L136: 45220 | M136: 7630 | N136: Electric Storage | O136: Double Glazed | P136: Electric Immersion | Q136: Cavity Fill | R136: 250mm Loft insulation
A137: PH50 4QP | B137: 20 | C137: 2014 | D137: Semi-Detached | E137: 92 | F137: 38 | G137: 92 | H137: 23 | I137: 58 | J137: 648 | K137: 115 | L137: 59616 | M137: 10580 | N137: Electric Storage | O137: Double Glazed | P137: Electric Immersion | Q137: Cavity wall no insulation | R137: 300mm Loft Insulation
A138: PH50 4QX | B138: 25 | C138: 2017 | D138: Semi-Detached | E138: 94 | F138: 54 | G138: 79 | H138: 34 | I138: 58 | J138: 665 | K138: 112 | L138: 62510 | M138: 10528 | N138: Electric Storage | O138: Double Glazed | P138: Electric Immersion | Q138: Cavity Fill | R138: 200mm Loft Insulation
A139: PH50 4QP | B139: 16 | C139: 2009 | D139: Semi-Detached | E139: 78 | F139: 26 | G139: 26 | H139: 29 | I139: 29 | J139: 666 | K139: 100 | L139: 51948 | M139: 7800 | N139: Electric Storage | O139: Double Glazed | P139: Electric Immersion | Q139: Cavity wall no insulation | R139: 150mm Loft insulation
A140: PH50 4RA | B140: 17 | C140: 2014 | D140: Semi-Detached | E140: 95 | F140: 21 | G140: 91 | H140: 32 | I140: 58 | J140: 667 | K140: 113 | L140: 63365 | M140: 10735 | N140: Electric Storage | O140: Double Glazed | P140: Electric Immersion | Q140: Cavity wall no insulation | R140: 300mm Loft Insulation
A141: PH50 4RB | B141: 4 | C141: 2018 | D141: End-terrace | E141: 52 | F141: 64 | G141: 87 | H141: 41 | I141: 67 | J141: 673 | K141: 114 | L141: 34996 | M141: 5928 | N141: Electric Storage | O141: Double Glazed | P141: Electric Immersion | Q141: Cavity Fill | R141: 200mm Loft Insulation
A142: PH50 4QH | B142: 17 | C142: 2016 | D142: Semi-Detached | E142: 91 | F142: 24 | G142: 54 | H142: 33 | I142: 57 | J142: 687 | K142: 121 | L142: 62517 | M142: 11011 | N142: Electric Storage | O142: Double Glazed | P142: Electric Immersion | Q142: Cavity Fill | R142: 150mm Loft insulation
A143: PH50 4RD | B143: 2 | C143: 2012 | D143: Semi-Detached | E143: 76 | F143: 10 | G143: 59 | H143: 23 | I143: 62 | J143: 690 | K143: 122 | L143: 52440 | M143: 9272 | N143: Boilers + Radiators + Oil | O143: Double Glazed | P143: Electric Immersion | Q143: Cavity wall no insulation | R143: 100mm Loft insulation
A144: PH50 4QR | B144: 12 | C144: 2017 | D144: Semi-Detached | E144: 74 | F144: 55 | G144: 83 | H144: 37 | I144: 62 | J144: 690 | K144: 117 | L144: 51060 | M144: 8658 | N144: Electric Storage | O144: Double Glazed | P144: Electric Immersion | Q144: Cavity Fill | R144: No insulation
A145: PH50 4RB | B145: 1 | C145: 2018 | D145: End-terrace | E145: 41 | F145: 66 | G145: 91 | H145: 44 | I145: 73 | J145: 699 | K145: 118 | L145: 28659 | M145: 4838 | N145: Electric Storage | O145: Double Glazed | P145: Electric Immersion | Q145: Cavity Fill | R145: 200mm Loft Insulation
A146: PH50 4RQ | B146: 27 | C146: 2018 | D146: Semi-Detached | E146: 98 | F146: 46 | G146: 76 | H146: 31 | I146: 53 | J146: 705 | K146: 119 | L146: 69090 | M146: 11662 | N146: Electric Storage | O146: Double Glazed | P146: Electric Immersion | Q146: Timber Insulated | R146: 200mm Loft Insulation
A147: PH50 4QW | B147: 5 | C147: 2016 | D147: Semi-Detached | E147: 70 | F147: 54 | G147: 83 | H147: 36 | I147: 62 | J147: 707 | K147: 119 | L147: 49490 | M147: 8330 | N147: Electric Storage | O147: Double Glazed | P147: Electric Immersion | Q147: Cavity Fill | R147: 300mm Loft Insulation
A148: PH50 4QJ | B148: 9 | C148: 2015 | D148: Semi-Detached | E148: 76 | F148: 44 | G148: 67 | H148: 34 | I148: 49 | J148: 712 | K148: 124 | L148: 54112 | M148: 9424 | N148: Electric Storage | O148: Double Glazed | P148: Electric Immersion | Q148: Cavity Fill | R148: No insulation
A149: PH50 4RB | B149: 3 | C149: 2018 | D149: End-terrace | E149: 41 | F149: 65 | G149: 90 | H149: 44 | I149: 72 | J149: 714 | K149: 121 | L149: 29274 | M149: 4961 | N149: Electric Storage | O149: Double Glazed | P149: Electric Immersion | Q149: Cavity Fill | R149: 200mm Loft Insulation
A150: PH50 4RQ | B150: 29 | C150: 2009 | D150: End-terrace | E150: 77 | F150: 31 | G150: 32 | H150: 26 | I150: 26 | J150: 718 | K150: 109 | L150: 55286 | M150: 8393 | N150: Electric Storage | O150: Double Glazed | P150: Electric Immersion | Q150: Solid Brick no insulation | R150: 300mm Loft Insulation
A151: PH50 4QP | B151: 12 | C151: 2017 | D151: Semi-Detached | E151: 81 | F151: 52 | G151: 104 | H151: 31 | I151: 79 | J151: 747 | K151: 126 | L151: 60507 | M151: 10206 | N151: Electric Storage | O151: Double Glazed | P151: Electric Immersion | Q151: Cavity Fill | R151: No insulation
A152: PH50 4QT | B152: GORTENNAMBEITH | C152: 2018 | D152: Semi-Detached | E152: 120 | F152: 42 | G152: 73 | H152: 27 | I152: 48 | J152: 750 | K152: 127 | L152: 90000 | M152: 15240 | N152: Electric Storage | O152: Double Glazed | P152: Electric Immersion | Q152: Solid Brick no insulation | R152: 270mm Loft Insulation
A153: PH50 4QW | B153: 2 | C153: 2014 | D153: Semi-Detached | E153: 75 | F153: 39 | G153: 81 | H153: 16 | I153: 53 | J153: 751 | K153: 146 | L153: 56325 | M153: 10950 | N153: Electric Storage | O153: Double Glazed | P153: Electric Immersion | Q153: Cavity wall no insulation | R153: 75mm loft Insulation
A154: PH50 4QS | B154: 6 | C154: 2015 | D154: Semi-Detached | E154: 144 | F154: 9 | G154: 96 | H154: 23 | I154: 74 | J154: 759 | K154: 128 | L154: 109296 | M154: 18432 | N154: Electric Storage | O154: Double Glazed | P154: Electric Immersion | Q154: Solid Brick no insulation | R154: 50mm loft insulation
A155: PH50 4RD | B155: 6 | C155: 2015 | D155: Semi-Detached | E155: 76 | F155: 51 | G155: 80 | H155: 28 | I155: 58 | J155: 817 | K155: 138 | L155: 62092 | M155: 10488 | N155: Electric Storage | O155: Double Glazed | P155: Electric Immersion | Q155: Cavity wall no insulation | R155: 100mm Loft insulation
A156: PH50 4QP | B156: 5 | C156: 2015 | D156: End-terrace | E156: 82 | F156: 13 | G156: 86 | H156: 26 | I156: 62 | J156: 829 | K156: 140 | L156: 67978 | M156: 11480 | N156: Electric Storage | O156: Double Glazed | P156: Electric Immersion | Q156: Cavity Fill | R156: No insulation
A157: PH50 4QJ | B157: 20 | C157: 2016 | D157: Semi-Detached | E157: 76 | F157: 18 | G157: 45 | H157: 28 | I157: 50 | J157: 835 | K157: 147 | L157: 63460 | M157: 11172 | N157: Electric Storage | O157: Double Glazed | P157: Electric Immersion | Q157: Cavity Fill | R157: No insulation
A158: PH50 4QP | B158: 24 | C158: 2010 | D158: Semi-Detached | E158: 78 | F158: 1 | G158: 1 | H158: 19 | I158: 19 | J158: 846 | K158: 127 | L158: 65988 | M158: 9906 | N158: Electric Storage | O158: Double Glazed | P158: Electric Immersion | Q158: Solid Brick no insulation | R158: No insulation
A159: PH50 4QW | B159: 8 | C159: 2017 | D159: Semi-Detached | E159: 85 | F159: 10 | G159: 87 | H159: 24 | I159: 71 | J159: 855 | K159: 145 | L159: 72675 | M159: 12325 | N159: Electric Storage | O159: Double Glazed | P159: Electric Immersion | Q159: Solid Brick no insulation | R159: 100mm Loft insulation
A160: PH50 4QR | B160: 7 | C160: 2015 | D160: Semi-Detached | E160: 112 | F160: 3 | G160: 78 | H160: 18 | I160: 80 | J160: 926 | K160: 157 | L160: 103712 | M160: 17584 | N160: Electric Storage | O160: Double Glazed | P160: Electric Immersion | Q160: Solid Brick no insulation | R160: 50mm loft insulation
A161: PH50 4QJ | B161: 2 | C161: 2010 | D161: Semi-Detached | E161: 83 | F161: 1 | G161: 12 | H161: 1 | I161: 4 | J161: 994 | K161: 251 | L161: 82502 | M161: 20833 | N161: Electric Storage | O161: Single Glazing | P161: Electric Immersion | Q161: Cavity wall no insulation | R161: 100mm Loft insulation
A162: PH50 4QP | B162: 21 | C162: 2016 | D162: Semi-Detached | E162: 70 | F162: 25 | G162: 87 | H162: 16 | I162: 71 | J162: 1090 | K162: 184 | L162: 76300 | M162: 12880 | N162: Electric Storage | O162: Double Glazed | P162: Electric Immersion | Q162: Cavity Fill | R162: No insulation
A163: PH50 4QR | B163: 15 | C163: 2015 | D163: Semi-Detached | E163: 70 | F163: 1 | G163: 65 | H163: 11 | I163: 69 | J163: 1263 | K163: 214 | L163: 88410 | M163: 14980 | N163: Electric Storage | O163: Double Glazed | P163: Electric Immersion | Q163: Cavity wall no insulation | R163: No insulation

Sheet Detached
A1: Postcode | B1: House No. | C1: Assessment Year | D1: Dwelling Type | E1: Floor Area (m^2) | F1: Energy Efficiency Rating - Current | G1: Energy Efficiency Rating - Potential | H1: Environmental Impact Rating - Current | I1: Environmental Impact Rating - Potential | J1: Energy Usuage (kWh/m^2 per year) | K1: Emissions (kg/m^2 per year) | L1: Energy usage (kWh/year) | M1: Emmissions (kgCO2/year) | N1: Main Heating Type | O1: Windows | P1: Hot Water | Q1: Wall Insulation | R1: Pitch Roof Insulation | V1: Floor Area (m^2) | W1: Energy Efficiency Rating - Current | X1: Environmental Impact Rating - Current | Y1: Energy Usuage (kWh/m^2 per year) | Z1: Emissions (kg/m^2 per year) | AA1: Energy per house | AE1: Wall Insulation | AH1: Roof insulation
A2: PH50 4QT | B2: GREYMARES | C2: 2018 | D2: Detached | E2: 102 | F2: 78 | G2: 80 | H2: 87 | I2: 89 | J2: 86 | K2: 19 | L2: =J2*E2 -> 8772 | M2: =K2*E2 -> 1938 | N2: Boilers + Radiators + Oil | O2: HP Glazing | P2: Boiler | Q2: Cavity Fill | R2: 0.08 | V2: =AVERAGE(E2:E24) -> 161.0869565 | W2: =AVERAGE(F2:F24) -> 51.69565217 | X2: =AVERAGE(H2:H24) -> 51.04347826 | Y2: =AVERAGE(J2:J24) -> 376.2608696 | Z2: =AVERAGE(K2:K24) -> 70.47826087 | AA2: =AVERAGE(L2:L24) -> 62480.69565 | AD2: Cavity fill | AE2: =COUNTIF(Q2:Q24,"cavity fill") -> 12 | AG2: 400 | AH2: =COUNTIF(R2:R24,"400mm loft insulation") -> 1
A3: PH50 4RA | B3: TIGH NA SITH | C3: 2013 | D3: Detached | E3: 196 | F3: 76 | G3: 88 | H3: 68 | I3: 82 | J3: 122 | K3: 30 | L3: =J3*E3 -> 23912 | M3: =K3*E3 -> 5880 | N3: Boilers + Radiators + Oil | O3: Double Glazed | P3: Boiler | Q3: Timber Insulated | R3: 300mm Loft Insulation | AD3: Timber frame no insulation | AE3: =COUNTIF(Q2:Q24,"timber frame no insulation") -> 1 | AG3: 300 | AH3: =COUNTIF(R$2:R$24,"300mm loft insulation") -> 6
A4: PH50 4RT | B4: 4 | C4: 2017 | D4: Detached | E4: 133 | F4: 79 | G4: 89 | H4: 91 | I4: 99 | J4: 149 | K4: 11 | L4: 19817 | M4: 1463 | N4: Boilers + Radiators + Wood | O4: HP Glazing | P4: Boiler | Q4: Cavity Fill | R4: 0.14 | AD4: Cavity wall no insulation | AE4: =COUNTIF(Q2:Q24,"cavity wall no insulation") -> 5 | AG4: 270 | AH4: =COUNTIF(R$2:R$24,"270mm loft insulation") -> 2
A5: PH50 4RT | B5: 1 | C5: 2018 | D5: Detached | E5: 138 | F5: 76 | G5: 103 | H5: 79 | I5: 103 | J5: 153 | K5: 25 | L5: 21114 | M5: 3450 | N5: ASHP + Electric | O5: HP Glazing | P5: Electric Immersion | Q5: Cavity Fill | R5: 0.14 | AD5: Timber insulated | AE5: =COUNTIF(Q2:Q24,"Timber insulated") -> 5 | AG5: 250 | AH5: =COUNTIF(R$2:R$24,"250mm loft insulation") -> 1
A6: PH50 4QL | B6: LOCHSIDE COTTAGE | C6: 2014 | D6: Detached | E6: 127 | F6: 68 | G6: 86 | H6: 59 | I6: 78 | J6: 183 | K6: 43 | L6: 23241 | M6: 5461 | N6: Boilers + Radiators + Oil | O6: Double Glazed | P6: Boiler | Q6: Timber Insulated | R6: 300mm Loft Insulation | AG6: 200 | AH6: =COUNTIF(R$2:R$24,"200mm loft insulation") -> 3
A7: PH50 4RA | B7: TIGH AN T SAOIR | C7: 2013 | D7: Detached | E7: 118 | F7: 64 | G7: 84 | H7: 63 | I7: 76 | J7: 210 | K7: 52 | L7: 24780 | M7: 6136 | N7: Boilers + Radiators + Oil | O7: Double Glazed | P7: Boiler | Q7: Timber Insulated | R7: 100mm Loft insulation | AG7: 150 | AH7: =COUNTIF(R$2:R$24,"150mm loft insulation") -> 0
A8: PH50 4QX | B8: Eakie House | C8: 2017 | D8: Detached | E8: 85 | F8: 58 | G8: 72 | H8: 70 | I8: 82 | J8: 217 | K8: 47 | L8: 18445 | M8: 3995 | N8: Boilers + Radiators + Oil | O8: Double Glazed | P8: Boiler | Q8: Cavity Fill | R8: 400mm loft Insulation | AG8: 100 | AH8: =COUNTIF(R$2:R$24,"100mm loft insulation") -> 3
A9: PH50 4QS | B9: Police House | C9: 2016 | D9: Detached | E9: 129 | F9: 66 | G9: 98 | H9: 70 | I9: 99 | J9: 229 | K9: 39 | L9: 29541 | M9: 5031 | N9: ASHP + Electric | O9: Double Glazed | P9: Boiler | Q9: Cavity Fill | R9: 300mm Loft Insulation | AG9: 50 | AH9: =COUNTIF(R$2:R$24,"50mm loft insulation") -> 0
A10: PH50 4QW | B10: THE OLD POLICE HOUSE | C10: 2016 | D10: Detached | E10: 129 | F10: 66 | G10: 98 | H10: 70 | I10: 99 | J10: 229 | K10: 39 | L10: 29541 | M10: 5031 | N10: ASHP + Electric | O10: Double Glazed | P10: Boiler | Q10: Cavity Fill | R10: 300mm Loft Insulation | AG10: 0 | AH10: =COUNTIF(R$2:R$24,"no insulation") -> 3
A11: PH50 4SE | B11: Tigh Na Cheo Garbhein | C11: 2011 | D11: Detached | E11: 452 | F11: 22 | G11: 36 | H11: 43 | I11: 55 | J11: 243 | K11: 50 | L11: 109836 | M11: 22600 | N11: Boilers + Radiators + Oil | O11: Double Glazing | P11: Electric Immersion | Q11: Cavity Fill | R11: 100mm Loft insulation | AG11: sum | AH11: =SUM(AH2:AH10) -> 19
A12: PH50 4QT | B12: TIGH-AN-RUDHA | C12: 2011 | D12: Detached | E12: 161 | F12: 52 | G12: 55 | H12: 40 | I12: 42 | J12: 251 | K12: 62 | L12: 40411 | M12: 9982 | N12: Boilers + Radiators + Oil | O12: Double Glazed | P12: Boiler | Q12: Cavity Fill | R12: 200mm Loft Insulation | AG12: average | AH12: =(AG2*AH2+AG3*AH3+AG4*AH4+AG5*AH5+AG6*AH6+AG7*AH7+AG8*AH8+AG9*AH9+AG10*AH10)/AH11 -> 204.7368421
A13: PH50 4QL | B13: SCHOOL LODGE | C13: 2013 | D13: Detached | E13: 124 | F13: 68 | G13: 83 | H13: 51 | I13: 68 | J13: 298 | K13: 53 | L13: 36952 | M13: 6572 | N13: Electric Storage | O13: Double Glazed | P13: Electric Immersion | Q13: Cavity Fill | R13: 300mm Loft Insulation
A14: PH50 4SE | B14: Argus | C14: 2014 | D14: Detached | E14: 285 | F14: 34 | G14: 50 | H14: 90 | I14: 97 | J14: 306 | K14: 9 | L14: 87210 | M14: 2565 | N14: Boilers + Radiators + Wood | O14: Single Glazing | P14: Boiler | Q14: Timber frame no insulation | R14: 300mm Loft Insulation
A15: PH50 4QH | B15: THE OLD SURGERY | C15: 2018 | D15: Detached | E15: 101 | F15: 62 | G15: 74 | H15: 59 | I15: 73 | J15: 335 | K15: 57 | L15: 33835 | M15: 5757 | N15: ASHP + Electric | O15: Double Glazed | P15: Electric Immersion | Q15: Cavity Fill | R15: 270mm Loft Insulation
A16: PH50 4SE | B16: Garbhein Cottage | C16: 2014 | D16: Detached | E16: 85 | F16: 30 | G16: 46 | H16: 41 | I16: 55 | J16: 336 | K16: 75 | L16: 28560 | M16: 6375 | N16: Boilers + Radiators + Oil | O16: Double Glazed | P16: Boiler | Q16: Cavity fill | R16: 200mm Loft Insulation
A17: PH50 4SE | B17: Garbhein House | C17: 2009 | D17: Detached | E17: 320 | F17: 28 | G17: 31 | H17: 27 | I17: 28 | J17: 366 | K17: 76 | L17: 117120 | M17: 24320 | N17: Boilers + Radiators + Oil | O17: Single Glazing | P17: Electric Immersion | Q17: Cavity wall no Insulation | R17: No insulation
A18: PH50 4SE | B18: Ossian | C18: 2014 | D18: Detached | E18: 108 | F18: 37 | G18: 81 | H18: 26 | I18: 67 | J18: 379 | K18: 101 | L18: 40932 | M18: 10908 | N18: Boilers + Radiators + Oil | O18: Double Glazed | P18: Boiler | Q18: Cavity wall no Insulation | R18: No insulation
A19: PH50 4SB | B19: Burnside | C19: 2017 | D19: Detached | E19: 181 | F19: 16 | G19: 65 | H19: 15 | I19: 55 | J19: 585 | K19: 153 | L19: 105885 | M19: 27693 | N19: Boilers + Radiators + Oil | O19: Double Glazing | P19: Boiler | Q19: Cavity wall no Insulation | R19: No insulation
A20: PH50 4QT | B20: FIRWOOD COTTAGE | C20: 2018 | D20: Detached | E20: 98 | F20: 55 | G20: 84 | H20: 35 | I20: 61 | J20: 620 | K20: 111 | L20: 60760 | M20: 10878 | N20: Electric Storage | O20: Double Glazed | P20: Electric Immersion | Q20: Timber Insulated | R20: 250mm Loft insulation
A21: PH50 4QL | B21: MAMORE LODGE | C21: 2016 | D21: Detached | E21: 112 | F21: 43 | G21: 64 | H21: 32 | I21: 49 | J21: 645 | K21: 109 | L21: 72240 | M21: 12208 | N21: Electric Storage | O21: Double Glazed | P21: Electric Immersion | Q21: Timber Insulated | R21: 270mm Loft Insulation
A22: PH50 4RB | B22: 17 | C22: 2018 | D22: Detached | E22: 51 | F22: 63 | G22: 86 | H22: 40 | I22: 66 | J22: 712 | K22: 120 | L22: 36312 | M22: 6120 | N22: Electric Storage | O22: Double Glazed | P22: Electric Immersion | Q22: Cavity Fill | R22: 200mm Loft Insulation
A23: PH50 4SE | B23: Edenmhor | C23: 2015 | D23: Detached | E23: 271 | F23: 25 | G23: 52 | H23: 11 | I23: 29 | J23: 970 | K23: 158 | L23: =J23*E23 -> 262870 | M23: 42818 | N23: Electric Storage | O23: Single Glazing | P23: Solid fuel range cooker | Q23: cavity wall no insulation | R23: 100mm Loft insulation
A24: PH50 4SE | B24: Inverleven | C24: 2018 | D24: Detached | E24: 199 | F24: 23 | G24: 72 | H24: 7 | I24: 46 | J24: 1030 | K24: 182 | L24: 204970 | M24: 36218 | N24: Electric Storage | O24: Double Glazed | P24: Electric Immersion | Q24: Cavity wall no Insulation | R24: 50mm lof Insulation
J26: =STDEV(J2:J24) -> 261.1069473 | L26: =STDEV(L2:L24) -> 63070.55975
